Directorate,Department,Expenditure Type,Ref.Doc.1,Vendor Name,Expenditure Amount (exc VAT),Payment Date
Assurance,Assurance,Professional Services,0080012229,BIRMINGHAM CITY COUNCIL,"1,616.66",01/09/2017
Assurance,Assurance,Training,0060088163,DEMOCRACY COUNTS LIMITED,"2,260.00",27/09/2017
Assurance,Assurance,Printing-Contract,0060086385,ELECTORAL REFORM SERVICES,267.76,01/09/2017
Assurance,Assurance,Postage,0060086807,ROYAL MAIL GROUP LIMITED,18.52,08/09/2017
Assurance,Assurance,Postage,0060086899,ROYAL MAIL GROUP LIMITED,"7,674.07",11/09/2017
Assurance,Assurance,Rents,0060081267,GREEN MAN COMMUNITY CENTRE M.C.,"1,000.00",01/09/2017
Assurance,Assurance,Stationery,0060086345,OFFICE DEPOT UK LTD,1.70,15/09/2017
Assurance,Assurance,Stationery,0060086377,OFFICE DEPOT UK LTD,493.35,15/09/2017
Assurance,Assurance,Stationery,0060086379,OFFICE DEPOT UK LTD,234.65,15/09/2017
Assurance,Assurance,Postage,0060085355,ROYAL MAIL GROUP LIMITED,786.77,05/09/2017
Assurance,Assurance,Rents,0060086401,SAINT AUGUSTINE'S CHURCH,640.00,12/09/2017
Assurance,Assurance,Rents,0060087868,SARACENS LTD,"31,120.00",21/09/2017
Assurance,Assurance,Rents,0060087626,MOTT MACDONALD LTD/CAMBRIDGE EDUCATION,"5,025.00",19/09/2017
Assurance,Assurance,Stationery,0040002467,OFFICE DEPOT UK LTD,0.73,28/09/2017
Assurance,Assurance,General Office Expenses,0040002489,OFFICE DEPOT UK LTD,0.40,21/09/2017
Assurance,Assurance,Training,0060086945,SKILLS TRAINING CENTRE LTD,165.00,11/09/2017
Assurance,Assurance,Equipment and Materials Purcha,0060086238,BARNARD &  WESTWOOD LTD,81.16,15/09/2017
Assurance,Assurance,Other Indirect Employee Expens,0080012545,MAYOR'S APPEAL,30.00,19/09/2017
Assurance,Assurance,Other Indirect Employee Expens,0080012680,THE SPEAKER'S,80.00,26/09/2017
Assurance,Assurance,Rents,0060087876,BARNET & SOUTHGATE COLLEGE,210.00,21/09/2017
Assurance,Assurance,Training,0060068971,CENTRE FOR PUBLIC SCRUTINY LTD,322.20,07/09/2017
Assurance,Assurance,Equipment and Materials Purcha,0080012592,RBL POPPY APPEAL,505.75,19/09/2017
Assurance,Assurance,Equipment and Materials Purcha,0080012593,D & R SIMMONS LIMITED,186.00,19/09/2017
Assurance,Assurance,Subscriptions,0060086372,COMPANIES HOUSE,6.00,20/09/2017
Assurance,Assurance,General Office Expenses,0040002532,OFFICE DEPOT UK LTD,2.55,28/09/2017
Assurance,Assurance,General Office Expenses,0040002598,OFFICE DEPOT UK LTD,0.32,28/09/2017
Assurance,Assurance,Equipment and Materials Purcha,0060084829,PRIME PRODUCTION LTD,39.50,07/09/2017
Assurance,Assurance,Postage,0060088189,ROYAL MAIL GROUP LIMITED,95.00,27/09/2017
Assurance,Assurance,Translation Exp / Interpret,0060082628,REDACTED - PERSONAL DATA,427.50,01/09/2017
Assurance,Assurance,Translation Exp / Interpret,0060086408,REDACTED - PERSONAL DATA,"1,287.50",27/09/2017
Assurance,Assurance,Translation Exp / Interpret,0060086445,REDACTED - PERSONAL DATA,340.00,05/09/2017
Central Expenses,Central Expenses,Insurance Claims,0080012242,DWP COMPENSATION RECOVERY UNIT,647.00,04/09/2017
Central Expenses,Central Expenses,Insurance Claims,0080012287,DWP COMPENSATION RECOVERY UNIT,647.00,07/09/2017
Central Expenses,Central Expenses,Insurance Claims,0080012412,DWP COMPENSATION RECOVERY UNIT,665.00,13/09/2017
Central Expenses,Central Expenses,Insurance Claims,0080012476,DWP COMPENSATION RECOVERY UNIT,"35,897.20",14/09/2017
Central Expenses,Central Expenses,Insurance Claims,0080012480,DWP COMPENSATION RECOVERY UNIT,323.50,14/09/2017
Central Expenses,Central Expenses,Insurance Claims,0080012513,DWP COMPENSATION RECOVERY UNIT,829.00,15/09/2017
Central Expenses,Central Expenses,Insurance Claims,0060085423,JOHNSON AUSTIN PARTNERSHIP LLP,750.00,08/09/2017
Central Expenses,Central Expenses,Insurance Claims,0060086533,JOHNSON AUSTIN PARTNERSHIP LLP,450.00,08/09/2017
Central Expenses,Central Expenses,Insurance Claims,0080012241,REDACTED - PERSONAL DATA,"6,750.00",04/09/2017
Central Expenses,Central Expenses,Insurance Claims,0080012244,REDACTED - PERSONAL DATA,959.20,04/09/2017
Central Expenses,Central Expenses,Insurance Claims,0080012246,CAMP LAW,"16,047.12",04/09/2017
Central Expenses,Central Expenses,Insurance Claims,0080012257,ENTERPRISE RECRUITMENT SERVICES LTD,391.08,04/09/2017
Central Expenses,Central Expenses,Insurance Claims,0080012277,LYONS DAVIDSON SOLICITORS,"3,386.50",07/09/2017
Central Expenses,Central Expenses,Insurance Claims,0080012281,REDACTED - PERSONAL DATA,95.00,07/09/2017
Central Expenses,Central Expenses,Insurance Claims,0080012329,SIMPSON MILLAR LLP,"18,750.00",07/09/2017
Central Expenses,Central Expenses,Insurance Claims,0080012364,CLARKE WILL MO,"2,971.45",11/09/2017
Central Expenses,Central Expenses,Insurance Claims,0080012367,REDACTED - PERSONAL DATA,650.00,11/09/2017
Central Expenses,Central Expenses,Insurance Claims,0080012371,PRODDOW MACKAY SOLICITORS,"1,520.29",11/09/2017
Central Expenses,Central Expenses,Insurance Claims,0080012380,REDACTED - PERSONAL DATA,900.00,11/09/2017
Central Expenses,Central Expenses,Insurance Claims,0080012381,REDACTED - PERSONAL DATA,300.00,11/09/2017
Central Expenses,Central Expenses,Insurance Claims,0080012408,REDACTED - PERSONAL DATA,"3,750.00",13/09/2017
Central Expenses,Central Expenses,Insurance Claims,0080012475,CAMPS SOLICITORS,"52,000.00",14/09/2017
Central Expenses,Central Expenses,Insurance Claims,0080012478,MINSTER LAW LT,"3,000.00",14/09/2017
Central Expenses,Central Expenses,Insurance Claims,0080012479,MINSTER LAW LT,"2,520.00",14/09/2017
Central Expenses,Central Expenses,Insurance Claims,0080012498,LV=,"3,446.99",15/09/2017
Central Expenses,Central Expenses,Insurance Claims,0080012508,HUGH JAMES SOLICITORS,"12,500.00",15/09/2017
Central Expenses,Central Expenses,Insurance Claims,0080012511,RUSSELL WORTH SOLICITORS,"3,000.00",15/09/2017
Central Expenses,Central Expenses,Insurance Claims,0080012553,REDACTED - PERSONAL DATA,"2,000.00",19/09/2017
Central Expenses,Central Expenses,Insurance Claims,0080012556,GREENFIELD ME,50.00,20/09/2017
Central Expenses,Central Expenses,Insurance Claims,0080012589,BERRYMANS LACE MAWER,"1,575.50",20/09/2017
Central Expenses,Central Expenses,Insurance Claims,0080012590,QM COSTS,"3,848.61",20/09/2017
Central Expenses,Central Expenses,Insurance Claims,0080012616,BASTION LAW,816.00,21/09/2017
Central Expenses,Central Expenses,Insurance Claims,0080012617,BASTION LAW,"4,225.00",21/09/2017
Central Expenses,Central Expenses,Insurance Claims,0080012618,MOTOR CARE SER,"2,698.01",21/09/2017
Central Expenses,Central Expenses,Insurance Claims,0080012620,INNOVATION GR,"2,034.19",21/09/2017
Central Expenses,Central Expenses,Insurance Claims,0080012621,GREENFIELD ME,50.00,21/09/2017
Central Expenses,Central Expenses,Insurance Claims,0080012638,ENTERPRISE RECRUITMENT SERVICES LTD,801.70,22/09/2017
Central Expenses,Central Expenses,Insurance Claims,0080012677,TRADE UNION LE,"4,969.00",27/09/2017
Central Expenses,Central Expenses,Insurance Claims,0080012704,RUSSELL WORTH,"4,667.00",28/09/2017
Central Expenses,Central Expenses,Insurance Claims,0080012707,REDACTED - PERSONAL DATA,133.00,28/09/2017
Central Expenses,Central Expenses,Insurance Claims,0080012375,BRISTOL & LONDON,"3,522.23",08/09/2017
Central Expenses,Central Expenses,Insurance Claims,0080012438,CRAWFORD & COMPANY,"1,380.00",29/09/2017
Central Expenses,Central Expenses,Insurance Claims,0080012439,HASTINGS INSURANCE,"4,134.40",29/09/2017
Central Expenses,Central Expenses,Insurance Claims,0080012456,REDACTED - PERSONAL DATA,"5,000.00",29/09/2017
Central Expenses,Central Expenses,Insurance Claims,0080012458,GEOFFREY LEAVER SOLICITORS,"1,080.00",12/09/2017
Central Expenses,Central Expenses,Insurance Claims,0080012484,THAMES VALLEY,209.04,15/09/2017
Central Expenses,Central Expenses,Insurance Claims,0080012686,ENTERPRISE RECRUITMENT SERVICES LTD,604.81,29/09/2017
Central Expenses,Central Expenses,Insurance Claims,0060087730,THE BARNETGROUP LIMITED,"15,400.00",20/09/2017
Central Expenses,Central Expenses,Insurance Claims,0060081501,WEIGHTMANS LLP,"1,000.00",07/09/2017
Central Expenses,Central Expenses,Insurance Claims,0060081505,WEIGHTMANS LLP,"1,254.00",27/09/2017
Central Expenses,Central Expenses,Insurance Claims,0060086798,WEIGHTMANS LLP,696.00,27/09/2017
Central Expenses,Central Expenses,Insurance Claims,0060086875,WEIGHTMANS LLP,"1,750.00",27/09/2017
Central Expenses,Central Expenses,Subscriptions,0060087587,LONDON BOROUGH OF EALING,"39,000.00",18/09/2017
Central Expenses,Central Expenses,Other Local Authorities - Thir,GLAPRECEPT,GREATER LONDON AUTHORITY,"4,014,752.61",07/09/2017
Commercial,Customer Support Group,Building Repairs & Maintenance,0010013881,AJS LTD,195.93,18/09/2017
Commercial,Customer Support Group,Building Repairs & Maintenance,0060085028,AJS LTD,296.87,19/09/2017
Commercial,Customer Support Group,Building Repairs & Maintenance,0060086732,AJS LTD,164.64,07/09/2017
Commercial,Customer Support Group,Building Repairs & Maintenance,0060087616,HERTEL (UK) LTD,34.91,19/09/2017
Commercial,Customer Support Group,Building Repairs & Maintenance,0060087622,HERTEL (UK) LTD,34.91,19/09/2017
Commercial,Customer Support Group,Building Repairs & Maintenance,0060087624,HERTEL (UK) LTD,34.91,19/09/2017
Commercial,Customer Support Group,Building Repairs & Maintenance,0060087627,HERTEL (UK) LTD,34.91,19/09/2017
Commercial,Customer Support Group,Building Repairs & Maintenance,0060087631,HERTEL (UK) LTD,34.91,19/09/2017
Commercial,Customer Support Group,Building Repairs & Maintenance,0060087633,HERTEL (UK) LTD,34.91,19/09/2017
Commercial,Customer Support Group,Building Repairs & Maintenance,0060087634,HERTEL (UK) LTD,34.91,19/09/2017
Commercial,Customer Support Group,Building Repairs & Maintenance,0060087635,HERTEL (UK) LTD,34.91,19/09/2017
Commercial,Customer Support Group,Building Repairs & Maintenance,0060087641,HERTEL (UK) LTD,34.91,19/09/2017
Commercial,Customer Support Group,Building Repairs & Maintenance,0060087642,HERTEL (UK) LTD,24.94,19/09/2017
Commercial,Customer Support Group,Building Repairs & Maintenance,0060087644,HERTEL (UK) LTD,34.91,19/09/2017
Commercial,Customer Support Group,Building Repairs & Maintenance,0060087645,HERTEL (UK) LTD,34.91,19/09/2017
Commercial,Customer Support Group,Building Repairs & Maintenance,0060087646,HERTEL (UK) LTD,34.91,19/09/2017
Commercial,Customer Support Group,Building Repairs & Maintenance,0060087658,HERTEL (UK) LTD,24.94,19/09/2017
Commercial,Customer Support Group,Building Repairs & Maintenance,0060087660,HERTEL (UK) LTD,34.91,19/09/2017
Commercial,Customer Support Group,Building Repairs & Maintenance,0060087661,HERTEL (UK) LTD,34.91,19/09/2017
Commercial,Customer Support Group,Building Repairs & Maintenance,0060087663,HERTEL (UK) LTD,34.91,19/09/2017
Commercial,Customer Support Group,Building Repairs & Maintenance,0060087667,HERTEL (UK) LTD,34.91,19/09/2017
Commercial,Customer Support Group,Building Repairs & Maintenance,0060087671,HERTEL (UK) LTD,34.91,19/09/2017
Commercial,Customer Support Group,Building Repairs & Maintenance,0060087673,HERTEL (UK) LTD,34.91,19/09/2017
Commercial,Customer Support Group,Building Repairs & Maintenance,0060087674,HERTEL (UK) LTD,24.94,19/09/2017
Commercial,Customer Support Group,Building Repairs & Maintenance,0060087675,HERTEL (UK) LTD,34.91,19/09/2017
Commercial,Customer Support Group,Building Repairs & Maintenance,0060087682,HERTEL (UK) LTD,34.91,19/09/2017
Commercial,Customer Support Group,Building Repairs & Maintenance,0060087692,HERTEL (UK) LTD,34.91,19/09/2017
Commercial,Customer Support Group,Building Repairs & Maintenance,0060085460,RGE SERVICES,171.58,07/09/2017
Commercial,Customer Support Group,Building Repairs & Maintenance,0060085505,RGE SERVICES,64.13,07/09/2017
Commercial,Customer Support Group,Building Repairs & Maintenance,0060086494,RGE SERVICES,64.13,14/09/2017
Commercial,Customer Support Group,Building Repairs & Maintenance,0060087993,RGE SERVICES,64.13,22/09/2017
Commercial,Customer Support Group,Cleaning and domestic material,0060082596,CHURCHILL CONTRACT SERVICES,"1,032.37",29/09/2017
Commercial,Customer Support Group,Equipment and Materials Purcha,0060086517,DAY PLANT HIRE CO LIMITED,"3,188.30",07/09/2017
Commercial,Customer Support Group,Water Services,0060086361,AFFINITY WATER LIMITED,484.75,13/09/2017
Commercial,Customer Support Group,Building Repairs & Maintenance,0060086953,AJS LTD,109.76,11/09/2017
Commercial,Customer Support Group,Water Services,0060087067,ANGEL SPRINGS LTD,102.16,28/09/2017
Commercial,Customer Support Group,Other Services,0060086866,BLUE 9 SECURITY LIMITED,"19,365.18",13/09/2017
Commercial,Customer Support Group,Cleaning and domestic material,0060082613,CHURCHILL CONTRACT SERVICES,"11,562.54",29/09/2017
Commercial,Customer Support Group,Building Repairs & Maintenance,0060087720,HERTEL (UK) LTD,34.91,20/09/2017
Commercial,Customer Support Group,Cleaning and domestic material,0060086891,HERTFORDSHIRE SUPPLIES   COUNTY CO,28.90,11/09/2017
Commercial,Customer Support Group,Cleaning and domestic material,0060086916,HERTFORDSHIRE SUPPLIES   COUNTY CO,"1,865.29",11/09/2017
Commercial,Customer Support Group,Electricity,0060085779,KENT COUNTY COUNCIL (KCS),"4,973.16",07/09/2017
Commercial,Customer Support Group,Other Services,0060088213,LEASING PROGRAMMES LIMITED,"1,235.00",27/09/2017
Commercial,Customer Support Group,Building Repairs & Maintenance,0060086682,LIFT & ENGINEERING SERVICES LTD,44.63,28/09/2017
Commercial,Customer Support Group,Building Repairs & Maintenance,0060086683,LIFT & ENGINEERING SERVICES LTD,44.63,28/09/2017
Commercial,Customer Support Group,Building Repairs & Maintenance,0060086684,LIFT & ENGINEERING SERVICES LTD,44.63,28/09/2017
Commercial,Customer Support Group,Building Repairs & Maintenance,0060086688,LIFT & ENGINEERING SERVICES LTD,44.63,28/09/2017
Commercial,Customer Support Group,Building Repairs & Maintenance,0060086710,LIFT & ENGINEERING SERVICES LTD,44.63,28/09/2017
Commercial,Customer Support Group,Building Repairs & Maintenance,0060086762,LIFT & ENGINEERING SERVICES LTD,44.63,28/09/2017
Commercial,Customer Support Group,Building Repairs & Maintenance,0060086763,LIFT & ENGINEERING SERVICES LTD,44.63,28/09/2017
Commercial,Customer Support Group,Building Repairs & Maintenance,0060086786,LIFT & ENGINEERING SERVICES LTD,44.63,28/09/2017
Commercial,Customer Support Group,Building Repairs & Maintenance,0060086790,LIFT & ENGINEERING SERVICES LTD,44.63,28/09/2017
Commercial,Customer Support Group,Furniture-Purchase-Repair,0060086537,LYCO DIRECT LTD,274.82,28/09/2017
Commercial,Customer Support Group,Rubbish Collection,0010013869,PEARCE RECYCLING CO. LTD,49.50,01/09/2017
Commercial,Customer Support Group,Rubbish Collection,0060086691,PEARCE RECYCLING CO. LTD,25.00,28/09/2017
Commercial,Customer Support Group,Rubbish Collection,0060087427,PREMIER SHREDDING,65.00,14/09/2017
Commercial,Customer Support Group,Building Repairs & Maintenance,0060086498,RGE SERVICES,203.71,05/09/2017
Commercial,Customer Support Group,Building Repairs & Maintenance,0060086505,RGE SERVICES,62.00,05/09/2017
Commercial,Customer Support Group,Building Repairs & Maintenance,0060086734,RGE SERVICES,326.81,07/09/2017
Commercial,Customer Support Group,Equipment and Materials Purcha,0060086501,RGE SERVICES,157.67,05/09/2017
Commercial,Customer Support Group,Building Repairs & Maintenance,0060085743,S W BRUCE & CO LTD,57.00,14/09/2017
Commercial,Customer Support Group,Building Repairs & Maintenance,0060088173,S W BRUCE & CO LTD,227.70,27/09/2017
Commercial,Customer Support Group,Furniture-Purchase-Repair,0060086149,SCREWFIX DIRECT LTD,83.28,08/09/2017
Commercial,Customer Support Group,Furniture-Purchase-Repair,0060086780,SCREWFIX DIRECT LTD,71.25,11/09/2017
Commercial,Customer Support Group,Furniture-Purchase-Repair,0060087736,SCREWFIX DIRECT LTD,29.13,22/09/2017
Commercial,Customer Support Group,Building Repairs & Maintenance,0010013868,SECOM PLC,"1,216.13",01/09/2017
Commercial,Customer Support Group,Water Services,0060087009,ANGEL SPRINGS LTD,110.00,28/09/2017
Commercial,Customer Support Group,Other Services,0060086862,BLUE 9 SECURITY LIMITED,"5,147.15",13/09/2017
Commercial,Customer Support Group,Cleaning and domestic material,0060082705,CHURCHILL CONTRACT SERVICES,"1,133.45",29/09/2017
Commercial,Customer Support Group,Cleaning and domestic material,0060086576,CHURCHILL CONTRACT SERVICES,"1,133.45",28/09/2017
Commercial,Customer Support Group,Building Repairs & Maintenance,0060087708,HERTEL (UK) LTD,34.91,20/09/2017
Commercial,Customer Support Group,Building Repairs & Maintenance,0060086785,LIFT & ENGINEERING SERVICES LTD,"3,970.00",07/09/2017
Commercial,Customer Support Group,Furniture-Purchase-Repair,0060086471,LYCO DIRECT LTD,25.49,28/09/2017
Commercial,Customer Support Group,Building Repairs & Maintenance,0060087783,HERTEL (UK) LTD,34.91,20/09/2017
Commercial,Customer Support Group,Other Services,0060086746,BLUE 9 SECURITY LIMITED,"22,272.30",13/09/2017
Commercial,Customer Support Group,Water Services,0060085382,CASTLE WATER LTD,"2,328.45",28/09/2017
Commercial,Customer Support Group,Building Repairs & Maintenance,0060086163,CHARLES WILSON ENGINEERS LTD,840.00,28/09/2017
Commercial,Customer Support Group,Building Repairs & Maintenance,0060086170,CHARLES WILSON ENGINEERS LTD,840.00,28/09/2017
Commercial,Customer Support Group,Building Repairs & Maintenance,0060086195,CHARLES WILSON ENGINEERS LTD,231.00,12/09/2017
Commercial,Customer Support Group,Building Repairs & Maintenance,0060087778,HERTEL (UK) LTD,34.91,20/09/2017
Commercial,Customer Support Group,Electricity,0060083424,KENT COUNTY COUNCIL (KCS),"4,952.19",29/09/2017
Commercial,Customer Support Group,Electricity,0060085490,KENT COUNTY COUNCIL (KCS),"4,196.53",07/09/2017
Commercial,Customer Support Group,Rubbish Collection,0060086727,PEARCE RECYCLING CO. LTD,25.00,28/09/2017
Commercial,Customer Support Group,Rubbish Collection,0060086739,PEARCE RECYCLING CO. LTD,25.00,28/09/2017
Commercial,Customer Support Group,Building Repairs & Maintenance,0060086456,RGE SERVICES,297.40,05/09/2017
Commercial,Customer Support Group,Building Repairs & Maintenance,0060086463,RGE SERVICES,93.00,05/09/2017
Commercial,Customer Support Group,Building Repairs & Maintenance,0060086514,RGE SERVICES,237.45,05/09/2017
Commercial,Customer Support Group,Building Repairs & Maintenance,0060086520,RGE SERVICES,111.60,05/09/2017
Commercial,Customer Support Group,Building Repairs & Maintenance,0060085622,S W BRUCE & CO LTD,101.44,12/09/2017
Commercial,Customer Support Group,Water Services,0060086358,2468 LTD,431.76,01/09/2017
Commercial,Customer Support Group,Other Services,0060086737,BLUE 9 SECURITY LIMITED,"27,156.35",07/09/2017
Commercial,Customer Support Group,Other Services,0060086754,BLUE 9 SECURITY LIMITED,"11,584.08",13/09/2017
Commercial,Customer Support Group,Cleaning and domestic material,0060082637,CHURCHILL CONTRACT SERVICES,"7,329.82",29/09/2017
Commercial,Customer Support Group,Cleaning and domestic material,0060080512,HERTFORDSHIRE COUNTY COUNCIL,"2,138.62",01/09/2017
Commercial,Customer Support Group,Cleaning and domestic material,0060082865,HERTFORDSHIRE SUPPLIES   COUNTY CO,"2,201.76",01/09/2017
Commercial,Customer Support Group,Building Repairs & Maintenance,0060087444,NORTH LONDON CATERING EQUIPMENT,95.00,14/09/2017
Commercial,Customer Support Group,Rubbish Collection,0060087068,PEARCE RECYCLING CO. LTD,33.50,12/09/2017
Commercial,Customer Support Group,Rubbish Collection,0060087412,PREMIER SHREDDING,60.00,14/09/2017
Commercial,Customer Support Group,Rubbish Collection,0060087731,PREMIER SHREDDING,63.00,21/09/2017
Commercial,Customer Support Group,Furniture-Purchase-Repair,0060086373,SCREWFIX DIRECT LTD,58.31,06/09/2017
Commercial,Customer Support Group,Books-CDs-Audio-Video,0060086217,SM ELECTRICAL SERVICES,370.00,19/09/2017
Commercial,Customer Support Group,Publications,0010013885,TV LICENSING,147.00,22/09/2017
Commercial,Customer Support Group,Equipment and Materials Purcha,0060084993,WMF UNITED KINGDOM LTD,12.00,06/09/2017
Commercial,Customer Support Group,Equipment and Materials Purcha,0060085066,WMF UNITED KINGDOM LTD,20.00,06/09/2017
Commercial,Customer Support Group,Telephones Calls,0060086431,BRITISH TELECOMMUNICATIONS PLC,55.89,04/09/2017
Commercial,Customer Support Group,Cleaning and domestic material,0060082706,CHURCHILL CONTRACT SERVICES,661.80,29/09/2017
Commercial,Customer Support Group,Building Repairs & Maintenance,0060087779,HERTEL (UK) LTD,34.91,20/09/2017
Commercial,Customer Support Group,Building Repairs & Maintenance,0060086765,LIFT & ENGINEERING SERVICES LTD,89.25,28/09/2017
Commercial,Customer Support Group,Building Repairs & Maintenance,0060087972,RGE SERVICES,128.27,22/09/2017
Commercial,Customer Support Group,CSG Services Contract Payment,0010013866,CAPITA BUSINESS SERVICES LTD,"(272,754.18)",07/09/2017
Commercial,Customer Support Group,CSG Services Contract Payment,0060082385,CAPITA BUSINESS SERVICES LTD,"131,805.94",07/09/2017
Commercial,Customer Support Group,CSG Services Contract Payment,0060085223,CAPITA BUSINESS SERVICES LTD,"41,895.78",07/09/2017
Commercial,Customer Support Group,CSG Services Contract Payment,0060086275,CAPITA BUSINESS SERVICES LTD,"37,819.88",07/09/2017
Commercial,Customer Support Group,CSG Services Contract Payment,0060087875,CAPITA BUSINESS SERVICES LTD,"65,267.75",28/09/2017
Commercial,Customer Support Group,CSG Services Contract Payment,0060085388,CAPITA BUSINESS SERVICES LTD,"31,884.79",26/09/2017
Commercial,Customer Support Group,CSG Services Contract Payment,0060086455,CAPITA BUSINESS SERVICES LTD,"33,858.69",14/09/2017
Commercial,Customer Support Group,CSG Services Contract Payment,0060087652,CAPITA BUSINESS SERVICES LTD,"589,889.15",28/09/2017
Commercial,Customer Support Group,CSG Services Contract Payment,0060087680,CAPITA BUSINESS SERVICES LTD,"51,058.00",28/09/2017
Commercial,Customer Support Group,CSG Services Contract Payment,0060087896,CAPITA BUSINESS SERVICES LTD,"21,882.00",28/09/2017
Commercial,Customer Support Group,Fees and Charges,0080012326,REDACTED - PERSONAL DATA,250.00,07/09/2017
Commercial,Customer Support Group,Professional Services,0060051908,THE BARNETGROUP LIMITED,"72,059.79",04/09/2017
Commercial,Customer Support Group,Building Repairs & Maintenance,0060083698,ABEL ALARM COMPANY LIMITED,99.00,20/09/2017
Commercial,Customer Support Group,Water Services,0060087403,AFFINITY WATER LIMITED,95.27,14/09/2017
Commercial,Customer Support Group,Building Repairs & Maintenance,0060086730,AJS LTD,572.32,07/09/2017
Commercial,Customer Support Group,Rents,0060086221,CANAL & RIVER TRUST,"2,000.00",14/09/2017
Commercial,Customer Support Group,Water Services,0060086412,CASTLE WATER LTD,438.09,18/09/2017
Commercial,Customer Support Group,Water Services,0060086447,CASTLE WATER LTD,60.05,04/09/2017
Commercial,Customer Support Group,Cleaning and domestic material,0060082590,CHURCHILL CONTRACT SERVICES,294.16,28/09/2017
Commercial,Customer Support Group,Cleaning and domestic material,0060084759,CHURCHILL CONTRACT SERVICES,294.16,28/09/2017
Commercial,Customer Support Group,Cleaning and domestic material,0060086551,CHURCHILL CONTRACT SERVICES,294.16,28/09/2017
Commercial,Customer Support Group,Electricity,0060085710,E-ON ENERGY,221.69,07/09/2017
Commercial,Customer Support Group,Electricity,0060086126,E-ON ENERGY,6.93,07/09/2017
Commercial,Customer Support Group,Building Repairs & Maintenance,0060087630,HERTEL (UK) LTD,34.91,19/09/2017
Commercial,Customer Support Group,Building Repairs & Maintenance,0060087705,HERTEL (UK) LTD,34.91,20/09/2017
Commercial,Customer Support Group,Building Repairs & Maintenance,0060087735,HERTEL (UK) LTD,34.91,20/09/2017
Commercial,Customer Support Group,Building Repairs & Maintenance,0060087740,HERTEL (UK) LTD,34.91,20/09/2017
Commercial,Customer Support Group,Building Repairs & Maintenance,0060087742,HERTEL (UK) LTD,34.91,20/09/2017
Commercial,Customer Support Group,Building Repairs & Maintenance,0060087745,HERTEL (UK) LTD,34.91,20/09/2017
Commercial,Customer Support Group,Building Repairs & Maintenance,0060087748,HERTEL (UK) LTD,34.91,20/09/2017
Commercial,Customer Support Group,Building Repairs & Maintenance,0060087757,HERTEL (UK) LTD,34.91,20/09/2017
Commercial,Customer Support Group,Building Repairs & Maintenance,0060087760,HERTEL (UK) LTD,34.91,20/09/2017
Commercial,Customer Support Group,Building Repairs & Maintenance,0060087762,HERTEL (UK) LTD,34.91,20/09/2017
Commercial,Customer Support Group,Building Repairs & Maintenance,0060087766,HERTEL (UK) LTD,34.91,20/09/2017
Commercial,Customer Support Group,Building Repairs & Maintenance,0060087782,HERTEL (UK) LTD,34.91,20/09/2017
Commercial,Customer Support Group,Building Repairs & Maintenance,0060087784,HERTEL (UK) LTD,34.91,20/09/2017
Commercial,Customer Support Group,Building Repairs & Maintenance,0060087785,HERTEL (UK) LTD,34.91,20/09/2017
Commercial,Customer Support Group,Building Repairs & Maintenance,0060087787,HERTEL (UK) LTD,34.91,20/09/2017
Commercial,Customer Support Group,Building Repairs & Maintenance,0060087793,HERTEL (UK) LTD,34.91,20/09/2017
Commercial,Customer Support Group,Building Repairs & Maintenance,0060087804,HERTEL (UK) LTD,34.91,20/09/2017
Commercial,Customer Support Group,Building Repairs & Maintenance,0060087809,HERTEL (UK) LTD,34.91,20/09/2017
Commercial,Customer Support Group,Building Repairs & Maintenance,0060087824,HERTEL (UK) LTD,34.91,20/09/2017
Commercial,Customer Support Group,Gas,0060086409,KENT COUNTY COUNCIL (KCS),166.89,05/09/2017
Commercial,Customer Support Group,Gas,0060086414,KENT COUNTY COUNCIL (KCS),90.32,04/09/2017
Commercial,Customer Support Group,Gas,0060086426,KENT COUNTY COUNCIL (KCS),47.03,05/09/2017
Commercial,Customer Support Group,Gas,0060086436,KENT COUNTY COUNCIL (KCS),48.75,05/09/2017
Commercial,Customer Support Group,Gas,0060086438,KENT COUNTY COUNCIL (KCS),137.17,05/09/2017
Commercial,Customer Support Group,Gas,0060086443,KENT COUNTY COUNCIL (KCS),134.56,05/09/2017
Commercial,Customer Support Group,Electricity,0060085801,KENT COUNTY COUNCIL (KCS),190.42,07/09/2017
Commercial,Customer Support Group,Electricity,0060085853,KENT COUNTY COUNCIL (KCS),188.54,07/09/2017
Commercial,Customer Support Group,Electricity,0060085872,KENT COUNTY COUNCIL (KCS),107.02,14/09/2017
Commercial,Customer Support Group,Electricity,0060086212,KENT COUNTY COUNCIL (KCS),831.15,05/09/2017
Commercial,Customer Support Group,Electricity,0060086418,KENT COUNTY COUNCIL (KCS),571.99,14/09/2017
Commercial,Customer Support Group,Building Repairs & Maintenance,0060086687,LIFT & ENGINEERING SERVICES LTD,89.25,28/09/2017
Commercial,Customer Support Group,Building Repairs & Maintenance,0060086690,LIFT & ENGINEERING SERVICES LTD,89.25,28/09/2017
Commercial,Customer Support Group,Building Repairs & Maintenance,0060086712,LIFT & ENGINEERING SERVICES LTD,89.25,28/09/2017
Commercial,Customer Support Group,Building Repairs & Maintenance,0060086718,LIFT & ENGINEERING SERVICES LTD,66.94,28/09/2017
Commercial,Customer Support Group,Building Repairs & Maintenance,0060086726,LIFT & ENGINEERING SERVICES LTD,89.25,28/09/2017
Commercial,Customer Support Group,Building Repairs & Maintenance,0060086743,LIFT & ENGINEERING SERVICES LTD,66.94,28/09/2017
Commercial,Customer Support Group,Electricity,0060087945,NPOWER,867.44,22/09/2017
Commercial,Customer Support Group,Electricity,0060088020,NPOWER,616.56,22/09/2017
Commercial,Customer Support Group,Building Repairs & Maintenance,0060085463,RGE SERVICES,239.67,07/09/2017
Commercial,Customer Support Group,Building Repairs & Maintenance,0060085464,RGE SERVICES,219.31,07/09/2017
Commercial,Customer Support Group,Building Repairs & Maintenance,0060085473,RGE SERVICES,222.78,07/09/2017
Commercial,Customer Support Group,Building Repairs & Maintenance,0060086473,RGE SERVICES,186.00,05/09/2017
Commercial,Customer Support Group,Building Repairs & Maintenance,0060086499,RGE SERVICES,232.90,05/09/2017
Commercial,Customer Support Group,Building Repairs & Maintenance,0060086523,RGE SERVICES,112.17,05/09/2017
Commercial,Customer Support Group,Building Repairs & Maintenance,0060086525,RGE SERVICES,106.88,14/09/2017
Commercial,Customer Support Group,Building Repairs & Maintenance,0060086528,RGE SERVICES,62.00,05/09/2017
Commercial,Customer Support Group,Building Repairs & Maintenance,0060086643,RGE SERVICES,"5,171.00",20/09/2017
Commercial,Customer Support Group,Building Repairs & Maintenance,0060086751,RGE SERVICES,278.26,07/09/2017
Commercial,Customer Support Group,Building Repairs & Maintenance,0060088011,RGE SERVICES,25.65,22/09/2017
Commercial,Customer Support Group,Building Repairs & Maintenance,0060083626,S W BRUCE & CO LTD,"1,611.66",26/09/2017
Commercial,Customer Support Group,Building Repairs & Maintenance,0060085538,S W BRUCE & CO LTD,82.30,12/09/2017
Commercial,Customer Support Group,Building Repairs & Maintenance,0060085549,S W BRUCE & CO LTD,95.67,12/09/2017
Commercial,Customer Support Group,Building Repairs & Maintenance,0060085577,S W BRUCE & CO LTD,66.56,12/09/2017
Commercial,Customer Support Group,Building Repairs & Maintenance,0060085583,S W BRUCE & CO LTD,172.50,12/09/2017
Commercial,Customer Support Group,Building Repairs & Maintenance,0060085724,S W BRUCE & CO LTD,57.00,14/09/2017
Commercial,Customer Support Group,Building Repairs & Maintenance,0060085735,S W BRUCE & CO LTD,38.03,14/09/2017
Commercial,Customer Support Group,Building Repairs & Maintenance,0060085754,S W BRUCE & CO LTD,52.30,14/09/2017
Commercial,Customer Support Group,Building Repairs & Maintenance,0060085762,S W BRUCE & CO LTD,30.00,14/09/2017
Commercial,Customer Support Group,Building Repairs & Maintenance,0060086069,S W BRUCE & CO LTD,"2,303.45",14/09/2017
Commercial,Customer Support Group,Building Repairs & Maintenance,0060086118,S W BRUCE & CO LTD,133.68,14/09/2017
Commercial,Customer Support Group,Building Repairs & Maintenance,0060088186,S W BRUCE & CO LTD,147.95,27/09/2017
Commercial,Customer Support Group,Building Repairs & Maintenance,0060088192,S W BRUCE & CO LTD,580.00,27/09/2017
Commercial,Customer Support Group,Building Repairs & Maintenance,0060088194,S W BRUCE & CO LTD,"1,980.00",27/09/2017
Commercial,Customer Support Group,Building Repairs & Maintenance,0060085715,TECHNICAL SURFACES LTD,465.00,07/09/2017
Commercial,Customer Support Group,Building Repairs & Maintenance,0060085813,TECHNICAL SURFACES LTD,465.00,07/09/2017
Commercial,Customer Support Group,Gas,0060087121,TOTAL GAS & POWER LTD,989.08,21/09/2017
Commercial,Customer Support Group,Ttl IT & Comms,0060086809,TELEFONICA UK LTD,"1,187.47",18/09/2017
Commercial,Customer Support Group,Ttl IT & Comms,0060086880,TELEFONICA UK LTD,"1,172.81",18/09/2017
Commercial,Customer Support Group,Professional Services,0060087713,ROSSENDALES (COLLECT) LTD,322.83,22/09/2017
Commercial,Customer Support Group,Professional Services,0060087754,ROSSENDALES (COLLECT) LTD,206.42,21/09/2017
Commercial,Customer Support Group,Professional Services,0060087788,ROSSENDALES (COLLECT) LTD,258.94,20/09/2017
Commercial,Customer Support Group,Professional Services,0060087810,ROSSENDALES (COLLECT) LTD,73.02,20/09/2017
Commercial,Customer Support Group,Postage,0060085500,ROYAL MAIL GROUP LIMITED,107.45,06/09/2017
Commercial,Customer Support Group,Postage,0060086813,ROYAL MAIL GROUP LIMITED,52.00,08/09/2017
Commercial,Customer Support Group,Postage,0060086864,ROYAL MAIL GROUP LIMITED,219.08,08/09/2017
Commercial,Customer Support Group,Postage,0060087637,ROYAL MAIL GROUP LIMITED,130.01,19/09/2017
Commercial,Customer Support Group,Operational Leases - Equipment,0060078749,XEROX (UK) LTD,(107.22),29/09/2017
Commercial,Customer Support Group,Water Services,0060087108,ANGEL SPRINGS LTD,79.00,28/09/2017
Commercial,Customer Support Group,Other Services,0060086775,BLUE 9 SECURITY LIMITED,"22,773.84",13/09/2017
Commercial,Customer Support Group,Other Energy,0060088061,EDF ENERGY CUSTOMER FIELD SERVICES,254.00,25/09/2017
Commercial,Customer Support Group,Cleaning and domestic material,0060086897,HERTFORDSHIRE SUPPLIES   COUNTY CO,16.68,11/09/2017
Commercial,Customer Support Group,Cleaning and domestic material,0060086921,HERTFORDSHIRE SUPPLIES   COUNTY CO,52.90,11/09/2017
Commercial,Customer Support Group,Cleaning and domestic material,0060086931,HERTFORDSHIRE SUPPLIES   COUNTY CO,718.79,11/09/2017
Commercial,Customer Support Group,Equipment and Materials Purcha,0060086944,HERTFORDSHIRE SUPPLIES   COUNTY CO,2.00,11/09/2017
Commercial,Customer Support Group,Grounds maintenance,0060085880,RIBBEX UK LTD,904.25,07/09/2017
Commercial,Customer Support Group,Grounds maintenance,0060086364,RIBBEX UK LTD,904.25,07/09/2017
Commercial,Customer Support Group,CSG Services Contract Payment,0060081169,CAPITA BUSINESS SERVICES LTD,"12,656.53",26/09/2017
Commercial,Customer Support Group,CSG Services Contract Payment,0060086261,CAPITA BUSINESS SERVICES LTD,"174,117.77",07/09/2017
Commercial,Customer Support Group,CSG Services Contract Payment,0060086481,CAPITA BUSINESS SERVICES LTD,"21,339.94",14/09/2017
Commercial,HB LAW,Legal and Court Fees,0060086269,LONDON BOROUGH OF HARROW,"976,625.00",26/09/2017
Commercial,Housing Needs Resources,Other Services,0060085627,THE BARNETGROUP LIMITED,"12,642.54",05/09/2017
Commercial,Housing Needs Resources,Other Services,0060085654,THE BARNETGROUP LIMITED,"23,800.61",07/09/2017
Commercial,Housing Needs Resources,Miscellaneous Expenses,0060088127,THE BARNETGROUP LIMITED,"14,943.00",26/09/2017
Commercial,Housing Needs Resources,Other Agencies - Third Party P,0060085629,THE BARNETGROUP LIMITED,"3,979.90",05/09/2017
Commercial,HRA,Consultants Fees,0060086204,P P C R ASSOCIATES LTD,695.36,12/09/2017
Commercial,HRA,Consultants Fees,0060085177,PRIORITY ESTATES PROJECT LTD,"1,955.80",06/09/2017
Commercial,HRA,Consultants Fees,0060087857,PRIORITY ESTATES PROJECT LTD,"1,327.15",21/09/2017
Commercial,HRA,Consultants Fees,0060088125,THE BARNETGROUP LIMITED,61.20,26/09/2017
Commercial,HRA,Consultants Fees,0060088129,THE BARNETGROUP LIMITED,693.00,26/09/2017
Commercial,HRA,Consultants Fees,0060088150,THE BARNETGROUP LIMITED,"4,354.00",26/09/2017
Commercial,HRA,Other Services,0060083935,BARNET FC COMMUNITY TRUST,20.00,11/09/2017
Commercial,HRA,Building Repairs & Maintenance,0080012403,E ON (GAS),591.48,29/09/2017
Commercial,HRA,Consultants Fees,0060085969,PRIORITY ESTATES PROJECT LTD,"2,724.15",19/09/2017
Commercial,HRA,Agency/Interim Non Hays,0060082814,CHILD'S HILL BAPTIST CHURCH,200.00,20/09/2017
Commercial,HRA,Private Contractors - Third Pa,0080012721,REDACTED - PERSONAL DATA,"3,500.00",29/09/2017
Commercial,HRA,Private Contractors - Third Pa,0080012483,DERRICK BRIDGES SOLICITORS,250.00,14/09/2017
Commercial,HRA,Private Contractors - Third Pa,0080012492,DERRICK BRIDGES SOLICITORS,"1,000.00",14/09/2017
Commercial,HRA,Private Contractors - Third Pa,0080012495,DERRICK BRIDGES SOLICITORS,"1,000.00",14/09/2017
Commercial,HRA,Private Contractors - Third Pa,0080012482,DERRICK BRIDGES SOLICITORS,"1,000.00",14/09/2017
Commercial,HRA,Private Contractors - Third Pa,0080012497,EVERATT'S CLI,"1,000.00",14/09/2017
Commercial,HRA,Private Contractors - Third Pa,0080012499,ELLICOTT'S LL,"1,000.00",14/09/2017
Commercial,Parking & Infrastructure,Equipment and Materials Purcha,0060087104,BARNET LOCK CENTRE LTD.,"2,077.75",12/09/2017
Commercial,Parking & Infrastructure,Equipment and Materials Repair,0060087786,RM COUNTRYSIDE SERVICES LTD,"31,000.00",27/09/2017
Commercial,Parking & Infrastructure,Water Services,0060082885,ANGEL SPRINGS LTD,32.00,25/09/2017
Commercial,Parking & Infrastructure,Equipment and Materials Purcha,0060086386,BARNET LOCK CENTRE LTD.,135.70,01/09/2017
Commercial,Parking & Infrastructure,Equipment and Materials Purcha,0060087994,BARNET LOCK CENTRE LTD.,148.90,22/09/2017
Commercial,Parking & Infrastructure,Equipment and Materials Purcha,0060080646,GREENHAM TRADING LIMITED,355.20,29/09/2017
Commercial,Parking & Infrastructure,Equipment and Materials Purcha,0060085722,GREENHAM TRADING LIMITED,995.04,13/09/2017
Commercial,Parking & Infrastructure,Equipment and Materials Purcha,0060085891,GREENHAM TRADING LIMITED,73.00,15/09/2017
Commercial,Parking & Infrastructure,Equipment and Materials Purcha,0060085915,GREENHAM TRADING LIMITED,10.80,14/09/2017
Commercial,Parking & Infrastructure,Equipment and Materials Purcha,0060086280,LAFARGE TARMAC TRADING LIMITED,121.02,25/09/2017
Commercial,Parking & Infrastructure,Stationery,0040002447,OFFICE DEPOT UK LTD,4.10,22/09/2017
Commercial,Parking & Infrastructure,Stationery,0040002457,OFFICE DEPOT UK LTD,180.18,27/09/2017
Commercial,Parking & Infrastructure,Stationery,0040002541,OFFICE DEPOT UK LTD,101.80,28/09/2017
Commercial,Parking & Infrastructure,Stationery,0040002570,OFFICE DEPOT UK LTD,180.18,28/09/2017
Commercial,Parking & Infrastructure,Stationery,0040002591,OFFICE DEPOT UK LTD,180.18,28/09/2017
Commercial,Parking & Infrastructure,Stationery,0040002589,OFFICE DEPOT UK LTD,1.64,28/09/2017
Commercial,Parking & Infrastructure,Equipment and Materials Purcha,0060085156,RENNICK UK LTD,570.52,05/09/2017
Commercial,Parking & Infrastructure,Equipment and Materials Purcha,0060086596,WM SMITH & SONS LIMITED,373.77,07/09/2017
Commercial,Parking & Infrastructure,Other Services,0060084614,LONDON COUNCILS,"40,263.44",28/09/2017
Commercial,Parking & Infrastructure,Professional Services,0060084944,NSL LTD,"14,354.41",26/09/2017
Commercial,Parking & Infrastructure,Professional Services,0060085023,NSL LTD,"7,733.56",26/09/2017
Commercial,Parking & Infrastructure,Professional Services,0060086153,NSL LTD,"5,995.31",26/09/2017
Commercial,Parking & Infrastructure,Professional Services,0060086177,NSL LTD,"10,926.67",26/09/2017
Commercial,Parking & Infrastructure,Professional Services,0060086184,NSL LTD,"11,990.62",26/09/2017
Commercial,Parking & Infrastructure,Professional Services,0060086187,NSL LTD,"328,030.78",26/09/2017
Commercial,Parking & Infrastructure,Professional Services,0060086190,NSL LTD,"328,030.78",26/09/2017
Commercial,Parking & Infrastructure,Professional Services,0060086201,NSL LTD,"1,529.97",12/09/2017
Commercial,Parking & Infrastructure,Professional Services,0060086342,NSL LTD,"321,286.98",01/09/2017
Commercial,Parking & Infrastructure,Professional Services,0060086388,NSL LTD,"2,358.18",01/09/2017
Commercial,Parking & Infrastructure,Professional Services,0060086395,NSL LTD,"947,457.48",01/09/2017
Commercial,Parking & Infrastructure,Professional Services,0060086468,NSL LTD,243.00,12/09/2017
Commercial,Parking & Infrastructure,Other Services,0060086357,NSL LTD,"2,503.80",01/09/2017
Commercial,Parking & Infrastructure,Other Services,0060086399,NSL LTD,"2,133.90",01/09/2017
Commercial,Parking & Infrastructure,Software Licences & Support,0060086398,NSL LTD,"35,538.88",01/09/2017
Commercial,Parking & Infrastructure,Software Licences & Support,0060086400,NSL LTD,"8,470.13",01/09/2017
Commercial,Parking & Infrastructure,Miscellaneous Expenses,0060085876,OPENVIEW SECURITY SOLUTIONS LTD,"51,107.43",14/09/2017
Commercial,Parking & Infrastructure,Miscellaneous Expenses,0060086117,OPENVIEW SECURITY SOLUTIONS LTD,"3,309.20",14/09/2017
Commercial,Parking & Infrastructure,Miscellaneous Expenses,0060086351,OPENVIEW SECURITY SOLUTIONS LTD,"1,450.00",21/09/2017
Commercial,Parking & Infrastructure,Other Services,0060083672,PARKEON LIMITED,"2,347.04",28/09/2017
Commercial,Parking & Infrastructure,Other Services,0060085206,PARKEON LIMITED,"7,886.70",07/09/2017
Commercial,Parking & Infrastructure,Other Services,0060086004,PARKEON LIMITED,"1,769.00",13/09/2017
Commercial,Parking & Infrastructure,Other Services,0060086182,PARKEON LIMITED,810.00,14/09/2017
Commercial,Parking & Infrastructure,Other Services,0060086196,PARKEON LIMITED,"2,411.60",14/09/2017
Commercial,Parking & Infrastructure,Advertising,0060087771,TMP (UK) LTD,778.70,28/09/2017
Commercial,Parking & Infrastructure,Other Services,0010013876,BARNET LIGHTING SERVICES LTD,"(34,569.00)",11/09/2017
Commercial,Parking & Infrastructure,Electricity,0060086405,BARNET LIGHTING SERVICES LTD,"384,747.47",04/09/2017
Commercial,Regional Enterprise,Other Services,0060083913,CONWAY AECOM LTD,"21,165.24",27/09/2017
Commercial,Regional Enterprise,Other Services,0060087301,CONWAY AECOM LTD,"21,165.24",28/09/2017
Commercial,Regional Enterprise,Other Services,0060086896,ENVIRONMENT AGENCY,"11,500.00",11/09/2017
Commercial,Regional Enterprise,Other Services,0060083067,AFFINITY WATER LIMITED,28.20,22/09/2017
Commercial,Regional Enterprise,Other Services,0060083166,AFFINITY WATER LIMITED,50.00,29/09/2017
Commercial,Regional Enterprise,Other Services,0060083975,AFFINITY WATER LIMITED,48.48,22/09/2017
Commercial,Regional Enterprise,Other Services,0060084363,AFFINITY WATER LIMITED,26.37,22/09/2017
Commercial,Regional Enterprise,Other Services,0060084373,AFFINITY WATER LIMITED,128.51,22/09/2017
Commercial,Regional Enterprise,Other Services,0060084381,AFFINITY WATER LIMITED,24.69,22/09/2017
Commercial,Regional Enterprise,Other Services,0060084423,AFFINITY WATER LIMITED,172.17,07/09/2017
Commercial,Regional Enterprise,Other Services,0060085527,AFFINITY WATER LIMITED,50.00,22/09/2017
Commercial,Regional Enterprise,Other Services,0060085531,AFFINITY WATER LIMITED,50.00,22/09/2017
Commercial,Regional Enterprise,Other Services,0060085848,AFFINITY WATER LIMITED,50.00,22/09/2017
Commercial,Regional Enterprise,Other Services,0060085873,AFFINITY WATER LIMITED,50.00,22/09/2017
Commercial,Regional Enterprise,Other Services,0060087911,AFFINITY WATER LIMITED,32.64,22/09/2017
Commercial,Regional Enterprise,Other Services,0060085433,CASTLE WATER LTD,185.82,28/09/2017
Commercial,Regional Enterprise,Other Services,0060085467,CASTLE WATER LTD,76.61,28/09/2017
Commercial,Regional Enterprise,Other Services,0060085517,CASTLE WATER LTD,94.08,28/09/2017
Commercial,Regional Enterprise,Other Services,0060087044,CASTLE WATER LTD,81.85,28/09/2017
Commercial,Regional Enterprise,Other Services,0060087050,CASTLE WATER LTD,5.81,28/09/2017
Commercial,Regional Enterprise,Other Services,0060087115,CASTLE WATER LTD,0.57,28/09/2017
Commercial,Regional Enterprise,Other Services,0060086634,J C DECAUX UK LTD,"19,619.46",20/09/2017
Commercial,Regional Enterprise,Advertising,0060085090,TMP (UK) LTD,422.00,11/09/2017
Commercial,Regional Enterprise,Advertising,0060085103,TMP (UK) LTD,422.00,11/09/2017
Commercial,Regional Enterprise,Advertising,0060085107,TMP (UK) LTD,422.00,11/09/2017
Commercial,Regional Enterprise,Advertising,0060085482,TMP (UK) LTD,342.00,11/09/2017
Commercial,Regional Enterprise,Advertising,0060085510,TMP (UK) LTD,342.00,11/09/2017
Commercial,Regional Enterprise,Advertising,0060085522,TMP (UK) LTD,342.00,11/09/2017
Commercial,Regional Enterprise,Advertising,0060085890,TMP (UK) LTD,661.40,12/09/2017
Commercial,Regional Enterprise,Advertising,0060085905,TMP (UK) LTD,342.00,07/09/2017
Commercial,Regional Enterprise,Advertising,0060085929,TMP (UK) LTD,661.40,08/09/2017
Commercial,Regional Enterprise,Advertising,0060085942,TMP (UK) LTD,342.00,07/09/2017
Commercial,Regional Enterprise,Advertising,0060086274,TMP (UK) LTD,422.00,08/09/2017
Commercial,Regional Enterprise,Advertising,0060086321,TMP (UK) LTD,581.40,20/09/2017
Commercial,Regional Enterprise,Advertising,0060086331,TMP (UK) LTD,581.40,08/09/2017
Commercial,Regional Enterprise,Advertising,0060086335,TMP (UK) LTD,655.60,14/09/2017
Commercial,Regional Enterprise,Advertising,0060086446,TMP (UK) LTD,422.00,07/09/2017
Commercial,Regional Enterprise,Advertising,0060086589,TMP (UK) LTD,615.60,18/09/2017
Commercial,Regional Enterprise,Advertising,0060086605,TMP (UK) LTD,422.00,08/09/2017
Commercial,Regional Enterprise,Advertising,0060086626,TMP (UK) LTD,524.60,07/09/2017
Commercial,Regional Enterprise,Advertising,0060086648,TMP (UK) LTD,422.00,20/09/2017
Commercial,Regional Enterprise,Advertising,0060086649,TMP (UK) LTD,342.00,07/09/2017
Commercial,Regional Enterprise,Advertising,0060087792,TMP (UK) LTD,444.60,25/09/2017
Commercial,Regional Enterprise,Advertising,0060087370,TMP (UK) LTD,990.80,25/09/2017
Commercial,Regional Enterprise,Advertising,0060087781,TMP (UK) LTD,949.80,20/09/2017
Commercial,Regional Enterprise,Other Services,0060085456,RM COUNTRYSIDE SERVICES LTD,"1,080.00",05/09/2017
Commercial,Regional Enterprise,Other Services,0060088170,BARNET LIGHTING SERVICES LTD,12.80,29/09/2017
Commercial,Regional Enterprise,Other Services,0060087053,CONWAY AECOM LTD,"25,338.02",14/09/2017
Commercial,Regional Enterprise,Other Services,0060085515,JOHN VINCENT SURVEYS LTD,"2,580.00",20/09/2017
Commercial,Regional Enterprise,Other Services,0060087923,RM COUNTRYSIDE SERVICES LTD,245.00,22/09/2017
Commercial,Regional Enterprise,Other Services,0060086569,SARG ENGINEERING (UK) LIMITED,"27,000.00",22/09/2017
Commercial,Regional Enterprise,Other Services,0060053942,CONWAY AECOM LTD,11.87,04/09/2017
Commercial,Regional Enterprise,Other Services,0060085297,CONWAY AECOM LTD,19.97,05/09/2017
Commercial,Regional Enterprise,Advertising,0060085475,TMP (UK) LTD,"1,120.80",14/09/2017
Commercial,Regional Enterprise,Equipment and Materials Purcha,0080012540,REDACTED - PERSONAL DATA,735.00,26/09/2017
Commercial,Regional Enterprise,Equipment and Materials Purcha,0080012542,REDACTED - PERSONAL DATA,280.00,26/09/2017
Commercial,Regional Enterprise,Professional Services,0060086760,AFFINITY WATER LIMITED,309.06,07/09/2017
Commercial,Regional Enterprise,Professional Services,0060086209,PUBLIC ANALYST SCIENTIFIC SERVS. LT,87.50,12/09/2017
Commercial,Regional Enterprise,Professional Services,0060086647,PUBLIC ANALYST SCIENTIFIC SERVS. LT,198.00,13/09/2017
Commercial,Regional Enterprise,Other Services,0060087032,CONWAY AECOM LTD,109.88,12/09/2017
Commercial,Regional Enterprise,Other Services,0060087041,CONWAY AECOM LTD,274.71,12/09/2017
Commercial,Regional Enterprise,Other Services,0060087078,CONWAY AECOM LTD,191.30,28/09/2017
Commercial,Regional Enterprise,Other Services,0060087081,CONWAY AECOM LTD,191.30,12/09/2017
Commercial,Regional Enterprise,Other Services,0060087123,CONWAY AECOM LTD,148.35,12/09/2017
Commercial,Regional Enterprise,Other Services,0060087130,CONWAY AECOM LTD,164.83,12/09/2017
Commercial,Regional Enterprise,Other Services,0060088058,CONWAY AECOM LTD,179.04,25/09/2017
Commercial,Regional Enterprise,Other Services,0060088339,CONWAY AECOM LTD,85.86,29/09/2017
Commercial,Regional Enterprise,Other Services,0060088364,CONWAY AECOM LTD,73.46,29/09/2017
Commercial,Regional Enterprise,Other Services,0060088383,CONWAY AECOM LTD,120.64,29/09/2017
Commercial,Regional Enterprise,Other Services,0060088397,CONWAY AECOM LTD,120.64,29/09/2017
Commercial,Regional Enterprise,Other Services,0010013825,CONWAY AECOM LTD,832.40,28/09/2017
Commercial,Regional Enterprise,Other Services,0010013826,CONWAY AECOM LTD,"1,481.22",28/09/2017
Commercial,Regional Enterprise,Other Services,0010013827,CONWAY AECOM LTD,886.20,28/09/2017
Commercial,Regional Enterprise,Other Services,0010013829,CONWAY AECOM LTD,949.50,28/09/2017
Commercial,Regional Enterprise,Other Services,0010013830,CONWAY AECOM LTD,626.67,28/09/2017
Commercial,Regional Enterprise,Other Services,0060085317,CONWAY AECOM LTD,891.26,28/09/2017
Commercial,Regional Enterprise,Other Services,0060085335,CONWAY AECOM LTD,949.50,05/09/2017
Commercial,Regional Enterprise,Other Services,0060085803,CONWAY AECOM LTD,928.40,05/09/2017
Commercial,Regional Enterprise,Other Services,0060086996,CONWAY AECOM LTD,"1,101.42",12/09/2017
Commercial,Regional Enterprise,Other Services,0060087014,CONWAY AECOM LTD,601.35,12/09/2017
Commercial,Regional Enterprise,Other Services,0060087023,CONWAY AECOM LTD,417.78,12/09/2017
Commercial,Regional Enterprise,Other Services,0060087027,CONWAY AECOM LTD,949.50,12/09/2017
Commercial,Regional Enterprise,Other Services,0060087039,CONWAY AECOM LTD,949.50,28/09/2017
Commercial,Regional Enterprise,Other Services,0060087043,CONWAY AECOM LTD,"1,063.44",12/09/2017
Commercial,Regional Enterprise,Other Services,0060087058,CONWAY AECOM LTD,272.19,12/09/2017
Commercial,Regional Enterprise,Other Services,0060087074,CONWAY AECOM LTD,"1,240.68",12/09/2017
Commercial,Regional Enterprise,Other Services,0060087107,CONWAY AECOM LTD,727.95,12/09/2017
Commercial,Regional Enterprise,Other Services,0060087113,CONWAY AECOM LTD,658.32,13/09/2017
Commercial,Regional Enterprise,Other Services,0060087127,CONWAY AECOM LTD,696.30,12/09/2017
Commercial,Regional Enterprise,Other Services,0060088099,CONWAY AECOM LTD,455.76,26/09/2017
Commercial,Regional Enterprise,Grant Payments,0080012506,REDACTED - PERSONAL DATA,"1,650.00",14/09/2017
Commercial,Regional Enterprise,Grant Payments,0080012637,MCP PROPERTY SERVICES LTD,"2,580.00",28/09/2017
Commercial,Regional Enterprise,Grant Payments,0080012640,MCP PROPERTY SERVICES LTD,"4,620.00",28/09/2017
Commercial,Regional Enterprise,Grant Payments,0080012324,MULTIGREEN LT,540.00,07/09/2017
Commercial,Regional Enterprise,Grant Payments,0080012591,WSW PROJECTS L,"9,300.83",21/09/2017
Commercial,Regional Enterprise,Grant Payments,0080012275,E.M.S. LIFTS L,199.37,05/09/2017
Commercial,Regional Enterprise,Fees and Charges,0020034683,REDACTED - PERSONAL DATA,483.00,15/09/2017
Commercial,Regional Enterprise,Consultants Fees,0060086236,GOWLING WLG,930.00,05/09/2017
Commercial,Regional Enterprise,Advertising,0060088332,TMP (UK) LTD,"1,476.40",29/09/2017
Commercial,Regional Enterprise,Consultants Fees,0060088379,EVERSHEDS LLP,"4,797.83",29/09/2017
Commercial,Regional Enterprise,Consultants Fees,0060086222,GOWLING WLG,"1,136.27",05/09/2017
Commercial,Regional Enterprise,Consultants Fees,0060086228,GOWLING WLG,"1,604.49",05/09/2017
Commercial,Regional Enterprise,Consultants Fees,0060086242,GOWLING WLG,206.42,05/09/2017
Commercial,Regional Enterprise,Consultants Fees,0060086251,GOWLING WLG,"1,911.49",05/09/2017
Commercial,Regional Enterprise,Consultants Fees,0060086254,GOWLING WLG,"1,096.42",05/09/2017
Commercial,Regional Enterprise,Consultants Fees,0060086259,GOWLING WLG,"9,219.34",27/09/2017
Commercial,Regional Enterprise,RE Services Contract Payment,0010013879,RE (REGIONAL ENTERPRISE) LIMITED,"(4,608.37)",26/09/2017
Commercial,Regional Enterprise,RE Services Contract Payment,0060084044,RE (REGIONAL ENTERPRISE) LIMITED,"17,695.77",01/09/2017
Commercial,Regional Enterprise,RE Services Contract Payment,0060086322,RE (REGIONAL ENTERPRISE) LIMITED,"25,000.00",07/09/2017
Commercial,Regional Enterprise,RE Services Contract Payment,0060086376,RE (REGIONAL ENTERPRISE) LIMITED,"379,798.00",12/09/2017
Commercial,Regional Enterprise,RE Services Contract Payment,0060088370,RE (REGIONAL ENTERPRISE) LIMITED,"23,757.00",29/09/2017
Commercial,Regional Enterprise,Cleaning and domestic material,0060082697,CHURCHILL CONTRACT SERVICES,488.56,29/09/2017
Commercial,Regional Enterprise,RE Services Contract Payment,0060084063,RE (REGIONAL ENTERPRISE) LIMITED,"167,500.00",26/09/2017
Commercial,Regional Enterprise,Other Local Authorities - Thir,ENVIRONMENTAGENCY,ENVIRONMENT AGENCY,"78,860.00",21/09/2017
Commercial,Regional Enterprise,Grant Payments,0080012096,AMWELL CONSTRUCTION LTD,"30,000.00",01/09/2017
Commercial,Regional Enterprise,Grant Payments,0080012464,AMWELL CONSTRUCTION LTD,"5,203.00",13/09/2017
Commercial,Regional Enterprise,Grant Payments,0080012490,AMWELL CONSTRUCTION LTD,"5,575.00",14/09/2017
Commercial,Regional Enterprise,Grant Payments,0080012561,AMWELL CONSTRUCTION LTD,"7,610.86",21/09/2017
Commercial,Regional Enterprise,Grant Payments,0080012586,AMWELL CONSTRUCTION LTD,"7,503.00",21/09/2017
Commercial,Regional Enterprise,Grant Payments,0080012288,ARTHUR J. FERRYMAN ASSOCIATES,250.44,07/09/2017
Commercial,Regional Enterprise,Grant Payments,0080012327,ARTHUR J. FERRYMAN ASSOCIATES,"1,440.00",07/09/2017
Commercial,Regional Enterprise,Grant Payments,0080012342,ARTHUR J. FERRYMAN ASSOCIATES,"1,020.00",11/09/2017
Commercial,Regional Enterprise,Grant Payments,0080012672,ARTHUR J. FERRYMAN ASSOCIATES,"2,820.00",27/09/2017
Commercial,Regional Enterprise,Grant Payments,0080012234,DP BUILDERS DISABLED ADAPTATIONS,"6,492.97",07/09/2017
Commercial,Regional Enterprise,Grant Payments,0080012283,DP BUILDERS DISABLED ADAPTATIONS,780.00,13/09/2017
Commercial,Regional Enterprise,Grant Payments,0080012317,DP BUILDERS DISABLED ADAPTATIONS,"27,940.50",14/09/2017
Commercial,Regional Enterprise,Grant Payments,0080012348,DP BUILDERS DISABLED ADAPTATIONS,"13,564.00",14/09/2017
Commercial,Regional Enterprise,Grant Payments,0080012354,DP BUILDERS DISABLED ADAPTATIONS,"5,305.00",14/09/2017
Commercial,Regional Enterprise,Grant Payments,0080012387,DP BUILDERS DISABLED ADAPTATIONS,917.04,15/09/2017
Commercial,Regional Enterprise,Grant Payments,0080012399,DP BUILDERS DISABLED ADAPTATIONS,"6,056.00",15/09/2017
Commercial,Regional Enterprise,Grant Payments,0080012583,DP BUILDERS DISABLED ADAPTATIONS,"21,361.30",27/09/2017
Commercial,Regional Enterprise,Grant Payments,0080012235,REDACTED - PERSONAL DATA,"5,732.00",01/09/2017
Commercial,Regional Enterprise,Grant Payments,0080012285,REDACTED - PERSONAL DATA,"5,748.00",07/09/2017
Commercial,Regional Enterprise,Grant Payments,0080012363,REDACTED - PERSONAL DATA,"6,979.00",11/09/2017
Commercial,Regional Enterprise,Grant Payments,0080012353,H D PROPERTY SERVICES LTD,"5,302.00",11/09/2017
Commercial,Regional Enterprise,Grant Payments,0080012489,H D PROPERTY SERVICES LTD,"1,986.00",14/09/2017
Commercial,Regional Enterprise,Grant Payments,0080012409,MCP PROPERTY SERVICES LTD,"4,140.00",20/09/2017
Commercial,Regional Enterprise,Grant Payments,0080012410,MCP PROPERTY SERVICES LTD,"4,920.00",20/09/2017
Commercial,Regional Enterprise,Grant Payments,0080012286,RIDLEY ELECTR,"3,609.00",07/09/2017
Commercial,Regional Enterprise,Grant Payments,0080012465,LINK DESIGN LT,66.00,13/09/2017
Commercial,Regional Enterprise,Grant Payments,0080012607,ABBEY BUILDER,"5,119.00",21/09/2017
Commercial,Regional Enterprise,Grant Payments,0080012670,CJM BUILDINGS,"18,000.00",26/09/2017
Commercial,Regional Enterprise,Grant Payments,0080012671,CJM BUILDINGS,"18,000.00",26/09/2017
Commercial,Regional Enterprise,Grant Payments,0080012634,SOUTH HERTFORDSHIRE,"9,795.00",22/09/2017
Commercial,Regional Enterprise,Grant Payments,0080012233,STANNAH STAIRLIFTS LTD,"4,806.00",01/09/2017
Commercial,Regional Enterprise,Grant Payments,0080012252,STANNAH STAIRLIFTS LTD,"10,998.00",01/09/2017
Commercial,Regional Enterprise,Grant Payments,0080012310,STANNAH STAIRLIFTS LTD,"1,123.76",07/09/2017
Commercial,Regional Enterprise,Grant Payments,0080012401,STANNAH STAIRLIFTS LTD,"14,054.00",13/09/2017
Commercial,Regional Enterprise,Grant Payments,0080012629,REDACTED - PERSONAL DATA,"4,116.00",22/09/2017
Commercial,Regional Enterprise,Other Services,0060087099,CONWAY AECOM LTD,"11,961.79",21/09/2017
Commercial,Regional Enterprise,Other Services,0060053102,CONWAY AECOM LTD,"7,096.79",06/09/2017
Commercial,Regional Enterprise,Other Services,0060053174,CONWAY AECOM LTD,"35,537.13",07/09/2017
Commercial,Regional Enterprise,Other Services,0060053182,CONWAY AECOM LTD,"6,239.18",06/09/2017
Commercial,Regional Enterprise,Other Services,0060058609,CONWAY AECOM LTD,"4,488.05",07/09/2017
Commercial,Regional Enterprise,Other Services,0060085846,CONWAY AECOM LTD,"60,158.13",07/09/2017
Commercial,Regional Enterprise,Other Services,0060080628,MILL HILL COUNTY HIGH SCHOOL,"3,000.00",28/09/2017
Commercial,Regional Enterprise,Other Services,0060081560,PARKFIELD ACADEMY,"3,000.00",28/09/2017
Commercial,Regional Enterprise,Other Services,0060081558,LONDON BUSES SERVICES LIMITED,"2,131.49",04/09/2017
Commercial,Regional Enterprise,Other Services,0060086993,TRAFFIC SURVEY PARTNERS (TSP) LTD,340.00,12/09/2017
Commercial,Regional Enterprise,Other Services,0060080608,MILLBROOK PARK PRIMARY SCHOOL,800.00,29/09/2017
Commercial,Regional Enterprise,Other Services,0060080676,WHITEFIELD SCHOOL ACADEMY TRUST CO.,"5,000.00",28/09/2017
Commercial,Regional Enterprise,Other Services,0060078708,GRASVENOR AVENUE INFANT SCHOOL (ACA,"1,000.00",28/09/2017
Commercial,Regional Enterprise,Other Services,0060080167,RIMON JEWISH PRIMARY SCHOOL,"1,000.00",28/09/2017
Commercial,Regional Enterprise,Other Services,0060088154,CONWAY AECOM LTD,"1,061.10",27/09/2017
Commercial,Regional Enterprise,Other Services,0060088156,CONWAY AECOM LTD,"1,358.76",28/09/2017
Commercial,Regional Enterprise,Other Services,0060088190,CONWAY AECOM LTD,462.72,27/09/2017
Commercial,Regional Enterprise,Other Services,0060088191,CONWAY AECOM LTD,737.21,27/09/2017
Commercial,Regional Enterprise,Other Services,0060088195,CONWAY AECOM LTD,"2,425.68",27/09/2017
Commercial,Regional Enterprise,Other Services,0060088230,CONWAY AECOM LTD,"1,335.59",27/09/2017
Commercial,Regional Enterprise,Other Services,0060055799,CONWAY AECOM LTD,"3,448.50",29/09/2017
Commercial,Regional Enterprise,Other Services,0060055864,CONWAY AECOM LTD,"3,039.67",29/09/2017
Commercial,Regional Enterprise,Other Services,0060085245,CONWAY AECOM LTD,"8,522.32",28/09/2017
Commercial,Regional Enterprise,Other Services,0060088381,CONWAY AECOM LTD,363.91,29/09/2017
Commercial,Regional Enterprise,Other Services,0060081470,LONDON BUSES SERVICES LIMITED,827.98,04/09/2017
Commercial,Regional Enterprise,Other Services,0060087727,CYCLE CONFIDENT LTD,"5,760.42",28/09/2017
Commercial,Regional Enterprise,Other Services,0060087330,SUSTRANS LTD,"30,000.00",28/09/2017
Commercial,Regional Enterprise,Other Services,0060087310,SUSTRANS LTD,"30,000.00",28/09/2017
Commercial,Regional Enterprise,Other Services,0060086434,BRIGHT KIDZ,309.60,20/09/2017
Commercial,Regional Enterprise,Other Services,0060087006,TRAFFIC SURVEY PARTNERS (TSP) LTD,880.00,12/09/2017
Commercial,Regional Enterprise,Other Services,0060088159,BARNET LIGHTING SERVICES LTD,"10,553.27",29/09/2017
Commercial,Regional Enterprise,Other Services,0060087266,BARNET LIGHTING SERVICES LTD,"9,826.81",13/09/2017
Commercial,Regional Enterprise,Other Services,0060087036,CONWAY AECOM LTD,"47,450.92",21/09/2017
Commercial,Regional Enterprise,Other Services,0060087135,CONWAY AECOM LTD,"3,191.44",28/09/2017
Commercial,Regional Enterprise,Other Services,0060087064,TRAFFIC SURVEY PARTNERS (TSP) LTD,600.00,12/09/2017
Commercial,Regional Enterprise,Other Services,0060085268,CONWAY AECOM LTD,"6,164.64",04/09/2017
Commercial,Regional Enterprise,Other Services,0060088221,CONWAY AECOM LTD,"22,481.60",28/09/2017
Commercial,Regional Enterprise,Other Services,0060082104,CONWAY AECOM LTD,"6,913.75",01/09/2017
Commercial,Regional Enterprise,Other Services,0060086532,CONWAY AECOM LTD,909.37,07/09/2017
Commercial,Regional Enterprise,Other Services,0060086536,CONWAY AECOM LTD,"1,423.80",07/09/2017
Commercial,Regional Enterprise,Other Services,0060086538,CONWAY AECOM LTD,"6,678.35",07/09/2017
Commercial,Regional Enterprise,Other Services,0060086539,CONWAY AECOM LTD,"1,009.10",11/09/2017
Commercial,Regional Enterprise,Other Services,0060086540,CONWAY AECOM LTD,92.05,11/09/2017
Commercial,Regional Enterprise,Other Services,0060086553,CONWAY AECOM LTD,440.27,11/09/2017
Commercial,Regional Enterprise,Other Services,0060086554,CONWAY AECOM LTD,"15,228.50",14/09/2017
Commercial,Regional Enterprise,Other Services,0060086565,CONWAY AECOM LTD,481.63,07/09/2017
Commercial,Regional Enterprise,Other Services,0060086567,CONWAY AECOM LTD,"3,737.76",13/09/2017
Commercial,Regional Enterprise,Other Services,0060086577,CONWAY AECOM LTD,"10,017.54",07/09/2017
Commercial,Regional Enterprise,Other Services,0060086582,CONWAY AECOM LTD,"34,293.25",14/09/2017
Commercial,Regional Enterprise,Other Services,0060086587,CONWAY AECOM LTD,"16,321.53",19/09/2017
Commercial,Regional Enterprise,Other Services,0060086588,CONWAY AECOM LTD,"11,164.43",19/09/2017
Commercial,Regional Enterprise,Other Services,0060086591,CONWAY AECOM LTD,"31,196.10",14/09/2017
Commercial,Regional Enterprise,Other Services,0060086593,CONWAY AECOM LTD,"1,048.07",07/09/2017
Commercial,Regional Enterprise,Other Services,0060086600,CONWAY AECOM LTD,"4,559.40",07/09/2017
Commercial,Regional Enterprise,Other Services,0060086604,CONWAY AECOM LTD,39.36,11/09/2017
Commercial,Regional Enterprise,Other Services,0060086609,CONWAY AECOM LTD,"2,817.18",11/09/2017
Commercial,Regional Enterprise,Other Services,0060086612,CONWAY AECOM LTD,"1,043.45",07/09/2017
Commercial,Regional Enterprise,Other Services,0060086614,CONWAY AECOM LTD,"4,505.41",07/09/2017
Commercial,Regional Enterprise,Other Services,0060086615,CONWAY AECOM LTD,700.68,07/09/2017
Commercial,Regional Enterprise,Other Services,0060086619,CONWAY AECOM LTD,"11,684.94",19/09/2017
Commercial,Regional Enterprise,Other Services,0060086620,CONWAY AECOM LTD,"3,603.94",07/09/2017
Commercial,Regional Enterprise,Other Services,0060086629,CONWAY AECOM LTD,"2,817.70",07/09/2017
Commercial,Regional Enterprise,Other Services,0060086632,CONWAY AECOM LTD,46.63,11/09/2017
Commercial,Regional Enterprise,Other Services,0060086633,CONWAY AECOM LTD,"2,529.66",07/09/2017
Commercial,Regional Enterprise,Other Services,0060086637,CONWAY AECOM LTD,"12,181.84",14/09/2017
Commercial,Regional Enterprise,Other Services,0060086640,CONWAY AECOM LTD,601.36,07/09/2017
Commercial,Regional Enterprise,Other Services,0060086654,CONWAY AECOM LTD,256.95,11/09/2017
Commercial,Regional Enterprise,Other Services,0060086659,CONWAY AECOM LTD,830.28,11/09/2017
Commercial,Regional Enterprise,Other Services,0060086664,CONWAY AECOM LTD,"2,997.11",07/09/2017
Commercial,Regional Enterprise,Other Services,0060086665,CONWAY AECOM LTD,"11,825.59",14/09/2017
Commercial,Regional Enterprise,Other Services,0060086666,CONWAY AECOM LTD,"6,782.76",14/09/2017
Commercial,Regional Enterprise,Other Services,0060086667,CONWAY AECOM LTD,"6,564.14",14/09/2017
Commercial,Regional Enterprise,Other Services,0060086668,CONWAY AECOM LTD,"1,186.37",07/09/2017
Commercial,Regional Enterprise,Other Services,0060086669,CONWAY AECOM LTD,692.73,07/09/2017
Commercial,Regional Enterprise,Other Services,0060087982,CONWAY AECOM LTD,"2,572.61",22/09/2017
Commercial,Regional Enterprise,Other Services,0060080630,CONWAY AECOM LTD,"55,153.00",01/09/2017
Commercial,Regional Enterprise,Other Services,0060086998,CONWAY AECOM LTD,"150,000.00",28/09/2017
Commercial,Regional Enterprise,Other Services,0060087051,CONWAY AECOM LTD,"130,000.00",12/09/2017
Commercial,Regional Enterprise,Other Services,0060087139,CONWAY AECOM LTD,"37,504.00",28/09/2017
Commercial,Regional Enterprise,Other Services,0060087240,CONWAY AECOM LTD,"19,472.00",28/09/2017
Commercial,Regional Enterprise,Other Services,0060087247,CONWAY AECOM LTD,"1,244.40",28/09/2017
Commercial,Regional Enterprise,Other Services,0060087276,CONWAY AECOM LTD,"6,422.60",28/09/2017
Commercial,Regional Enterprise,Other Services,0060087312,CONWAY AECOM LTD,"43,514.40",28/09/2017
Commercial,Regional Enterprise,Other Services,0060087346,CONWAY AECOM LTD,"44,803.50",28/09/2017
Commercial,Regional Enterprise,Other Services,0060087354,CONWAY AECOM LTD,"38,607.38",28/09/2017
Commercial,Regional Enterprise,Other Services,0060087369,CONWAY AECOM LTD,"58,172.80",28/09/2017
Commercial,Regional Enterprise,Other Services,0060087379,CONWAY AECOM LTD,"35,155.20",28/09/2017
Commercial,Regional Enterprise,Other Services,0060087382,CONWAY AECOM LTD,"19,496.20",28/09/2017
Commercial,Regional Enterprise,Other Services,0060087450,CONWAY AECOM LTD,"19,066.70",28/09/2017
Commercial,Regional Enterprise,Other Services,0060087037,CONWAY AECOM LTD,"11,071.98",14/09/2017
Commercial,Regional Enterprise,Other Services,0060087087,CONWAY AECOM LTD,"6,000.96",12/09/2017
Commercial,Regional Enterprise,Consultants Fees,0060085496,BOLT & HEEKS LTD,"23,946.43",07/09/2017
Commercial,Regional Enterprise,Consultants Fees,0060086346,CONWAY AECOM LTD,"41,771.22",21/09/2017
Commercial,Regional Enterprise,Other Services,0060085802,CONWAY AECOM LTD,"3,297.20",07/09/2017
Commercial,Regional Enterprise,Other Services,0060085805,CONWAY AECOM LTD,"4,945.80",07/09/2017
Commercial,Regional Enterprise,Other Services,0060085807,CONWAY AECOM LTD,"2,472.90",07/09/2017
Commercial,Regional Enterprise,Other Services,0060085810,CONWAY AECOM LTD,"1,648.60",07/09/2017
Commercial,Regional Enterprise,Other Services,0060085812,CONWAY AECOM LTD,"1,648.60",07/09/2017
Commercial,Regional Enterprise,Other Services,0060085815,CONWAY AECOM LTD,"1,648.60",07/09/2017
Commercial,Regional Enterprise,Other Services,0060085820,CONWAY AECOM LTD,"2,472.90",07/09/2017
Commercial,Regional Enterprise,Other Services,0060085821,CONWAY AECOM LTD,"1,648.60",07/09/2017
Commercial,Regional Enterprise,Other Services,0060085841,CONWAY AECOM LTD,"1,648.60",07/09/2017
Commercial,Regional Enterprise,Other Services,0060085861,CONWAY AECOM LTD,"4,121.50",07/09/2017
Commercial,Regional Enterprise,Other Services,0060085864,CONWAY AECOM LTD,824.30,07/09/2017
Commercial,Regional Enterprise,Other Services,0060085869,CONWAY AECOM LTD,"1,236.45",07/09/2017
Commercial,Regional Enterprise,Other Services,0060085877,CONWAY AECOM LTD,"1,648.60",07/09/2017
Commercial,Regional Enterprise,Other Services,0060087086,CONWAY AECOM LTD,"3,297.20",12/09/2017
Commercial,Regional Enterprise,Other Services,0060087957,CONWAY AECOM LTD,"142,719.08",22/09/2017
Commercial,Regional Enterprise,Other Services,0060088207,CONWAY AECOM LTD,"208,523.31",28/09/2017
Commercial,Regional Enterprise,Advertising,0060085116,TMP (UK) LTD,"1,465.10",11/09/2017
Commercial,Regional Enterprise,Advertising,0060085518,TMP (UK) LTD,"1,385.10",11/09/2017
Commercial,Regional Enterprise,Consultants Fees,0060088045,ALL CLEAR DESIGNS LTD,"3,741.00",28/09/2017
Commercial,Regional Enterprise,Consultants Fees,0060086279,GOWLING WLG,"10,000.00",01/09/2017
Commercial,Regional Enterprise,Consultants Fees,0060086313,GOWLING WLG,"3,292.63",01/09/2017
Commercial,Regional Enterprise,Consultants Fees,0060086341,GOWLING WLG,"5,065.85",07/09/2017
Commercial,Regional Enterprise,Consultants Fees,0060086356,GOWLING WLG,"6,405.72",05/09/2017
Commercial,Regional Enterprise,Consultants Fees,0060086365,GOWLING WLG,"3,410.00",05/09/2017
Commercial,Regional Enterprise,Consultants Fees,0060086367,GOWLING WLG,872.51,14/09/2017
Commercial,Regional Enterprise,Consultants Fees,0060086378,GOWLING WLG,"2,605.68",05/09/2017
Commercial,Regional Enterprise,Consultants Fees,0060086381,GOWLING WLG,"3,488.40",14/09/2017
Commercial,Regional Enterprise,Consultants Fees,0060086390,GOWLING WLG,"11,989.51",05/09/2017
Commercial,Regional Enterprise,Consultants Fees,0060086403,GOWLING WLG,"5,651.28",05/09/2017
Commercial,Regional Enterprise,Consultants Fees,0060088188,LOGIKAL LTD,"17,500.00",28/09/2017
Commercial,Regional Enterprise,Consultants Fees,0060085373,NETWORK RAIL INFRASTRUCTURE LTD,"573,059.15",12/09/2017
Commercial,Regional Enterprise,Consultants Fees,0080012708,GOWLING WLG UK,"5,000.00",28/09/2017
Commercial,Regional Enterprise,Consultants Fees,0060086348,TMP (UK) LTD,"1,168.60",01/09/2017
Commissioning,Commissioning,Cleaning and domestic material,0060086562,CHURCHILL CONTRACT SERVICES,664.48,11/09/2017
Commissioning,Commissioning,Professional Services,0060087453,ROSSENDALES (COLLECT) LTD,3.57,22/09/2017
Commissioning,Commissioning,Professional Services,0060087467,ROSSENDALES (COLLECT) LTD,3.57,21/09/2017
Commissioning,Commissioning,Professional Services,0060087500,ROSSENDALES (COLLECT) LTD,3.57,21/09/2017
Commissioning,Commissioning,Professional Services,0060087508,ROSSENDALES (COLLECT) LTD,3.57,21/09/2017
Commissioning,Commissioning,Professional Services,0060087549,ROSSENDALES (COLLECT) LTD,3.57,21/09/2017
Commissioning,Commissioning,Professional Services,0060086704,THE BARNETGROUP LIMITED,277.20,07/09/2017
Commissioning,Commissioning,Ttl IT & Comms,0060082833,STOR-A FILE LTD,"5,809.40",05/09/2017
Commissioning,Commissioning,Subscriptions,0080012270,MOTOR INSURER'S BUREAU,208.33,04/09/2017
Commissioning,Commissioning,Grant Payments,0080012619,EAST FINCHLEY ARTS FESTIVAL,"1,000.00",28/09/2017
Commissioning,Commissioning,Consultants Fees,0010013871,ALLEN LANE LTD,"8,999.00",01/09/2017
Commissioning,Commissioning,Employee Expenses,0080012467,REDACTED - PERSONAL DATA,60.00,13/09/2017
Commissioning,Commissioning,Employee Expenses,0080012691,REDACTED - PERSONAL DATA,60.00,28/09/2017
Commissioning,Commissioning,Consultants Fees,0060085808,LEIDOS INNOVATIONS UK LTD,"10,258.00",14/09/2017
Commissioning,Commissioning,Equipment and Materials Purcha,0060088142,ONLINE ERGONOMICS LIMITED,95.00,26/09/2017
Commissioning,Commissioning,Employee Expenses,0060086701,SUE HILL RECRUITMENT & SERVICES LTD,"5,027.25",14/09/2017
Commissioning,Commissioning,Consultants Fees,0060085747,POLICY IN PRACTICE,"2,333.00",14/09/2017
Commissioning,Commissioning,Consultants Fees,0060085787,POLICY IN PRACTICE,"2,333.00",11/09/2017
Commissioning,Commissioning,Consultants Fees,0060087314,POLICY IN PRACTICE,"2,334.00",26/09/2017
Commissioning,Commissioning,Other Agencies - Third Party P,0060075860,FAMILY FUND TRADING LTD,(135.80),04/09/2017
Commissioning,Commissioning,Other Agencies - Third Party P,0060078128,FAMILY FUND TRADING LTD,(906.88),04/09/2017
Commissioning,Commissioning,Other Agencies - Third Party P,0060081235,FAMILY FUND TRADING LTD,"(1,611.29)",04/09/2017
Commissioning,Commissioning,Other Agencies - Third Party P,0060084522,FAMILY FUND TRADING LTD,(688.53),04/09/2017
Commissioning,Commissioning,Other Agencies - Third Party P,0060084755,FAMILY FUND TRADING LTD,163.00,04/09/2017
Commissioning,Commissioning,Other Agencies - Third Party P,0060085834,FAMILY FUND TRADING LTD,155.00,04/09/2017
Commissioning,Commissioning,Other Agencies - Third Party P,0060085844,FAMILY FUND TRADING LTD,"(1,065.40)",04/09/2017
Commissioning,Commissioning,Other Agencies - Third Party P,0060086977,FAMILY FUND TRADING LTD,125.00,11/09/2017
Commissioning,Commissioning,Grant Payments,0080012532,AID EXCEL SUPP,"4,460.00",25/09/2017
Commissioning,Commissioning,Consultants Fees,0010013882,COMMUNITY BARNET,"15,000.00",18/09/2017
Commissioning,Commissioning,Professional Services,0060075538,GROUNDWORK LONDON,"19,867.58",18/09/2017
Commissioning,Commissioning,Equipment and Materials Purcha,0060086406,OCS GROUP UK LIMITED,"47,050.00",28/09/2017
Commissioning,Commissioning,Equipment and Materials Purcha,0060088119,GLOBAL MSC SECURITY LIMITED,"7,482.50",28/09/2017
Commissioning,Commissioning,Equipment and Materials Purcha,0060088128,GLOBAL MSC SECURITY LIMITED,"7,482.50",27/09/2017
Commissioning,Commissioning,Equipment and Materials Purcha,0060088303,GOVNET COMMUNICATIONS,385.00,29/09/2017
Commissioning,Commissioning,Other Transfer Payments to Soc,0060084506,OCS GROUP UK LIMITED,"1,189.00",14/09/2017
Commissioning,Commissioning,Other Transfer Payments to Soc,0060086229,PUBLIC POLICY EXCHANGE LTD,424.00,07/09/2017
Commissioning,Commissioning,Other Transfer Payments to Soc,0060088281,SOLACE WOMEN'S AID,"51,571.25",29/09/2017
Commissioning,Commissioning,Consultants Fees,0060086842,REDACTED - PERSONAL DATA,25.00,28/09/2017
Commissioning,Commissioning,Private Contractors - Third Pa,0060086167,GREENWICH LEISURE LTD,"121,987.03",04/09/2017
Commissioning,Commissioning,Private Contractors - Third Pa,0060087225,GREENWICH LEISURE LTD,"121,987.03",13/09/2017
Commissioning,Commissioning,Consultants Fees,0060087052,REDACTED - PERSONAL DATA,250.00,26/09/2017
Commissioning,Commissioning,Equipment and Materials Purcha,0060087448,FINDEL EDUCATION LIMITED,25.33,18/09/2017
Commissioning,Commissioning,Subscriptions,0060088393,LONDON BOROUGH OF EALING,"6,800.00",29/09/2017
Commissioning,Commissioning,Consultants Fees,0060087538,PROJECT CENTRE LTD,"3,600.00",18/09/2017
Commissioning,Commissioning,Consultants Fees,0060086806,BEVAN BRITTAN LLP,601.00,11/09/2017
Commissioning,Commissioning,Consultants Fees,0060086826,BEVAN BRITTAN LLP,665.00,08/09/2017
Commissioning,Commissioning,Consultants Fees,0060086857,BEVAN BRITTAN LLP,"1,072.50",11/09/2017
Commissioning,Commissioning,Consultants Fees,0060086858,BEVAN BRITTAN LLP,752.00,08/09/2017
Commissioning,Commissioning,Consultants Fees,0060086882,BEVAN BRITTAN LLP,"1,542.50",08/09/2017
Commissioning,Commissioning,Consultants Fees,0060078324,GOOD IMPRESSIONS (LONDON) LIMITED,"1,100.00",11/09/2017
Commissioning,Commissioning,Consultants Fees,0060078365,GOOD IMPRESSIONS (LONDON) LIMITED,"1,900.00",11/09/2017
Commissioning,Commissioning,Training,0060085903,CAPITA BUSINESS SERVICES LTD,45.73,07/09/2017
Commissioning,Commissioning,Stationery,0040002548,OFFICE DEPOT UK LTD,330.33,28/09/2017
Commissioning,Commissioning,General Office Expenses,0040002517,OFFICE DEPOT UK LTD,1.92,21/09/2017
Commissioning,Commissioning,Consultants Fees,0010013875,IBM UNITED KINGDOM,"1,266.00",11/09/2017
Commissioning,Commissioning,Publications,0060086155,CAPITA BUSINESS SERVICES LTD,"2,600.00",21/09/2017
Commissioning,Commissioning,Publications,0060085737,MACDADDY IT LIMITED,157.50,21/09/2017
Commissioning,Commissioning,Publications,0060085792,MACDADDY IT LIMITED,195.00,21/09/2017
Commissioning,Commissioning,Grant Payments,0060086352,THE BARNETGROUP LIMITED,"32,012.00",01/09/2017
Commissioning,Commissioning,Publications,0060087960,DIGITALISSUE LIMITED,150.00,22/09/2017
Commissioning,Commissioning,Publications,0060087973,LETTERBOX DISTRIBUTION.COM,"10,237.50",28/09/2017
Commissioning,Commissioning,Publications,0060084466,REDACTED - PERSONAL DATA,500.00,22/09/2017
Commissioning,Commissioning,Consultants Fees,0060086725,GLEEDS HEALTH & SAFETY LTD,"6,000.00",12/09/2017
Commissioning,Commissioning,Consultants Fees,0060085781,PRIME PRODUCTION LTD,175.00,14/09/2017
Commissioning,Commissioning,Other Services,0060085843,PELL FRISCHMAN CONSULTING ENGINEERS LTD,848.40,26/09/2017
Commissioning,Commissioning,Other Services,0060086914,BLUE 9 SECURITY LIMITED,"2,140.88",13/09/2017
Commissioning,Commissioning,Other Services,0060086915,BLUE 9 SECURITY LIMITED,"2,358.86",13/09/2017
Commissioning,Commissioning,Other Services,0060086946,BLUE 9 SECURITY LIMITED,"2,592.41",13/09/2017
Commissioning,Commissioning,Other Services,0060086959,BLUE 9 SECURITY LIMITED,"2,249.87",13/09/2017
Commissioning,Commissioning,Other Services,0060086964,BLUE 9 SECURITY LIMITED,"2,312.15",13/09/2017
Commissioning,Commissioning,Other Services,0060086975,BLUE 9 SECURITY LIMITED,825.21,13/09/2017
Commissioning,Commissioning,Other Services,0060075554,MOTT MACDONALD LTD/CAMBRIDGE EDUCATION,"28,116.90",15/09/2017
Commissioning,Commissioning,Other Services,0060075559,MOTT MACDONALD LTD/CAMBRIDGE EDUCATION,"3,530.36",15/09/2017
Commissioning,Commissioning,Other Services,0060075604,MOTT MACDONALD LTD/CAMBRIDGE EDUCATION,"2,619.10",15/09/2017
Commissioning,Commissioning,Other Services,0060076722,MOTT MACDONALD LTD/CAMBRIDGE EDUCATION,"3,085.56",15/09/2017
Commissioning,Commissioning,Other Services,0060076727,MOTT MACDONALD LTD/CAMBRIDGE EDUCATION,"3,085.56",15/09/2017
Commissioning,Commissioning,Other Local Authorities - Thir,LBBARNETNLWACHAR2,NORTH LONDON WASTE AUTHORITY,"872,077.00",01/09/2017
Commissioning,Commissioning,Building Repairs & Maintenance,0060087172,OAKRAY LIMITED,420.25,28/09/2017
Commissioning,Commissioning,Building Repairs & Maintenance,0060087933,AJS LTD,703.44,22/09/2017
Commissioning,Commissioning,Capital Construction and Works,0060086824,BOUYGUES E&S INFRASTRUCTURE UK LTD,"3,180.68",28/09/2017
Commissioning,Commissioning,Capital Construction and Works,0060088263,CHARLES WILSON ENGINEERS LTD,920.00,29/09/2017
Commissioning,Commissioning,Equipment and Materials Purcha,0060086490,CHARLES WILSON ENGINEERS LTD,840.00,07/09/2017
Commissioning,Commissioning,Equipment and Materials Purcha,0060086504,CHARLES WILSON ENGINEERS LTD,189.00,07/09/2017
Commissioning,Commissioning,Equipment and Materials Purcha,0060088325,CHARLES WILSON ENGINEERS LTD,207.00,29/09/2017
Commissioning,Commissioning,Capital Construction and Works,0060087776,CLEVELAND SITESAFE LTD,"3,400.00",20/09/2017
Commissioning,Commissioning,Building Repairs & Maintenance,0060087318,LANTERN RECOVERY SPECIALISTS PLC,825.00,28/09/2017
Commissioning,Commissioning,Building Repairs & Maintenance,0060086512,MERRIDALE MIS FUEL MONITORING LTD,720.00,28/09/2017
Commissioning,Commissioning,Building Repairs & Maintenance,0060088151,S W BRUCE & CO LTD,"1,092.50",27/09/2017
Commissioning,Commissioning,Building Repairs & Maintenance,0060088177,S W BRUCE & CO LTD,376.10,27/09/2017
Commissioning,Commissioning,Capital Construction and Works,0060087870,S W BRUCE & CO LTD,"77,112.56",29/09/2017
Commissioning,Commissioning,Consultants Fees,0060087890,GALLIFORD TRY,"1,309,256.78",26/09/2017
Commissioning,Commissioning,Consultants Fees,0060087623,LIFTSHARE.COM LTD,"5,300.00",19/09/2017
Commissioning,Commissioning,Other Services,0060086994,TRAFFIC SURVEY PARTNERS (TSP) LTD,"2,100.00",12/09/2017
Commissioning,Commissioning,Other Services,0060082306,CONWAY AECOM LTD,"8,067.33",29/09/2017
Commissioning,Commissioning,Other Services,0060082351,CONWAY AECOM LTD,"9,932.67",28/09/2017
Commissioning,Commissioning,Other Services,0060087059,TRAFFIC SURVEY PARTNERS (TSP) LTD,265.00,12/09/2017
Commissioning,Commissioning,Other Services,0060087102,TRAFFIC SURVEY PARTNERS (TSP) LTD,250.00,12/09/2017
Commissioning,Commissioning,Consultants Fees,0060083531,TMP (UK) LTD,"1,382.00",25/09/2017
Corporate Accounting,Corporate Accounting,Other Establishments - Third P,0030169800,COPTHALL SCHOOL (ACADEMY),"9,450.00",18/09/2017
Corporate Accounting,Corporate Accounting,Other Establishments - Third P,0030169799,PARKFIELD ACADEMY,"4,900.00",21/09/2017
Corporate Accounting,Corporate Accounting,Other Establishments - Third P,0030169801,QUEEN ELIZABETH'S GIRLS ACADEMY,"18,900.00",18/09/2017
Corporate Accounting,Corporate Accounting,Other Establishments - Third P,0030169830,QUEEN ELIZABETH'S GIRLS ACADEMY,"3,899.00",18/09/2017
Corporate Accounting,Corporate Accounting,Other Establishments - Third P,0030169798,THE HYDE EF ACADEMY,"7,525.00",18/09/2017
Corporate Accounting,Corporate Accounting,Other Establishments - Third P,0030169770,CLAREMONT PRIMARY SCHOOL ACADEMY,"1,750.00",18/09/2017
Corporate Accounting,Corporate Accounting,Other Establishments - Third P,0030169771,THE HYDE EF ACADEMY,"1,002.30",18/09/2017
Corporate Accounting,Corporate Accounting,Grant Payments,0080012582,COMMUNITY FOCUS,"1,625.00",27/09/2017
Corporate Accounting,Corporate Accounting,Grant Payments,0080012303,THE AXIS EDUCA,"2,500.00",07/09/2017
Corporate Accounting,Corporate Accounting,Grant Payments,0080012644,HOME START BARNET,"5,000.00",25/09/2017
Corporate Accounting,Corporate Accounting,Grant Payments,0080012661,ST PETER'S BOU,"2,500.00",26/09/2017
Corporate Accounting,Corporate Accounting,Other Transfer Payments to Soc,0060081407,CITIBANK NA LONDON,"1,084.80",08/09/2017
Corporate Accounting,Corporate Accounting,Other Transfer Payments to Soc,0060082618,CITIBANK NA LONDON,20.00,08/09/2017
Corporate Accounting,Corporate Accounting,Other Transfer Payments to Soc,0060082619,CITIBANK NA LONDON,57.90,08/09/2017
Corporate Accounting,Corporate Accounting,Other Transfer Payments to Soc,0060082647,CITIBANK NA LONDON,57.90,08/09/2017
Corporate Accounting,Corporate Accounting,Other Transfer Payments to Soc,0060082661,CITIBANK NA LONDON,"3,942.90",08/09/2017
Corporate Accounting,Corporate Accounting,Other Transfer Payments to Soc,0060082681,CITIBANK NA LONDON,349.84,08/09/2017
Corporate Accounting,Corporate Accounting,Other Transfer Payments to Soc,0060082715,CITIBANK NA LONDON,"5,553.89",08/09/2017
Corporate Accounting,Corporate Accounting,Other Transfer Payments to Soc,0060083432,CITIBANK NA LONDON,480.70,08/09/2017
Corporate Accounting,Corporate Accounting,Other Transfer Payments to Soc,0060085235,CITIBANK NA LONDON,217.15,08/09/2017
Corporate Accounting,Corporate Accounting,Other Transfer Payments to Soc,0060085249,CITIBANK NA LONDON,661.29,08/09/2017
Corporate Accounting,Corporate Accounting,Other Transfer Payments to Soc,0060085287,CITIBANK NA LONDON,417.90,08/09/2017
Corporate Accounting,Corporate Accounting,Other Transfer Payments to Soc,0060085308,CITIBANK NA LONDON,400.00,08/09/2017
Corporate Accounting,Corporate Accounting,Other Transfer Payments to Soc,0060085316,CITIBANK NA LONDON,110.00,08/09/2017
Corporate Accounting,Corporate Accounting,Other Transfer Payments to Soc,0060085384,CITIBANK NA LONDON,57.90,08/09/2017
Corporate Accounting,Corporate Accounting,Other Transfer Payments to Soc,0060085390,CITIBANK NA LONDON,255.80,08/09/2017
Corporate Accounting,Corporate Accounting,Other Transfer Payments to Soc,0060085432,CITIBANK NA LONDON,225.00,08/09/2017
Corporate Accounting,Corporate Accounting,Other Transfer Payments to Soc,0060085455,CITIBANK NA LONDON,289.50,08/09/2017
Corporate Accounting,Corporate Accounting,Other Transfer Payments to Soc,0060085481,CITIBANK NA LONDON,"5,800.90",08/09/2017
Corporate Accounting,Corporate Accounting,Other Transfer Payments to Soc,0060085525,CITIBANK NA LONDON,20.20,08/09/2017
Corporate Accounting,Corporate Accounting,Other Transfer Payments to Soc,0060086150,CITIBANK NA LONDON,52.09,08/09/2017
Corporate Accounting,Corporate Accounting,Other Transfer Payments to Soc,0060086151,CITIBANK NA LONDON,273.80,08/09/2017
Corporate Accounting,Corporate Accounting,Other Transfer Payments to Soc,0060086154,CITIBANK NA LONDON,250.00,08/09/2017
Corporate Accounting,Corporate Accounting,Other Transfer Payments to Soc,0060086168,CITIBANK NA LONDON,565.80,08/09/2017
Corporate Accounting,Corporate Accounting,Other Transfer Payments to Soc,0060086172,CITIBANK NA LONDON,300.00,08/09/2017
Corporate Accounting,Corporate Accounting,Other Transfer Payments to Soc,0060086191,CITIBANK NA LONDON,"1,202.25",08/09/2017
Corporate Accounting,Corporate Accounting,Other Transfer Payments to Soc,0060086197,CITIBANK NA LONDON,"1,126.30",08/09/2017
Corporate Accounting,Corporate Accounting,Other Transfer Payments to Soc,0060086225,CITIBANK NA LONDON,50.00,05/09/2017
Corporate Accounting,Corporate Accounting,Other Transfer Payments to Soc,0060086249,CITIBANK NA LONDON,466.00,05/09/2017
Corporate Accounting,Corporate Accounting,Other Transfer Payments to Soc,0060086307,CITIBANK NA LONDON,266.47,01/09/2017
Corporate Accounting,Corporate Accounting,Other Transfer Payments to Soc,0060086336,CITIBANK NA LONDON,"3,871.99",01/09/2017
Corporate Accounting,Corporate Accounting,Other Transfer Payments to Soc,0060086350,CITIBANK NA LONDON,370.50,01/09/2017
Corporate Accounting,Corporate Accounting,Other Transfer Payments to Soc,0060086380,CITIBANK NA LONDON,100.00,01/09/2017
Corporate Accounting,Corporate Accounting,Other Transfer Payments to Soc,0060086391,CITIBANK NA LONDON,56.00,01/09/2017
Corporate Accounting,Corporate Accounting,Other Transfer Payments to Soc,0060086393,CITIBANK NA LONDON,168.00,01/09/2017
Corporate Accounting,Corporate Accounting,Other Transfer Payments to Soc,0060086427,CITIBANK NA LONDON,229.50,05/09/2017
Corporate Accounting,Corporate Accounting,Other Transfer Payments to Soc,0060086430,CITIBANK NA LONDON,591.60,05/09/2017
Corporate Accounting,Corporate Accounting,Other Transfer Payments to Soc,0060086543,CITIBANK NA LONDON,400.00,08/09/2017
Corporate Accounting,Corporate Accounting,Other Transfer Payments to Soc,0060086558,CITIBANK NA LONDON,215.40,08/09/2017
Corporate Accounting,Corporate Accounting,Other Transfer Payments to Soc,0060086578,CITIBANK NA LONDON,57.90,08/09/2017
Corporate Accounting,Corporate Accounting,Other Transfer Payments to Soc,0060086616,CITIBANK NA LONDON,115.32,08/09/2017
Corporate Accounting,Corporate Accounting,Other Transfer Payments to Soc,0060086700,CITIBANK NA LONDON,444.53,08/09/2017
Corporate Accounting,Corporate Accounting,Other Transfer Payments to Soc,0060086758,CITIBANK NA LONDON,447.52,08/09/2017
Corporate Accounting,Corporate Accounting,Other Transfer Payments to Soc,0060087001,CITIBANK NA LONDON,155.00,12/09/2017
Corporate Accounting,Corporate Accounting,Other Transfer Payments to Soc,0060087065,CITIBANK NA LONDON,385.99,12/09/2017
Corporate Accounting,Corporate Accounting,Other Transfer Payments to Soc,0060087843,CITIBANK NA LONDON,207.90,22/09/2017
Corporate Accounting,Corporate Accounting,Other Transfer Payments to Soc,0060087848,CITIBANK NA LONDON,493.25,22/09/2017
Corporate Accounting,Corporate Accounting,Other Transfer Payments to Soc,0060087853,CITIBANK NA LONDON,910.60,22/09/2017
Corporate Accounting,Corporate Accounting,Other Transfer Payments to Soc,0060087879,CITIBANK NA LONDON,155.80,22/09/2017
Corporate Accounting,Corporate Accounting,Other Transfer Payments to Soc,0060087887,CITIBANK NA LONDON,234.10,22/09/2017
Corporate Accounting,Corporate Accounting,Other Transfer Payments to Soc,0060087904,CITIBANK NA LONDON,404.00,22/09/2017
Corporate Accounting,Corporate Accounting,Other Transfer Payments to Soc,0060087910,CITIBANK NA LONDON,567.90,22/09/2017
Corporate Accounting,Corporate Accounting,Other Transfer Payments to Soc,0060087948,CITIBANK NA LONDON,294.75,22/09/2017
Corporate Accounting,Corporate Accounting,Other Transfer Payments to Soc,0060087955,CITIBANK NA LONDON,"3,690.30",22/09/2017
Corporate Accounting,Corporate Accounting,Other Transfer Payments to Soc,0060087956,CITIBANK NA LONDON,"1,596.69",22/09/2017
Corporate Accounting,Corporate Accounting,Other Transfer Payments to Soc,0060087958,CITIBANK NA LONDON,694.80,22/09/2017
Corporate Accounting,Corporate Accounting,Other Transfer Payments to Soc,0060088018,CITIBANK NA LONDON,800.00,22/09/2017
Corporate Accounting,Corporate Accounting,Other Transfer Payments to Soc,0060088025,CITIBANK NA LONDON,"1,658.70",22/09/2017
Corporate Accounting,Corporate Accounting,Private Contractors - Third Pa,0080012397,REDACTED - PERSONAL DATA,"2,500.00",08/09/2017
Corporate Accounting,Corporate Accounting,Other Establishments - Third P,LEEVALLEYREGPKAU,LEE VALLEY REGIONAL PARK AUTH.,"30,430.52",15/09/2017
Corporate Accounting,Corporate Accounting,Other Local Authorities - Thir,LBBARNETNLWA,NORTH LONDON WASTE AUTHORITY,"872,077.00",29/09/2017
Corporate Accounting,Corporate Accounting,Other Local Authorities - Thir,BUSNESSRATESRENTEN,GREATER LONDON AUTHORITY,"3,428,215.84",11/09/2017
Corporate Accounting,Corporate Accounting,Other Local Authorities - Thir,GLABRSSUPPLEMENT1,GREATER LONDON AUTHORITY,"234,605.00",21/09/2017
Corporate Accounting,Corporate Accounting,Other Local Authorities - Thir,LPFALEVY,GREATER LONDON AUTHORITY,"49,828.80",14/09/2017
Delivery Units,Adults and Communities,Other Agencies - Third Party P,0090018313,ABBEY RAVENSCROFT PARK NURSING HOME," 3,255.00 ",14/09/2017
Delivery Units,Adults and Communities,Other Agencies - Third Party P,0090018314,ABBEY RAVENSCROFT PARK NURSING HOME," 3,255.00 ",14/09/2017
Delivery Units,Adults and Communities,Other Agencies - Third Party P,0090018315,ABBEY RAVENSCROFT PARK NURSING HOME," 2,788.32 ",14/09/2017
Delivery Units,Adults and Communities,Other Agencies - Third Party P,0090018316,ABBEY RAVENSCROFT PARK NURSING HOME," 2,788.32 ",14/09/2017
Delivery Units,Adults and Communities,Other Agencies - Third Party P,0090018317,ABBEY RAVENSCROFT PARK NURSING HOME," 3,321.43 ",14/09/2017
Delivery Units,Adults and Communities,Other Agencies - Third Party P,0090018318,ABBEY RAVENSCROFT PARK NURSING HOME," 2,788.32 ",14/09/2017
Delivery Units,Adults and Communities,Other Agencies - Third Party P,0090018320,ABBEY RAVENSCROFT PARK NURSING HOME," 2,788.32 ",14/09/2017
Delivery Units,Adults and Communities,Other Agencies - Third Party P,0090018322,ABBEY RAVENSCROFT PARK NURSING HOME," 3,255.00 ",14/09/2017
Delivery Units,Adults and Communities,Other Agencies - Third Party P,0090018324,ABBEY RAVENSCROFT PARK NURSING HOME," 2,788.32 ",14/09/2017
Delivery Units,Adults and Communities,Other Agencies - Third Party P,0090018326,ABBEY RAVENSCROFT PARK NURSING HOME," 2,788.32 ",14/09/2017
Delivery Units,Adults and Communities,Other Agencies - Third Party P,0090018328,ABBEY RAVENSCROFT PARK NURSING HOME," 3,255.00 ",14/09/2017
Delivery Units,Adults and Communities,Other Agencies - Third Party P,0090018329,ABBEY RAVENSCROFT PARK NURSING HOME," 2,788.32 ",14/09/2017
Delivery Units,Adults and Communities,Other Agencies - Third Party P,0090018331,ABBEY RAVENSCROFT PARK NURSING HOME," 3,321.43 ",14/09/2017
Delivery Units,Adults and Communities,Other Agencies - Third Party P,0090018332,ABBEY RAVENSCROFT PARK NURSING HOME,"2,788.32",14/09/2017
Delivery Units,Adults and Communities,Other Agencies - Third Party P,0090018333,ABBEY RAVENSCROFT PARK NURSING HOME," 2,517.60 ",14/09/2017
Delivery Units,Adults and Communities,Other Agencies - Third Party P,0090021837,ABBEY RAVENSCROFT PARK NURSING HOME,"3,214.29",29/09/2017
Delivery Units,Adults and Communities,Other Agencies - Third Party P,0090021838,ABBEY RAVENSCROFT PARK NURSING HOME,"2,698.37",29/09/2017
Delivery Units,Adults and Communities,Other Agencies - Third Party P,0090021839,ABBEY RAVENSCROFT PARK NURSING HOME," 2,436.39 ",29/09/2017
Delivery Units,Adults and Communities,Other Agencies - Third Party P,0090021842,ABBEY RAVENSCROFT PARK NURSING HOME," 2,698.37 ",29/09/2017
Delivery Units,Adults and Communities,Other Agencies - Third Party P,0090021843,ABBEY RAVENSCROFT PARK NURSING HOME," 3,150.00 ",29/09/2017
Delivery Units,Adults and Communities,Other Agencies - Third Party P,0090021845,ABBEY RAVENSCROFT PARK NURSING HOME,"2,698.37",29/09/2017
Delivery Units,Adults and Communities,Other Agencies - Third Party P,0090021847,ABBEY RAVENSCROFT PARK NURSING HOME," 2,698.37 ",29/09/2017
Delivery Units,Adults and Communities,Other Agencies - Third Party P,0090022031,ABBEY RAVENSCROFT PARK NURSING HOME," 3,150.00 ",29/09/2017
Delivery Units,Adults and Communities,Other Agencies - Third Party P,0090022033,ABBEY RAVENSCROFT PARK NURSING HOME," 2,698.37 ",29/09/2017
Delivery Units,Adults and Communities,Other Agencies - Third Party P,0090022035,ABBEY RAVENSCROFT PARK NURSING HOME," 2,698.37 ",29/09/2017
Delivery Units,Adults and Communities,Other Agencies - Third Party P,0090022036,ABBEY RAVENSCROFT PARK NURSING HOME,"3,214.29",29/09/2017
Delivery Units,Adults and Communities,Other Agencies - Third Party P,0090022037,ABBEY RAVENSCROFT PARK NURSING HOME,"2,698.37",29/09/2017
Delivery Units,Adults and Communities,Other Agencies - Third Party P,0090022038,ABBEY RAVENSCROFT PARK NURSING HOME," 2,698.37 ",29/09/2017
Delivery Units,Adults and Communities,Other Agencies - Third Party P,0090022039,ABBEY RAVENSCROFT PARK NURSING HOME," 3,150.00 ",29/09/2017
Delivery Units,Adults and Communities,Other Agencies - Third Party P,0090022040,ABBEY RAVENSCROFT PARK NURSING HOME," 3,150.00 ",29/09/2017
Delivery Units,Adults and Communities,Other Agencies - Third Party P,0090022041,ABBEY RAVENSCROFT PARK NURSING HOME," 3,214.29 ",29/09/2017
Delivery Units,Adults and Communities,Other Agencies - Third Party P,0090022044,ABBEY RAVENSCROFT PARK NURSING HOME,"3,214.29",29/09/2017
Delivery Units,Adults and Communities,Other Agencies - Third Party P,0090016405,AGUDAS ISRAEL HOUSING ASSCTN LTD," 2,736.86 ",14/09/2017
Delivery Units,Adults and Communities,Other Agencies - Third Party P,0090016406,AGUDAS ISRAEL HOUSING ASSCTN LTD," 3,154.25 ",14/09/2017
Delivery Units,Adults and Communities,Other Agencies - Third Party P,0090019831,APPLE TREE COURT CARE HOME,"3,764.29",20/09/2017
Delivery Units,Adults and Communities,Other Agencies - Third Party P,0090019832,APPLE TREE COURT CARE HOME," 2,570.70 ",20/09/2017
Delivery Units,Adults and Communities,Other Agencies - Third Party P,0090019833,APPLE TREE COURT CARE HOME," 2,570.70 ",20/09/2017
Delivery Units,Adults and Communities,Other Agencies - Third Party P,0090019839,APPLE TREE COURT CARE HOME," 2,397.72 ",20/09/2017
Delivery Units,Adults and Communities,Other Agencies - Third Party P,0090019841,APPLE TREE COURT CARE HOME,"4,454.47",20/09/2017
Delivery Units,Adults and Communities,Other Agencies - Third Party P,0090019974,APPLE TREE COURT CARE HOME," 4,871.43 ",20/09/2017
Delivery Units,Adults and Communities,Other Agencies - Third Party P,0090019975,APPLE TREE COURT CARE HOME," 4,714.29 ",20/09/2017
Delivery Units,Adults and Communities,Other Agencies - Third Party P,0090019976,APPLE TREE COURT CARE HOME," 6,600.00 ",20/09/2017
Delivery Units,Adults and Communities,Other Agencies - Third Party P,0090016272,ASHTON LODGE CARE CENTRE," 2,400.00 ",06/09/2017
Delivery Units,Adults and Communities,Other Agencies - Third Party P,0090016273,ASHTON LODGE CARE CENTRE,"-1,542.86 ",06/09/2017
Delivery Units,Adults and Communities,Other Agencies - Third Party P,0090018296,ASHTON LODGE CARE CENTRE," 2,567.95 ",14/09/2017
Delivery Units,Adults and Communities,Other Agencies - Third Party P,0090018297,ASHTON LODGE CARE CENTRE," 2,567.95 ",14/09/2017
Delivery Units,Adults and Communities,Other Agencies - Third Party P,0090018300,ASHTON LODGE CARE CENTRE," 2,844.07 ",14/09/2017
Delivery Units,Adults and Communities,Other Agencies - Third Party P,0090018302,ASHTON LODGE CARE CENTRE," 3,265.85 ",14/09/2017
Delivery Units,Adults and Communities,Other Agencies - Third Party P,0090018303,ASHTON LODGE CARE CENTRE," 3,542.86 ",14/09/2017
Delivery Units,Adults and Communities,Other Agencies - Third Party P,0090018304,ASHTON LODGE CARE CENTRE," 2,844.07 ",14/09/2017
Delivery Units,Adults and Communities,Other Agencies - Third Party P,0090018305,ASHTON LODGE CARE CENTRE,"3,321.43",14/09/2017
Delivery Units,Adults and Communities,Other Agencies - Third Party P,0090018306,ASHTON LODGE CARE CENTRE," 3,133.79 ",14/09/2017
Delivery Units,Adults and Communities,Other Agencies - Third Party P,0090018308,ASHTON LODGE CARE CENTRE,"2,844.07",14/09/2017
Delivery Units,Adults and Communities,Other Agencies - Third Party P,0090018309,ASHTON LODGE CARE CENTRE," 2,844.07 ",14/09/2017
Delivery Units,Adults and Communities,Other Agencies - Third Party P,0090018310,ASHTON LODGE CARE CENTRE," 2,936.14 ",14/09/2017
Delivery Units,Adults and Communities,Other Agencies - Third Party P,0090018311,ASHTON LODGE CARE CENTRE," 18,335.71 ",14/09/2017
Delivery Units,Adults and Communities,Other Agencies - Third Party P,0090018687,ASHTON LODGE CARE CENTRE,"3,133.79",19/09/2017
Delivery Units,Adults and Communities,Other Agencies - Third Party P,0090018689,ASHTON LODGE CARE CENTRE," 2,397.72 ",19/09/2017
Delivery Units,Adults and Communities,Other Agencies - Third Party P,0090021333,ASHTON LODGE CARE CENTRE," 3,000.00 ",26/09/2017
Delivery Units,Adults and Communities,Other Agencies - Third Party P,0090021851,ASHTON LODGE CARE CENTRE," 2,752.33 ",29/09/2017
Delivery Units,Adults and Communities,Other Agencies - Third Party P,0090021853,ASHTON LODGE CARE CENTRE," 3,214.29 ",29/09/2017
Delivery Units,Adults and Communities,Other Agencies - Third Party P,0090021854,ASHTON LODGE CARE CENTRE," 2,752.33 ",29/09/2017
Delivery Units,Adults and Communities,Other Agencies - Third Party P,0090021855,ASHTON LODGE CARE CENTRE,"3,428.57",29/09/2017
Delivery Units,Adults and Communities,Other Agencies - Third Party P,0090021856,ASHTON LODGE CARE CENTRE," 2,841.43 ",29/09/2017
Delivery Units,Adults and Communities,Other Agencies - Third Party P,0090021857,ASHTON LODGE CARE CENTRE," 2,752.33 ",29/09/2017
Delivery Units,Adults and Communities,Other Agencies - Third Party P,0090021858,ASHTON LODGE CARE CENTRE," 2,752.33 ",29/09/2017
Delivery Units,Adults and Communities,Other Agencies - Third Party P,0090021860,ASHTON LODGE CARE CENTRE," 3,032.70 ",29/09/2017
Delivery Units,Adults and Communities,Other Agencies - Third Party P,0090021861,ASHTON LODGE CARE CENTRE," 3,160.50 ",29/09/2017
Delivery Units,Adults and Communities,Other Agencies - Third Party P,0090021862,ASHTON LODGE CARE CENTRE," 3,642.86 ",29/09/2017
Delivery Units,Adults and Communities,Other Agencies - Third Party P,0090021863,ASHTON LODGE CARE CENTRE," 2,485.11 ",29/09/2017
Delivery Units,Adults and Communities,Other Agencies - Third Party P,0090021864,ASHTON LODGE CARE CENTRE," 3,032.70 ",29/09/2017
Delivery Units,Adults and Communities,Other Agencies - Third Party P,0090017489,AUTUMN GARDENS," 4,800.00 ",13/09/2017
Delivery Units,Adults and Communities,Other Agencies - Third Party P,0090018976,BUPA CARE HOMES," 2,730.97 ",20/09/2017
Delivery Units,Adults and Communities,Other Agencies - Third Party P,0090016820,BUPA CARE HOMES,"2,165.68",13/09/2017
Delivery Units,Adults and Communities,Other Agencies - Third Party P,0090016830,BUPA CARE HOMES," 2,321.92 ",11/09/2017
Delivery Units,Adults and Communities,Other Agencies - Third Party P,0090016831,BUPA CARE HOMES," 2,094.52 ",11/09/2017
Delivery Units,Adults and Communities,Other Agencies - Third Party P,0090016832,BUPA CARE HOMES," 2,321.92 ",11/09/2017
Delivery Units,Adults and Communities,Other Agencies - Third Party P,0090016833,BUPA CARE HOMES," 2,094.52 ",11/09/2017
Delivery Units,Adults and Communities,Other Agencies - Third Party P,0090016834,BUPA CARE HOMES," 2,321.92 ",11/09/2017
Delivery Units,Adults and Communities,Other Agencies - Third Party P,0090016835,BUPA CARE HOMES," 2,094.52 ",11/09/2017
Delivery Units,Adults and Communities,Other Agencies - Third Party P,0090016855,BUPA CARE HOMES, 227.40 ,11/09/2017
Delivery Units,Adults and Communities,Other Agencies - Third Party P,0090016856,BUPA CARE HOMES, 227.40 ,11/09/2017
Delivery Units,Adults and Communities,Other Agencies - Third Party P,0090016857,BUPA CARE HOMES," 2,321.92 ",11/09/2017
Delivery Units,Adults and Communities,Other Agencies - Third Party P,0090016858,BUPA CARE HOMES," 2,094.52 ",11/09/2017
Delivery Units,Adults and Communities,Other Agencies - Third Party P,0090016859,BUPA CARE HOMES," 2,549.32 ",11/09/2017
Delivery Units,Adults and Communities,Other Agencies - Third Party P,0090016860,BUPA CARE HOMES," 2,321.92 ",11/09/2017
Delivery Units,Adults and Communities,Other Agencies - Third Party P,0090016861,BUPA CARE HOMES,"2,094.52",11/09/2017
Delivery Units,Adults and Communities,Other Agencies - Third Party P,0090016862,BUPA CARE HOMES," 2,549.32 ",11/09/2017
Delivery Units,Adults and Communities,Other Agencies - Third Party P,0090018149,BUPA CARE HOMES," 3,416.11 ",14/09/2017
Delivery Units,Adults and Communities,Other Agencies - Third Party P,0090018156,BUPA CARE HOMES," 2,611.48 ",15/09/2017
Delivery Units,Adults and Communities,Other Agencies - Third Party P,0090018670,BUPA CARE HOMES," 2,387.19 ",19/09/2017
Delivery Units,Adults and Communities,Other Agencies - Third Party P,0090018672,BUPA CARE HOMES," 3,305.91 ",19/09/2017
Delivery Units,Adults and Communities,Other Agencies - Third Party P,0090018675,BUPA CARE HOMES," 2,527.24 ",19/09/2017
Delivery Units,Adults and Communities,Other Agencies - Third Party P,0090019848,BUPA CARE HOMES," 2,466.76 ",20/09/2017
Delivery Units,Adults and Communities,Other Agencies - Third Party P,0090019978,BUPA NURSING HOMES LTD - ARKLEY,"2,227.24",21/09/2017
Delivery Units,Adults and Communities,Other Agencies - Third Party P,0090019979,BUPA NURSING HOMES LTD - ARKLEY," 2,227.24 ",21/09/2017
Delivery Units,Adults and Communities,Other Agencies - Third Party P,0090019980,BUPA NURSING HOMES LTD - ARKLEY,"2,227.52",21/09/2017
Delivery Units,Adults and Communities,Other Agencies - Third Party P,0090019982,BUPA NURSING HOMES LTD - ARKLEY," 2,214.76 ",21/09/2017
Delivery Units,Adults and Communities,Other Agencies - Third Party P,0090019983,BUPA NURSING HOMES LTD - ARKLEY," 2,227.40 ",21/09/2017
Delivery Units,Adults and Communities,Other Agencies - Third Party P,0080012240,CARE UK COMMUNITY PARTNERSHIPS,"3,316.07",12/09/2017
Delivery Units,Adults and Communities,Other Agencies - Third Party P,0090018352,CARLTON COURT (TLC GROUP)," 2,655.55 ",14/09/2017
Delivery Units,Adults and Communities,Other Agencies - Third Party P,0090018354,CARLTON COURT (TLC GROUP)," 2,448.78 ",14/09/2017
Delivery Units,Adults and Communities,Other Agencies - Third Party P,0090018357,CARLTON COURT (TLC GROUP)," 2,655.55 ",14/09/2017
Delivery Units,Adults and Communities,Other Agencies - Third Party P,0090021827,CARLTON COURT (TLC GROUP)," 2,569.89 ",29/09/2017
Delivery Units,Adults and Communities,Other Agencies - Third Party P,0090021828,CARLTON COURT (TLC GROUP),"2,569.89",29/09/2017
Delivery Units,Adults and Communities,Other Agencies - Third Party P,0090021830,CARLTON COURT (TLC GROUP)," 3,616.07 ",29/09/2017
Delivery Units,Adults and Communities,Other Agencies - Third Party P,0090021832,CARLTON COURT (TLC GROUP)," 2,369.79 ",29/09/2017
Delivery Units,Adults and Communities,Other Agencies - Third Party P,0090016780,CEDARS NURSING HOME," 2,397.72 ",08/09/2017
Delivery Units,Adults and Communities,Other Agencies - Third Party P,0090016782,CEDARS NURSING HOME," 2,397.72 ",08/09/2017
Delivery Units,Adults and Communities,Other Agencies - Third Party P,0090016783,CEDARS NURSING HOME," 2,964.93 ",08/09/2017
Delivery Units,Adults and Communities,Other Agencies - Third Party P,0090016784,CEDARS NURSING HOME," 2,655.55 ",08/09/2017
Delivery Units,Adults and Communities,Other Agencies - Third Party P,0090016787,CEDARS NURSING HOME," 3,500.27 ",08/09/2017
Delivery Units,Adults and Communities,Other Agencies - Third Party P,0090016788,CEDARS NURSING HOME," 2,678.00 ",08/09/2017
Delivery Units,Adults and Communities,Other Agencies - Third Party P,0090021878,CEDARS NURSING HOME," 2,320.37 ",29/09/2017
Delivery Units,Adults and Communities,Other Agencies - Third Party P,0090021880,CEDARS NURSING HOME," 2,320.37 ",29/09/2017
Delivery Units,Adults and Communities,Other Agencies - Third Party P,0090021881,CEDARS NURSING HOME," 2,869.29 ",29/09/2017
Delivery Units,Adults and Communities,Other Agencies - Third Party P,0090021882,CEDARS NURSING HOME,"2,569.89",29/09/2017
Delivery Units,Adults and Communities,Other Agencies - Third Party P,0090019827,CHISWICK HOUSE," 2,900.00 ",20/09/2017
Delivery Units,Adults and Communities,Other Agencies - Third Party P,0090019828,CHISWICK HOUSE,"3,000.00",20/09/2017
Delivery Units,Adults and Communities,Other Agencies - Third Party P,0090021575,CHISWICK HOUSE," 3,321.34 ",27/09/2017
Delivery Units,Adults and Communities,Other Agencies - Third Party P,0090021591,CHISWICK HOUSE," 3,214.30 ",28/09/2017
Delivery Units,Adults and Communities,Other Agencies - Third Party P,0090019008,CLARE HOUSE NURSING HOME," 2,228.72 ",19/09/2017
Delivery Units,Adults and Communities,Other Agencies - Third Party P,0090013237,ERSKINE HALL (BUPA)," 3,498.57 ",05/09/2017
Delivery Units,Adults and Communities,Other Agencies - Third Party P,0090018279,FERNBANK NURSING HOME.,"2,318.80",14/09/2017
Delivery Units,Adults and Communities,Other Agencies - Third Party P,0090018280,FERNBANK NURSING HOME.," 2,318.80 ",14/09/2017
Delivery Units,Adults and Communities,Other Agencies - Third Party P,0090018282,FERNBANK NURSING HOME.," 2,318.80 ",14/09/2017
Delivery Units,Adults and Communities,Other Agencies - Third Party P,0090018284,FERNBANK NURSING HOME.," 2,397.54 ",14/09/2017
Delivery Units,Adults and Communities,Other Agencies - Third Party P,0090018285,FERNBANK NURSING HOME.,"3,072.10",14/09/2017
Delivery Units,Adults and Communities,Other Agencies - Third Party P,0090018286,FERNBANK NURSING HOME.," 2,397.54 ",14/09/2017
Delivery Units,Adults and Communities,Other Agencies - Third Party P,0090020673,FERNBANK NURSING HOME.,"2,320.20",22/09/2017
Delivery Units,Adults and Communities,Other Agencies - Third Party P,0090020674,FERNBANK NURSING HOME.," 2,973.00 ",22/09/2017
Delivery Units,Adults and Communities,Other Agencies - Third Party P,0090020675,FERNBANK NURSING HOME.," 2,320.20 ",22/09/2017
Delivery Units,Adults and Communities,Other Agencies - Third Party P,0090020676,FERNBANK NURSING HOME.,"2,244.00",22/09/2017
Delivery Units,Adults and Communities,Other Agencies - Third Party P,0090020677,FERNBANK NURSING HOME.," 2,244.00 ",22/09/2017
Delivery Units,Adults and Communities,Other Agencies - Third Party P,0090020679,FERNBANK NURSING HOME.," 2,244.00 ",22/09/2017
Delivery Units,Adults and Communities,Other Agencies - Third Party P,0090020680,FERNBANK NURSING HOME.," 2,244.00 ",22/09/2017
Delivery Units,Adults and Communities,Other Agencies - Third Party P,0090019880,FOUR SEASONS HEALTH CARE," 2,291.36 ",20/09/2017
Delivery Units,Adults and Communities,Other Agencies - Third Party P,0090019881,FOUR SEASONS HEALTH CARE,"2,551.52",20/09/2017
Delivery Units,Adults and Communities,Other Agencies - Third Party P,0090019883,FOUR SEASONS HEALTH CARE," 2,291.36 ",20/09/2017
Delivery Units,Adults and Communities,Other Agencies - Third Party P,0090019885,FOUR SEASONS HEALTH CARE," 2,291.36 ",20/09/2017
Delivery Units,Adults and Communities,Other Agencies - Third Party P,0090019886,FOUR SEASONS HEALTH CARE," 2,550.72 ",20/09/2017
Delivery Units,Adults and Communities,Other Agencies - Third Party P,0090019887,FOUR SEASONS HEALTH CARE," 2,550.72 ",20/09/2017
Delivery Units,Adults and Communities,Other Agencies - Third Party P,0090019888,FOUR SEASONS HEALTH CARE," 2,291.36 ",20/09/2017
Delivery Units,Adults and Communities,Other Agencies - Third Party P,0090019890,FOUR SEASONS HEALTH CARE," 2,291.36 ",20/09/2017
Delivery Units,Adults and Communities,Other Agencies - Third Party P,0090019891,FOUR SEASONS HEALTH CARE," 2,551.52 ",20/09/2017
Delivery Units,Adults and Communities,Other Agencies - Third Party P,0090019893,FOUR SEASONS HEALTH CARE," 2,291.36 ",20/09/2017
Delivery Units,Adults and Communities,Other Agencies - Third Party P,0090019894,FOUR SEASONS HEALTH CARE," 2,291.36 ",20/09/2017
Delivery Units,Adults and Communities,Other Agencies - Third Party P,0090019895,FOUR SEASONS HEALTH CARE," 2,291.36 ",20/09/2017
Delivery Units,Adults and Communities,Other Agencies - Third Party P,0090019985,FOUR SEASONS HEALTH CARE," 2,291.36 ",20/09/2017
Delivery Units,Adults and Communities,Other Agencies - Third Party P,0090016838,FOUR SEASONS HEALTH CARE (NO.4) LTD," 2,004.00 ",11/09/2017
Delivery Units,Adults and Communities,Other Agencies - Third Party P,0090021590,FOUR SEASONS HEALTH CARE (NO.4) LTD," 2,004.00 ",27/09/2017
Delivery Units,Adults and Communities,Other Agencies - Third Party P,0090021665,FRISTON HOUSE," 3,192.64 ",28/09/2017
Delivery Units,Adults and Communities,Other Agencies - Third Party P,0090021680,FRISTON HOUSE,"3,299.06",28/09/2017
Delivery Units,Adults and Communities,Other Agencies - Third Party P,0090021681,FRISTON HOUSE," 3,299.06 ",28/09/2017
Delivery Units,Adults and Communities,Other Agencies - Third Party P,0090016421,HENRY NIHILL HOUSE," 2,165.68 ",06/09/2017
Delivery Units,Adults and Communities,Other Agencies - Third Party P,0090016422,HENRY NIHILL HOUSE," 2,165.68 ",06/09/2017
Delivery Units,Adults and Communities,Other Agencies - Third Party P,0090016424,HENRY NIHILL HOUSE," 2,165.68 ",06/09/2017
Delivery Units,Adults and Communities,Other Agencies - Third Party P,0090016425,HENRY NIHILL HOUSE," 2,165.68 ",06/09/2017
Delivery Units,Adults and Communities,Other Agencies - Third Party P,0090016426,HENRY NIHILL HOUSE," 2,165.68 ",06/09/2017
Delivery Units,Adults and Communities,Other Agencies - Third Party P,0090018691,KARUNA MANOR," 4,207.14 ",19/09/2017
Delivery Units,Adults and Communities,Other Agencies - Third Party P,0090018692,KARUNA MANOR," 4,207.14 ",19/09/2017
Delivery Units,Adults and Communities,Other Agencies - Third Party P,0090017494,LIFESTYLE CARE PLC," 2,165.68 ",15/09/2017
Delivery Units,Adults and Communities,Other Agencies - Third Party P,0090016142,MEERA NURSING HOME LIMITED," 2,445.68 ",06/09/2017
Delivery Units,Adults and Communities,Other Agencies - Third Party P,0090016143,MEERA NURSING HOME LIMITED," 2,708.65 ",06/09/2017
Delivery Units,Adults and Communities,Other Agencies - Third Party P,0090016144,MEERA NURSING HOME LIMITED," 2,445.68 ",06/09/2017
Delivery Units,Adults and Communities,Other Agencies - Third Party P,0090016145,MEERA NURSING HOME LIMITED," 2,708.65 ",06/09/2017
Delivery Units,Adults and Communities,Other Agencies - Third Party P,0090016146,MEERA NURSING HOME LIMITED," 2,907.93 ",06/09/2017
Delivery Units,Adults and Communities,Other Agencies - Third Party P,0090016147,MEERA NURSING HOME LIMITED," 2,445.68 ",06/09/2017
Delivery Units,Adults and Communities,Other Agencies - Third Party P,0090016250,MEERA NURSING HOME LIMITED, 140.79 ,06/09/2017
Delivery Units,Adults and Communities,Other Agencies - Third Party P,0090016251,MEERA NURSING HOME LIMITED, 167.75 ,06/09/2017
Delivery Units,Adults and Communities,Other Agencies - Third Party P,0090016252,MEERA NURSING HOME LIMITED, 756.86 ,06/09/2017
Delivery Units,Adults and Communities,Other Agencies - Third Party P,0090016253,MEERA NURSING HOME LIMITED, 140.79 ,06/09/2017
Delivery Units,Adults and Communities,Other Agencies - Third Party P,0090016254,MEERA NURSING HOME LIMITED, 912.73 ,06/09/2017
Delivery Units,Adults and Communities,Other Agencies - Third Party P,0090016255,MEERA NURSING HOME LIMITED, 140.79 ,06/09/2017
Delivery Units,Adults and Communities,Other Agencies - Third Party P,0090016256,MEERA NURSING HOME LIMITED, 140.79 ,06/09/2017
Delivery Units,Adults and Communities,Other Agencies - Third Party P,0090016257,MEERA NURSING HOME LIMITED, 118.85 ,06/09/2017
Delivery Units,Adults and Communities,Other Agencies - Third Party P,0090018363,MEERA NURSING HOME LIMITED," 2,907.93 ",14/09/2017
Delivery Units,Adults and Communities,Other Agencies - Third Party P,0090018364,MEERA NURSING HOME LIMITED," 2,445.68 ",14/09/2017
Delivery Units,Adults and Communities,Other Agencies - Third Party P,0090018365,MEERA NURSING HOME LIMITED," 2,445.68 ",14/09/2017
Delivery Units,Adults and Communities,Other Agencies - Third Party P,0090018366,MEERA NURSING HOME LIMITED," 2,708.65 ",14/09/2017
Delivery Units,Adults and Communities,Other Agencies - Third Party P,0090018367,MEERA NURSING HOME LIMITED," 2,708.65 ",14/09/2017
Delivery Units,Adults and Communities,Other Agencies - Third Party P,0090018368,MEERA NURSING HOME LIMITED," 2,445.68 ",14/09/2017
Delivery Units,Adults and Communities,Other Agencies - Third Party P,0090018369,MEERA NURSING HOME LIMITED," 2,445.68 ",14/09/2017
Delivery Units,Adults and Communities,Other Agencies - Third Party P,0090021938,MEERA NURSING HOME LIMITED,"2,366.79",29/09/2017
Delivery Units,Adults and Communities,Other Agencies - Third Party P,0090021939,MEERA NURSING HOME LIMITED," 2,366.79 ",29/09/2017
Delivery Units,Adults and Communities,Other Agencies - Third Party P,0090021940,MEERA NURSING HOME LIMITED," 2,621.27 ",29/09/2017
Delivery Units,Adults and Communities,Other Agencies - Third Party P,0090021941,MEERA NURSING HOME LIMITED," 2,366.79 ",29/09/2017
Delivery Units,Adults and Communities,Other Agencies - Third Party P,0090021942,MEERA NURSING HOME LIMITED,"2,366.79",29/09/2017
Delivery Units,Adults and Communities,Other Agencies - Third Party P,0090021943,MEERA NURSING HOME LIMITED," 2,621.27 ",29/09/2017
Delivery Units,Adults and Communities,Other Agencies - Third Party P,0090019879,MURRAYFIELD CARE HOME," 2,211.80 ",20/09/2017
Delivery Units,Adults and Communities,Other Agencies - Third Party P,0090021666,MURRAYFIELD CARE HOME," 1,579.86 ",28/09/2017
Delivery Units,Adults and Communities,Other Agencies - Third Party P,0090021667,MURRAYFIELD CARE HOME,"2,211.80",28/09/2017
Delivery Units,Adults and Communities,Other Agencies - Third Party P,0090021668,MURRAYFIELD CARE HOME,"2,211.80",28/09/2017
Delivery Units,Adults and Communities,Other Agencies - Third Party P,0090018288,NEWCENTURY CARE LTD," 2,655.55 ",14/09/2017
Delivery Units,Adults and Communities,Other Agencies - Third Party P,0090018289,NEWCENTURY CARE LTD," 2,655.55 ",14/09/2017
Delivery Units,Adults and Communities,Other Agencies - Third Party P,0090018290,NEWCENTURY CARE LTD," 2,398.56 ",14/09/2017
Delivery Units,Adults and Communities,Other Agencies - Third Party P,0090018291,NEWCENTURY CARE LTD," 3,764.29 ",14/09/2017
Delivery Units,Adults and Communities,Other Agencies - Third Party P,0090018292,NEWCENTURY CARE LTD," 2,655.55 ",14/09/2017
Delivery Units,Adults and Communities,Other Agencies - Third Party P,0090018293,NEWCENTURY CARE LTD,"3,764.29",14/09/2017
Delivery Units,Adults and Communities,Other Agencies - Third Party P,0090018294,NEWCENTURY CARE LTD," 3,764.29 ",14/09/2017
Delivery Units,Adults and Communities,Other Agencies - Third Party P,0090020922,NEWCENTURY CARE LTD," 2,398.56 ",25/09/2017
Delivery Units,Adults and Communities,Other Agencies - Third Party P,0090020923,NEWCENTURY CARE LTD," 3,642.86 ",25/09/2017
Delivery Units,Adults and Communities,Other Agencies - Third Party P,0090020924,NEWCENTURY CARE LTD," 2,569.89 ",25/09/2017
Delivery Units,Adults and Communities,Other Agencies - Third Party P,0090020925,NEWCENTURY CARE LTD," 3,642.86 ",25/09/2017
Delivery Units,Adults and Communities,Other Agencies - Third Party P,0090020926,NEWCENTURY CARE LTD," 3,642.86 ",25/09/2017
Delivery Units,Adults and Communities,Other Agencies - Third Party P,0090020928,NEWCENTURY CARE LTD," 2,569.89 ",25/09/2017
Delivery Units,Adults and Communities,Other Agencies - Third Party P,0090020929,NEWCENTURY CARE LTD," 2,569.89 ",25/09/2017
Delivery Units,Adults and Communities,Other Agencies - Third Party P,0030170449,NHS BARNET CCG,"32,500.00",28/09/2017
Delivery Units,Adults and Communities,Other Agencies - Third Party P,0090018990,SANCTUARY CARE LTD,"2,490.81",19/09/2017
Delivery Units,Adults and Communities,Other Agencies - Third Party P,0090021958,SONESTA NURSING HOME LTD.," 2,320.37 ",29/09/2017
Delivery Units,Adults and Communities,Other Agencies - Third Party P,0090021960,SONESTA NURSING HOME LTD.," 2,569.89 ",29/09/2017
Delivery Units,Adults and Communities,Other Agencies - Third Party P,0090016420,ST ANNS HOME-LITTLE SISTERS OF THE POOR," 2,397.71 ",06/09/2017
Delivery Units,Adults and Communities,Other Agencies - Third Party P,0090017495,THE ELMS CARE HOME (BUPA)," 2,088.34 ",13/09/2017
Delivery Units,Adults and Communities,Other Agencies - Third Party P,0030169431,THE LEONARD CHESHIRE FOUNDATION," 3,582.14 ",11/09/2017
Delivery Units,Adults and Communities,Other Agencies - Third Party P,0030169432,THE LEONARD CHESHIRE FOUNDATION, 421.43 ,11/09/2017
Delivery Units,Adults and Communities,Other Agencies - Third Party P,0090016761,THE LEONARD CHESHIRE FOUNDATION,"6,532.14",26/09/2017
Delivery Units,Adults and Communities,Other Agencies - Third Party P,0090016282,VICTORIA CARE CENTRE," 2,958.95 ",06/09/2017
Delivery Units,Adults and Communities,Other Agencies - Third Party P,0030170438,WESTMINSTER HEALTH CARE LTD, 149.61 ,22/09/2017
Delivery Units,Adults and Communities,Other Agencies - Third Party P,0090016840,WESTMINSTER HEALTH CARE LTD," 2,324.25 ",11/09/2017
Delivery Units,Adults and Communities,Other Agencies - Third Party P,0090016841,WESTMINSTER HEALTH CARE LTD,"2,307.37",11/09/2017
Delivery Units,Adults and Communities,Other Agencies - Third Party P,0090016842,WESTMINSTER HEALTH CARE LTD," 2,324.25 ",11/09/2017
Delivery Units,Adults and Communities,Other Agencies - Third Party P,0090016959,WESTMINSTER HEALTH CARE LTD," 2,318.93 ",12/09/2017
Delivery Units,Adults and Communities,Other Agencies - Third Party P,0090019875,WESTMINSTER HEALTH CARE LTD," 2,094.52 ",20/09/2017
Delivery Units,Adults and Communities,Other Agencies - Third Party P,0090021953,WESTMINSTER HEALTH CARE LTD," 2,249.27 ",29/09/2017
Delivery Units,Adults and Communities,Other Agencies - Third Party P,0090021954,WESTMINSTER HEALTH CARE LTD," 2,232.94 ",29/09/2017
Delivery Units,Adults and Communities,Other Agencies - Third Party P,0090021955,WESTMINSTER HEALTH CARE LTD," 2,249.27 ",29/09/2017
Delivery Units,Adults and Communities,Other Agencies - Third Party P,0090015965,WILSMERE HOUSE CARE CENTRE," 5,421.90 ",05/09/2017
Delivery Units,Adults and Communities,Other Agencies - Third Party P,0090020866,WILSMERE HOUSE CARE CENTRE," 5,247.00 ",25/09/2017
Delivery Units,Adults and Communities,Other Agencies - Third Party P,0090019973,AARANDALE LODGE," 2,600.00 ",20/09/2017
Delivery Units,Adults and Communities,Other Agencies - Third Party P,0090020847,AARON COURT CARE HOME," 2,144.91 ",25/09/2017
Delivery Units,Adults and Communities,Other Agencies - Third Party P,0090022043,ABBEY RAVENSCROFT PARK NURSING HOME," 2,571.43 ",29/09/2017
Delivery Units,Adults and Communities,Other Agencies - Third Party P,0090018130,ALDWYCK HOUSING GROUP," 2,249.45 ",14/09/2017
Delivery Units,Adults and Communities,Other Agencies - Third Party P,0090018131,ALDWYCK HOUSING GROUP,"2,249.45",14/09/2017
Delivery Units,Adults and Communities,Other Agencies - Third Party P,0090019845,ALEXANDRA HOUSE (RUNWOOD HOMES)," 2,262.69 ",20/09/2017
Delivery Units,Adults and Communities,Other Agencies - Third Party P,0080012656,AN DIANDAN HOUSE," 13,753.16 ",26/09/2017
Delivery Units,Adults and Communities,Other Agencies - Third Party P,0090017496,ANASTASIA LODGE," 3,000.00 ",13/09/2017
Delivery Units,Adults and Communities,Other Agencies - Third Party P,0090017497,ANASTASIA LODGE," 2,800.00 ",13/09/2017
Delivery Units,Adults and Communities,Other Agencies - Third Party P,0030169297,ANGEL HEALTHCARE LTD - GLENMUIR HOUSE,552.93,01/09/2017
Delivery Units,Adults and Communities,Other Agencies - Third Party P,0090019834,APPLE TREE COURT CARE HOME," 2,418.04 ",20/09/2017
Delivery Units,Adults and Communities,Other Agencies - Third Party P,0090019836,APPLE TREE COURT CARE HOME," 3,542.86 ",20/09/2017
Delivery Units,Adults and Communities,Other Agencies - Third Party P,0090019837,APPLE TREE COURT CARE HOME,"2,448.78",20/09/2017
Delivery Units,Adults and Communities,Other Agencies - Third Party P,0090018978,ASHFIELDS RESIDENTIAL CARE HOME," 2,448.78 ",19/09/2017
Delivery Units,Adults and Communities,Other Agencies - Third Party P,0090018979,ASHFIELDS RESIDENTIAL CARE HOME," 2,448.78 ",19/09/2017
Delivery Units,Adults and Communities,Other Agencies - Third Party P,0090018980,ASHFIELDS RESIDENTIAL CARE HOME," 2,448.78 ",19/09/2017
Delivery Units,Adults and Communities,Other Agencies - Third Party P,0090018981,ASHFIELDS RESIDENTIAL CARE HOME," 2,249.27 ",19/09/2017
Delivery Units,Adults and Communities,Other Agencies - Third Party P,0090018983,ASHFIELDS RESIDENTIAL CARE HOME,"2,448.78",19/09/2017
Delivery Units,Adults and Communities,Other Agencies - Third Party P,0090018985,ASHFIELDS RESIDENTIAL CARE HOME," 2,448.78 ",19/09/2017
Delivery Units,Adults and Communities,Other Agencies - Third Party P,0090019005,ASHFIELDS RESIDENTIAL CARE HOME," 1,421.87 ",19/09/2017
Delivery Units,Adults and Communities,Other Agencies - Third Party P,0090016275,ASHTON LODGE CARE CENTRE," 2,211.80 ",06/09/2017
Delivery Units,Adults and Communities,Other Agencies - Third Party P,0090018299,ASHTON LODGE CARE CENTRE," 2,622.64 ",14/09/2017
Delivery Units,Adults and Communities,Other Agencies - Third Party P,0090018301,ASHTON LODGE CARE CENTRE," 2,622.64 ",14/09/2017
Delivery Units,Adults and Communities,Other Agencies - Third Party P,0090021850,ASHTON LODGE CARE CENTRE," 2,538.04 ",29/09/2017
Delivery Units,Adults and Communities,Other Agencies - Third Party P,0090021852,ASHTON LODGE CARE CENTRE," 2,538.04 ",29/09/2017
Delivery Units,Adults and Communities,Other Agencies - Third Party P,0030169877,ASPEN VILLAGES LTD, 950.00 ,18/09/2017
Delivery Units,Adults and Communities,Other Agencies - Third Party P,0090016776,ASPEN VILLAGES LTD," 3,321.43 ",08/09/2017
Delivery Units,Adults and Communities,Other Agencies - Third Party P,0090016778,ASPEN VILLAGES LTD," 2,216.41 ",08/09/2017
Delivery Units,Adults and Communities,Other Agencies - Third Party P,0090021875,ASPEN VILLAGES LTD,"3,214.29",29/09/2017
Delivery Units,Adults and Communities,Other Agencies - Third Party P,0090021877,ASPEN VILLAGES LTD," 2,144.91 ",29/09/2017
Delivery Units,Adults and Communities,Other Agencies - Third Party P,0090017486,AUTUMN GARDENS," 3,160.00 ",13/09/2017
Delivery Units,Adults and Communities,Other Agencies - Third Party P,0090017487,AUTUMN GARDENS," 2,880.00 ",13/09/2017
Delivery Units,Adults and Communities,Other Agencies - Third Party P,0090018663,AUTUMN GARDENS," 2,800.00 ",19/09/2017
Delivery Units,Adults and Communities,Other Agencies - Third Party P,0090021583,B & M CARE,"2,515.05",27/09/2017
Delivery Units,Adults and Communities,Other Agencies - Third Party P,0090021585,B & M CARE," 2,522.25 ",27/09/2017
Delivery Units,Adults and Communities,Other Agencies - Third Party P,0090021586,B & M CARE,"2,737.92",27/09/2017
Delivery Units,Adults and Communities,Other Agencies - Third Party P,0090022025,B & M CARE," 2,242.20 ",29/09/2017
Delivery Units,Adults and Communities,Other Agencies - Third Party P,0090022026,B & M CARE," 2,440.89 ",29/09/2017
Delivery Units,Adults and Communities,Other Agencies - Third Party P,0090016763,BELMONT LODGE CARE CENTRE," 2,404.71 ",08/09/2017
Delivery Units,Adults and Communities,Other Agencies - Third Party P,0090021866,BELMONT LODGE CARE CENTRE," 2,327.14 ",29/09/2017
Delivery Units,Adults and Communities,Other Agencies - Third Party P,0090018125,BIRCHWOOD GRANGE CARE HOME," 2,657.14 ",14/09/2017
Delivery Units,Adults and Communities,Other Agencies - Third Party P,0090020857,BIRCHWOOD GRANGE CARE HOME,"2,571.43",25/09/2017
Delivery Units,Adults and Communities,Other Agencies - Third Party P,0030169879,BUPA CARE HOMES, 149.31 ,18/09/2017
Delivery Units,Adults and Communities,Other Agencies - Third Party P,0090016764,BUPA CARE HOMES," 2,090.28 ",08/09/2017
Delivery Units,Adults and Communities,Other Agencies - Third Party P,0090018673,BUPA CARE HOMES,"2,437.24",19/09/2017
Delivery Units,Adults and Communities,Other Agencies - Third Party P,0090019846,BUPA CARE HOMES," 2,448.78 ",20/09/2017
Delivery Units,Adults and Communities,Other Agencies - Third Party P,0090019847,BUPA CARE HOMES," 2,314.24 ",20/09/2017
Delivery Units,Adults and Communities,Other Agencies - Third Party P,0090019864,BUPA CARE HOMES," 2,314.24 ",20/09/2017
Delivery Units,Adults and Communities,Other Agencies - Third Party P,0090019865,BUPA CARE HOMES," 2,239.59 ",20/09/2017
Delivery Units,Adults and Communities,Other Agencies - Third Party P,0090019866,BUPA CARE HOMES," 2,314.24 ",20/09/2017
Delivery Units,Adults and Communities,Other Agencies - Third Party P,0090019867,BUPA CARE HOMES," 2,314.24 ",20/09/2017
Delivery Units,Adults and Communities,Other Agencies - Third Party P,0090019984,BUPA NURSING HOMES LTD - ARKLEY," 2,089.68 ",21/09/2017
Delivery Units,Adults and Communities,Other Agencies - Third Party P,0090018360,CARLTON COURT (TLC GROUP)," 2,249.45 ",14/09/2017
Delivery Units,Adults and Communities,Other Agencies - Third Party P,0090021824,CARLTON COURT (TLC GROUP),"2,176.89",29/09/2017
Delivery Units,Adults and Communities,Other Transfer Payments to Soc,0060086546,CATALYST HOUSING LTD," 224,521.52 ",18/09/2017
Delivery Units,Adults and Communities,Other Agencies - Third Party P,0090016818,CATHERINE LODGE," 2,211.80 ",11/09/2017
Delivery Units,Adults and Communities,Other Agencies - Third Party P,0090016819,CATHERINE LODGE," 2,211.80 ",11/09/2017
Delivery Units,Adults and Communities,Other Agencies - Third Party P,0090019822,CATHERINE LODGE," 2,211.80 ",20/09/2017
Delivery Units,Adults and Communities,Other Agencies - Third Party P,0090019823,CATHERINE LODGE,"2,920.00",20/09/2017
Delivery Units,Adults and Communities,Other Agencies - Third Party P,0090021669,CATHERINE LODGE," 2,211.80 ",28/09/2017
Delivery Units,Adults and Communities,Other Agencies - Third Party P,0090021670,CATHERINE LODGE,"1,421.87",28/09/2017
Delivery Units,Adults and Communities,Other Agencies - Third Party P,0090016116,CLOVELLY HOUSE RESID. HOME LTD,"(1,886.43)",13/09/2017
Delivery Units,Adults and Communities,Other Agencies - Third Party P,0090017572,CLOVELLY HOUSE RESID. HOME LTD," 2,211.80 ",13/09/2017
Delivery Units,Adults and Communities,Other Agencies - Third Party P,0090017573,CLOVELLY HOUSE RESID. HOME LTD," 2,600.00 ",13/09/2017
Delivery Units,Adults and Communities,Other Agencies - Third Party P,0090017574,CLOVELLY HOUSE RESID. HOME LTD," 2,211.80 ",13/09/2017
Delivery Units,Adults and Communities,Other Agencies - Third Party P,0090017577,CLOVELLY HOUSE RESID. HOME LTD," 2,780.00 ",13/09/2017
Delivery Units,Adults and Communities,Other Agencies - Third Party P,0090017578,CLOVELLY HOUSE RESID. HOME LTD," 2,600.00 ",13/09/2017
Delivery Units,Adults and Communities,Other Agencies - Third Party P,0090017580,CLOVELLY HOUSE RESID. HOME LTD," 2,600.00 ",13/09/2017
Delivery Units,Adults and Communities,Other Agencies - Third Party P,0090017581,CLOVELLY HOUSE RESID. HOME LTD," 2,780.00 ",13/09/2017
Delivery Units,Adults and Communities,Other Agencies - Third Party P,0090018341,CLOVELLY HOUSE RESID. HOME LTD," 2,780.00 ",14/09/2017
Delivery Units,Adults and Communities,Other Agencies - Third Party P,0090018343,CLOVELLY HOUSE RESID. HOME LTD," 2,600.00 ",14/09/2017
Delivery Units,Adults and Communities,Other Agencies - Third Party P,0090018344,CLOVELLY HOUSE RESID. HOME LTD," 2,600.00 ",14/09/2017
Delivery Units,Adults and Communities,Other Agencies - Third Party P,0090018345,CLOVELLY HOUSE RESID. HOME LTD," 2,780.00 ",14/09/2017
Delivery Units,Adults and Communities,Other Agencies - Third Party P,0090018347,CLOVELLY HOUSE RESID. HOME LTD," 2,211.80 ",14/09/2017
Delivery Units,Adults and Communities,Other Agencies - Third Party P,0090018348,CLOVELLY HOUSE RESID. HOME LTD,"2,600.00",14/09/2017
Delivery Units,Adults and Communities,Other Agencies - Third Party P,0090018349,CLOVELLY HOUSE RESID. HOME LTD," 2,211.80 ",14/09/2017
Delivery Units,Adults and Communities,Other Agencies - Third Party P,0090018350,CLOVELLY HOUSE RESID. HOME LTD," 2,780.00 ",14/09/2017
Delivery Units,Adults and Communities,Other Agencies - Third Party P,0090018141,DELAMER HOUSE," 2,435.71 ",14/09/2017
Delivery Units,Adults and Communities,Other Agencies - Third Party P,0090020832,DELAMER HOUSE," 2,357.14 ",25/09/2017
Delivery Units,Adults and Communities,Other Agencies - Third Party P,0090016165,DOWNLANDS CARE LTD," 2,079.17 ",06/09/2017
Delivery Units,Adults and Communities,Other Agencies - Third Party P,0090020881,DOWNLANDS CARE LTD," 2,012.10 ",25/09/2017
Delivery Units,Adults and Communities,Other Agencies - Third Party P,0090015099,EASTSIDE HOUSE RESIDENTIAL CARE HOM," 4,063.52 ",05/09/2017
Delivery Units,Adults and Communities,Other Agencies - Third Party P,0090016258,EASTSIDE HOUSE RESIDENTIAL CARE HOM," 3,080.00 ",05/09/2017
Delivery Units,Adults and Communities,Other Agencies - Third Party P,0090019014,EASTSIDE HOUSE RESIDENTIAL CARE HOM," 3,080.00 ",22/09/2017
Delivery Units,Adults and Communities,Other Agencies - Third Party P,0090022012,ELEANOR PALMER TRUST NO 2 A/C.," 2,464.59 ",29/09/2017
Delivery Units,Adults and Communities,Other Agencies - Third Party P,0090022013,ELEANOR PALMER TRUST NO 2 A/C.,"2,464.59",29/09/2017
Delivery Units,Adults and Communities,Other Agencies - Third Party P,0090022014,ELEANOR PALMER TRUST NO 2 A/C.," 2,263.97 ",29/09/2017
Delivery Units,Adults and Communities,Other Agencies - Third Party P,0090022015,ELEANOR PALMER TRUST NO 2 A/C.,"2,263.97",29/09/2017
Delivery Units,Adults and Communities,Other Agencies - Third Party P,0090022016,ELEANOR PALMER TRUST NO 2 A/C.," 2,464.59 ",29/09/2017
Delivery Units,Adults and Communities,Other Agencies - Third Party P,0090022017,ELEANOR PALMER TRUST NO 2 A/C.," 2,464.59 ",29/09/2017
Delivery Units,Adults and Communities,Other Agencies - Third Party P,0090022019,ELEANOR PALMER TRUST NO 2 A/C.," 2,263.97 ",29/09/2017
Delivery Units,Adults and Communities,Other Agencies - Third Party P,0090022020,ELEANOR PALMER TRUST NO 2 A/C.,"2,464.59",29/09/2017
Delivery Units,Adults and Communities,Other Agencies - Third Party P,0090022022,ELEANOR PALMER TRUST NO 2 A/C.,"2,263.97",29/09/2017
Delivery Units,Adults and Communities,Other Agencies - Third Party P,0090022024,ELEANOR PALMER TRUST NO 2 A/C.,"2,464.59",29/09/2017
Delivery Units,Adults and Communities,Other Agencies - Third Party P,0090021580,ELIZABETH HOUSE,"2,369.79",27/09/2017
Delivery Units,Adults and Communities,Other Agencies - Third Party P,0090016396,ELM PARK LODGE,"3,170.86",07/09/2017
Delivery Units,Adults and Communities,Other Agencies - Third Party P,0090018694,ELM PARK LODGE," 1,328.57 ",21/09/2017
Delivery Units,Adults and Communities,Other Agencies - Third Party P,0090021594,ELM PARK LODGE,"3,321.43",27/09/2017
Delivery Units,Adults and Communities,Other Agencies - Third Party P,0090018159,FINBOND LIMITED," 2,431.29 ",14/09/2017
Delivery Units,Adults and Communities,Other Agencies - Third Party P,0090018161,FINBOND LIMITED,"2,216.41",14/09/2017
Delivery Units,Adults and Communities,Other Agencies - Third Party P,0090018162,FINBOND LIMITED,"3,321.43",14/09/2017
Delivery Units,Adults and Communities,Other Agencies - Third Party P,0090020860,FINBOND LIMITED,"3,214.29",25/09/2017
Delivery Units,Adults and Communities,Other Agencies - Third Party P,0090020861,FINBOND LIMITED," 2,144.91 ",25/09/2017
Delivery Units,Adults and Communities,Other Agencies - Third Party P,0090020863,FINBOND LIMITED," 2,352.86 ",25/09/2017
Delivery Units,Adults and Communities,Other Agencies - Third Party P,0080012213,FOUR SEASONS HEALTH CARE,"2,500.72",12/09/2017
Delivery Units,Adults and Communities,Other Agencies - Third Party P,0090015702,FREMANTLE TRUST," 2,096.00 ",05/09/2017
Delivery Units,Adults and Communities,Other Agencies - Third Party P,0090015704,FREMANTLE TRUST,"2,096.00",05/09/2017
Delivery Units,Adults and Communities,Other Agencies - Third Party P,0090015706,FREMANTLE TRUST," 2,096.00 ",05/09/2017
Delivery Units,Adults and Communities,Other Agencies - Third Party P,0090015707,FREMANTLE TRUST,"2,096.00",05/09/2017
Delivery Units,Adults and Communities,Other Agencies - Third Party P,0090015709,FREMANTLE TRUST," 2,096.00 ",05/09/2017
Delivery Units,Adults and Communities,Other Agencies - Third Party P,0090015710,FREMANTLE TRUST,"2,096.00",05/09/2017
Delivery Units,Adults and Communities,Other Agencies - Third Party P,0090015712,FREMANTLE TRUST," 2,096.00 ",05/09/2017
Delivery Units,Adults and Communities,Other Agencies - Third Party P,0090015714,FREMANTLE TRUST,"2,096.00",05/09/2017
Delivery Units,Adults and Communities,Other Agencies - Third Party P,0090015715,FREMANTLE TRUST," 2,096.00 ",05/09/2017
Delivery Units,Adults and Communities,Other Agencies - Third Party P,0090015716,FREMANTLE TRUST," 2,096.00 ",05/09/2017
Delivery Units,Adults and Communities,Other Agencies - Third Party P,0090015717,FREMANTLE TRUST," 2,284.00 ",05/09/2017
Delivery Units,Adults and Communities,Other Agencies - Third Party P,0090015718,FREMANTLE TRUST," 2,284.00 ",05/09/2017
Delivery Units,Adults and Communities,Other Agencies - Third Party P,0090015720,FREMANTLE TRUST," 2,096.00 ",05/09/2017
Delivery Units,Adults and Communities,Other Agencies - Third Party P,0090015721,FREMANTLE TRUST,"2,096.00",05/09/2017
Delivery Units,Adults and Communities,Other Agencies - Third Party P,0090015722,FREMANTLE TRUST," 2,284.00 ",05/09/2017
Delivery Units,Adults and Communities,Other Agencies - Third Party P,0090015724,FREMANTLE TRUST," 2,284.00 ",05/09/2017
Delivery Units,Adults and Communities,Other Agencies - Third Party P,0090015726,FREMANTLE TRUST," 2,096.00 ",05/09/2017
Delivery Units,Adults and Communities,Other Agencies - Third Party P,0090015727,FREMANTLE TRUST," 2,096.00 ",05/09/2017
Delivery Units,Adults and Communities,Other Agencies - Third Party P,0090015728,FREMANTLE TRUST," 2,284.00 ",05/09/2017
Delivery Units,Adults and Communities,Other Agencies - Third Party P,0090015729,FREMANTLE TRUST," 2,284.00 ",05/09/2017
Delivery Units,Adults and Communities,Other Agencies - Third Party P,0090015730,FREMANTLE TRUST,"2,096.00",05/09/2017
Delivery Units,Adults and Communities,Other Agencies - Third Party P,0090015731,FREMANTLE TRUST," 2,284.00 ",05/09/2017
Delivery Units,Adults and Communities,Other Agencies - Third Party P,0090015732,FREMANTLE TRUST,"2,284.00",05/09/2017
Delivery Units,Adults and Communities,Other Agencies - Third Party P,0090015733,FREMANTLE TRUST," 2,284.00 ",05/09/2017
Delivery Units,Adults and Communities,Other Agencies - Third Party P,0090015734,FREMANTLE TRUST,"2,284.00",05/09/2017
Delivery Units,Adults and Communities,Other Agencies - Third Party P,0090015738,FREMANTLE TRUST," 2,284.00 ",05/09/2017
Delivery Units,Adults and Communities,Other Agencies - Third Party P,0090015740,FREMANTLE TRUST," 2,096.00 ",05/09/2017
Delivery Units,Adults and Communities,Other Agencies - Third Party P,0090015741,FREMANTLE TRUST," 2,096.00 ",05/09/2017
Delivery Units,Adults and Communities,Other Agencies - Third Party P,0090015742,FREMANTLE TRUST," 2,096.00 ",05/09/2017
Delivery Units,Adults and Communities,Other Agencies - Third Party P,0090015743,FREMANTLE TRUST,"2,096.00",05/09/2017
Delivery Units,Adults and Communities,Other Agencies - Third Party P,0090015744,FREMANTLE TRUST," 2,284.00 ",05/09/2017
Delivery Units,Adults and Communities,Other Agencies - Third Party P,0090015745,FREMANTLE TRUST," 2,096.00 ",05/09/2017
Delivery Units,Adults and Communities,Other Agencies - Third Party P,0090015746,FREMANTLE TRUST," 2,096.00 ",05/09/2017
Delivery Units,Adults and Communities,Other Agencies - Third Party P,0090015747,FREMANTLE TRUST,"2,096.00",05/09/2017
Delivery Units,Adults and Communities,Other Agencies - Third Party P,0090015748,FREMANTLE TRUST,"2,284.00",05/09/2017
Delivery Units,Adults and Communities,Other Agencies - Third Party P,0090015749,FREMANTLE TRUST," 2,284.00 ",05/09/2017
Delivery Units,Adults and Communities,Other Agencies - Third Party P,0090015750,FREMANTLE TRUST," 2,096.00 ",05/09/2017
Delivery Units,Adults and Communities,Other Agencies - Third Party P,0090015751,FREMANTLE TRUST,"2,284.00",05/09/2017
Delivery Units,Adults and Communities,Other Agencies - Third Party P,0090015752,FREMANTLE TRUST,"2,096.00",05/09/2017
Delivery Units,Adults and Communities,Other Agencies - Third Party P,0090015753,FREMANTLE TRUST," 2,284.00 ",05/09/2017
Delivery Units,Adults and Communities,Other Agencies - Third Party P,0090015754,FREMANTLE TRUST," 2,284.00 ",05/09/2017
Delivery Units,Adults and Communities,Other Agencies - Third Party P,0090015755,FREMANTLE TRUST," 2,284.00 ",05/09/2017
Delivery Units,Adults and Communities,Other Agencies - Third Party P,0090015758,FREMANTLE TRUST,"2,284.00",05/09/2017
Delivery Units,Adults and Communities,Other Agencies - Third Party P,0090015759,FREMANTLE TRUST,"2,096.00",05/09/2017
Delivery Units,Adults and Communities,Other Agencies - Third Party P,0090015760,FREMANTLE TRUST,"2,096.00",05/09/2017
Delivery Units,Adults and Communities,Other Agencies - Third Party P,0090015761,FREMANTLE TRUST," 2,284.00 ",05/09/2017
Delivery Units,Adults and Communities,Other Agencies - Third Party P,0090015762,FREMANTLE TRUST," 2,096.00 ",05/09/2017
Delivery Units,Adults and Communities,Other Agencies - Third Party P,0090015764,FREMANTLE TRUST," 2,284.00 ",05/09/2017
Delivery Units,Adults and Communities,Other Agencies - Third Party P,0090015766,FREMANTLE TRUST,"2,096.00",05/09/2017
Delivery Units,Adults and Communities,Other Agencies - Third Party P,0090015767,FREMANTLE TRUST,"2,284.00",05/09/2017
Delivery Units,Adults and Communities,Other Agencies - Third Party P,0090015769,FREMANTLE TRUST," 2,096.00 ",05/09/2017
Delivery Units,Adults and Communities,Other Agencies - Third Party P,0090015772,FREMANTLE TRUST,"2,096.00",05/09/2017
Delivery Units,Adults and Communities,Other Agencies - Third Party P,0090015773,FREMANTLE TRUST," 2,284.00 ",05/09/2017
Delivery Units,Adults and Communities,Other Agencies - Third Party P,0090015774,FREMANTLE TRUST,"2,284.00",05/09/2017
Delivery Units,Adults and Communities,Other Agencies - Third Party P,0090015776,FREMANTLE TRUST,"2,284.00",05/09/2017
Delivery Units,Adults and Communities,Other Agencies - Third Party P,0090015777,FREMANTLE TRUST,"2,096.00",05/09/2017
Delivery Units,Adults and Communities,Other Agencies - Third Party P,0090015778,FREMANTLE TRUST,"2,284.00",05/09/2017
Delivery Units,Adults and Communities,Other Agencies - Third Party P,0090015780,FREMANTLE TRUST," 2,284.00 ",05/09/2017
Delivery Units,Adults and Communities,Other Agencies - Third Party P,0090015781,FREMANTLE TRUST," 2,284.00 ",05/09/2017
Delivery Units,Adults and Communities,Other Agencies - Third Party P,0090015782,FREMANTLE TRUST,"2,284.00",05/09/2017
Delivery Units,Adults and Communities,Other Agencies - Third Party P,0090015783,FREMANTLE TRUST,"2,096.00",05/09/2017
Delivery Units,Adults and Communities,Other Agencies - Third Party P,0090015785,FREMANTLE TRUST," 2,284.00 ",05/09/2017
Delivery Units,Adults and Communities,Other Agencies - Third Party P,0090015786,FREMANTLE TRUST," 2,284.00 ",05/09/2017
Delivery Units,Adults and Communities,Other Agencies - Third Party P,0090015787,FREMANTLE TRUST," 2,096.00 ",05/09/2017
Delivery Units,Adults and Communities,Other Agencies - Third Party P,0090015788,FREMANTLE TRUST," 2,284.00 ",05/09/2017
Delivery Units,Adults and Communities,Other Agencies - Third Party P,0090015789,FREMANTLE TRUST," 2,284.00 ",05/09/2017
Delivery Units,Adults and Communities,Other Agencies - Third Party P,0090015792,FREMANTLE TRUST,"2,284.00",05/09/2017
Delivery Units,Adults and Communities,Other Agencies - Third Party P,0090015793,FREMANTLE TRUST,"2,096.00",05/09/2017
Delivery Units,Adults and Communities,Other Agencies - Third Party P,0090015795,FREMANTLE TRUST," 1,868.20 ",05/09/2017
Delivery Units,Adults and Communities,Other Agencies - Third Party P,0090018225,FREMANTLE TRUST," 28,251.14 ",14/09/2017
Delivery Units,Adults and Communities,Other Agencies - Third Party P,0090018226,FREMANTLE TRUST," 15,725.01 ",14/09/2017
Delivery Units,Adults and Communities,Other Agencies - Third Party P,0090018227,FREMANTLE TRUST,"11,418.79",14/09/2017
Delivery Units,Adults and Communities,Other Agencies - Third Party P,0090020120,FREMANTLE TRUST," 22,854.42 ",22/09/2017
Delivery Units,Adults and Communities,Other Agencies - Third Party P,0090020121,FREMANTLE TRUST," 7,036.57 ",22/09/2017
Delivery Units,Adults and Communities,Other Agencies - Third Party P,0090020122,FREMANTLE TRUST,"2,284.00",22/09/2017
Delivery Units,Adults and Communities,Other Agencies - Third Party P,0090020123,FREMANTLE TRUST," 2,096.00 ",22/09/2017
Delivery Units,Adults and Communities,Other Agencies - Third Party P,0090020124,FREMANTLE TRUST," 2,096.00 ",22/09/2017
Delivery Units,Adults and Communities,Other Agencies - Third Party P,0090020126,FREMANTLE TRUST,"2,096.00",22/09/2017
Delivery Units,Adults and Communities,Other Agencies - Third Party P,0090020128,FREMANTLE TRUST,"2,096.00",22/09/2017
Delivery Units,Adults and Communities,Other Agencies - Third Party P,0090020129,FREMANTLE TRUST," 2,096.00 ",22/09/2017
Delivery Units,Adults and Communities,Other Agencies - Third Party P,0090020131,FREMANTLE TRUST," 2,096.00 ",22/09/2017
Delivery Units,Adults and Communities,Other Agencies - Third Party P,0090020132,FREMANTLE TRUST," 2,096.00 ",22/09/2017
Delivery Units,Adults and Communities,Other Agencies - Third Party P,0090020134,FREMANTLE TRUST," 2,096.00 ",22/09/2017
Delivery Units,Adults and Communities,Other Agencies - Third Party P,0090020136,FREMANTLE TRUST," 2,096.00 ",22/09/2017
Delivery Units,Adults and Communities,Other Agencies - Third Party P,0090020137,FREMANTLE TRUST,"2,096.00",22/09/2017
Delivery Units,Adults and Communities,Other Agencies - Third Party P,0090020138,FREMANTLE TRUST,"2,096.00",22/09/2017
Delivery Units,Adults and Communities,Other Agencies - Third Party P,0090020139,FREMANTLE TRUST,"2,096.00",22/09/2017
Delivery Units,Adults and Communities,Other Agencies - Third Party P,0090020140,FREMANTLE TRUST," 2,284.00 ",22/09/2017
Delivery Units,Adults and Communities,Other Agencies - Third Party P,0090020141,FREMANTLE TRUST," 2,284.00 ",22/09/2017
Delivery Units,Adults and Communities,Other Agencies - Third Party P,0090020144,FREMANTLE TRUST," 2,096.00 ",22/09/2017
Delivery Units,Adults and Communities,Other Agencies - Third Party P,0090020145,FREMANTLE TRUST," 2,096.00 ",22/09/2017
Delivery Units,Adults and Communities,Other Agencies - Third Party P,0090020146,FREMANTLE TRUST," 2,284.00 ",22/09/2017
Delivery Units,Adults and Communities,Other Agencies - Third Party P,0090020148,FREMANTLE TRUST," 2,284.00 ",22/09/2017
Delivery Units,Adults and Communities,Other Agencies - Third Party P,0090020150,FREMANTLE TRUST," 2,096.00 ",22/09/2017
Delivery Units,Adults and Communities,Other Agencies - Third Party P,0090020151,FREMANTLE TRUST," 2,096.00 ",22/09/2017
Delivery Units,Adults and Communities,Other Agencies - Third Party P,0090020152,FREMANTLE TRUST,"2,284.00",22/09/2017
Delivery Units,Adults and Communities,Other Agencies - Third Party P,0090020153,FREMANTLE TRUST," 2,096.00 ",22/09/2017
Delivery Units,Adults and Communities,Other Agencies - Third Party P,0090020154,FREMANTLE TRUST," 2,284.00 ",22/09/2017
Delivery Units,Adults and Communities,Other Agencies - Third Party P,0090020155,FREMANTLE TRUST,"2,284.00",22/09/2017
Delivery Units,Adults and Communities,Other Agencies - Third Party P,0090020156,FREMANTLE TRUST," 2,096.00 ",22/09/2017
Delivery Units,Adults and Communities,Other Agencies - Third Party P,0090020157,FREMANTLE TRUST,"2,284.00",22/09/2017
Delivery Units,Adults and Communities,Other Agencies - Third Party P,0090020158,FREMANTLE TRUST," 2,284.00 ",22/09/2017
Delivery Units,Adults and Communities,Other Agencies - Third Party P,0090020159,FREMANTLE TRUST,"2,284.00",22/09/2017
Delivery Units,Adults and Communities,Other Agencies - Third Party P,0090020160,FREMANTLE TRUST," 2,284.00 ",22/09/2017
Delivery Units,Adults and Communities,Other Agencies - Third Party P,0090020164,FREMANTLE TRUST," 2,284.00 ",22/09/2017
Delivery Units,Adults and Communities,Other Agencies - Third Party P,0090020166,FREMANTLE TRUST,"2,096.00",22/09/2017
Delivery Units,Adults and Communities,Other Agencies - Third Party P,0090020167,FREMANTLE TRUST," 2,096.00 ",22/09/2017
Delivery Units,Adults and Communities,Other Agencies - Third Party P,0090020168,FREMANTLE TRUST,"2,096.00",22/09/2017
Delivery Units,Adults and Communities,Other Agencies - Third Party P,0090020169,FREMANTLE TRUST," 2,096.00 ",22/09/2017
Delivery Units,Adults and Communities,Other Agencies - Third Party P,0090020170,FREMANTLE TRUST,"2,284.00",22/09/2017
Delivery Units,Adults and Communities,Other Agencies - Third Party P,0090020171,FREMANTLE TRUST," 2,096.00 ",22/09/2017
Delivery Units,Adults and Communities,Other Agencies - Third Party P,0090020172,FREMANTLE TRUST,"2,096.00",22/09/2017
Delivery Units,Adults and Communities,Other Agencies - Third Party P,0090020173,FREMANTLE TRUST," 2,096.00 ",22/09/2017
Delivery Units,Adults and Communities,Other Agencies - Third Party P,0090020174,FREMANTLE TRUST," 2,284.00 ",22/09/2017
Delivery Units,Adults and Communities,Other Agencies - Third Party P,0090020175,FREMANTLE TRUST," 2,096.00 ",22/09/2017
Delivery Units,Adults and Communities,Other Agencies - Third Party P,0090020176,FREMANTLE TRUST," 2,284.00 ",22/09/2017
Delivery Units,Adults and Communities,Other Agencies - Third Party P,0090020177,FREMANTLE TRUST,"2,096.00",22/09/2017
Delivery Units,Adults and Communities,Other Agencies - Third Party P,0090020178,FREMANTLE TRUST," 2,284.00 ",22/09/2017
Delivery Units,Adults and Communities,Other Agencies - Third Party P,0090020179,FREMANTLE TRUST,"2,284.00",22/09/2017
Delivery Units,Adults and Communities,Other Agencies - Third Party P,0090020180,FREMANTLE TRUST," 2,284.00 ",22/09/2017
Delivery Units,Adults and Communities,Other Agencies - Third Party P,0090020183,FREMANTLE TRUST,"2,284.00",22/09/2017
Delivery Units,Adults and Communities,Other Agencies - Third Party P,0090020184,FREMANTLE TRUST,"2,096.00",22/09/2017
Delivery Units,Adults and Communities,Other Agencies - Third Party P,0090020185,FREMANTLE TRUST,"2,096.00",22/09/2017
Delivery Units,Adults and Communities,Other Agencies - Third Party P,0090020186,FREMANTLE TRUST,"2,096.00",22/09/2017
Delivery Units,Adults and Communities,Other Agencies - Third Party P,0090020187,FREMANTLE TRUST," 2,284.00 ",22/09/2017
Delivery Units,Adults and Communities,Other Agencies - Third Party P,0090020189,FREMANTLE TRUST,"2,096.00",22/09/2017
Delivery Units,Adults and Communities,Other Agencies - Third Party P,0090020190,FREMANTLE TRUST,"2,284.00",22/09/2017
Delivery Units,Adults and Communities,Other Agencies - Third Party P,0090020192,FREMANTLE TRUST,"2,096.00",22/09/2017
Delivery Units,Adults and Communities,Other Agencies - Third Party P,0090020195,FREMANTLE TRUST," 2,096.00 ",22/09/2017
Delivery Units,Adults and Communities,Other Agencies - Third Party P,0090020196,FREMANTLE TRUST,"2,284.00",22/09/2017
Delivery Units,Adults and Communities,Other Agencies - Third Party P,0090020198,FREMANTLE TRUST," 2,284.00 ",22/09/2017
Delivery Units,Adults and Communities,Other Agencies - Third Party P,0090020199,FREMANTLE TRUST,"2,284.00",22/09/2017
Delivery Units,Adults and Communities,Other Agencies - Third Party P,0090020200,FREMANTLE TRUST," 2,096.00 ",22/09/2017
Delivery Units,Adults and Communities,Other Agencies - Third Party P,0090020201,FREMANTLE TRUST," 2,284.00 ",22/09/2017
Delivery Units,Adults and Communities,Other Agencies - Third Party P,0090020203,FREMANTLE TRUST,"2,284.00",22/09/2017
Delivery Units,Adults and Communities,Other Agencies - Third Party P,0090020204,FREMANTLE TRUST," 2,284.00 ",22/09/2017
Delivery Units,Adults and Communities,Other Agencies - Third Party P,0090020205,FREMANTLE TRUST,"2,284.00",22/09/2017
Delivery Units,Adults and Communities,Other Agencies - Third Party P,0090020206,FREMANTLE TRUST," 2,096.00 ",22/09/2017
Delivery Units,Adults and Communities,Other Agencies - Third Party P,0090020208,FREMANTLE TRUST," 2,096.00 ",22/09/2017
Delivery Units,Adults and Communities,Other Agencies - Third Party P,0090020209,FREMANTLE TRUST,"2,284.00",22/09/2017
Delivery Units,Adults and Communities,Other Agencies - Third Party P,0090020210,FREMANTLE TRUST,"2,284.00",22/09/2017
Delivery Units,Adults and Communities,Other Agencies - Third Party P,0090020211,FREMANTLE TRUST," 2,096.00 ",22/09/2017
Delivery Units,Adults and Communities,Other Agencies - Third Party P,0090020212,FREMANTLE TRUST,"2,284.00",22/09/2017
Delivery Units,Adults and Communities,Other Agencies - Third Party P,0090020213,FREMANTLE TRUST," 2,284.00 ",22/09/2017
Delivery Units,Adults and Communities,Other Agencies - Third Party P,0090020216,FREMANTLE TRUST,"2,284.00",22/09/2017
Delivery Units,Adults and Communities,Other Agencies - Third Party P,0090020217,FREMANTLE TRUST,"2,284.00",22/09/2017
Delivery Units,Adults and Communities,Other Agencies - Third Party P,0090020218,FREMANTLE TRUST,"2,284.00",22/09/2017
Delivery Units,Adults and Communities,Other Agencies - Third Party P,0090020219,FREMANTLE TRUST," 2,096.00 ",22/09/2017
Delivery Units,Adults and Communities,Other Agencies - Third Party P,0090020221,FREMANTLE TRUST," 21,697.99 ",22/09/2017
Delivery Units,Adults and Communities,Other Agencies - Third Party P,0090020222,FREMANTLE TRUST,"6,288.00",22/09/2017
Delivery Units,Adults and Communities,Other Agencies - Third Party P,0090020711,FRIARY LODGE," 2,249.44 ",22/09/2017
Delivery Units,Adults and Communities,Other Agencies - Third Party P,0090020712,FRIARY LODGE," 1,088.44 ",28/09/2017
Delivery Units,Adults and Communities,Other Agencies - Third Party P,0090020882,HALLMARK CARE (KINGS LYNN) LTD," 2,797.07 ",25/09/2017
Delivery Units,Adults and Communities,Other Agencies - Third Party P,0090016827,HILTON LODGE LTD.," 2,480.00 ",11/09/2017
Delivery Units,Adults and Communities,Other Agencies - Third Party P,0090016416,HOLLY HOUSE RESIDENTIAL HOME," 2,600.00 ",06/09/2017
Delivery Units,Adults and Communities,Other Agencies - Third Party P,0090016417,HOLLY HOUSE RESIDENTIAL HOME," 1,114.28 ",06/09/2017
Delivery Units,Adults and Communities,Other Agencies - Third Party P,0090020837,HUSKARDS NEW CARE LTD," 2,176.80 ",25/09/2017
Delivery Units,Adults and Communities,Other Agencies - Third Party P,0090015803,JEWISH CARE," 2,102.00 ",05/09/2017
Delivery Units,Adults and Communities,Other Agencies - Third Party P,0090019004,JEWISH CARE,(228.57),19/09/2017
Delivery Units,Adults and Communities,Other Agencies - Third Party P,0090021650,JEWISH CARE," 5,175.54 ",27/09/2017
Delivery Units,Adults and Communities,Other Agencies - Third Party P,0090021651,JEWISH CARE," 4,754.26 ",27/09/2017
Delivery Units,Adults and Communities,Other Agencies - Third Party P,0090021652,JEWISH CARE," 4,754.26 ",27/09/2017
Delivery Units,Adults and Communities,Other Agencies - Third Party P,0090021653,JEWISH CARE,"6,576.80",27/09/2017
Delivery Units,Adults and Communities,Other Agencies - Third Party P,0090021655,JEWISH CARE,"4,754.26",27/09/2017
Delivery Units,Adults and Communities,Other Agencies - Third Party P,0090021656,JEWISH CARE,"4,754.26",27/09/2017
Delivery Units,Adults and Communities,Other Agencies - Third Party P,0090021657,JEWISH CARE," 5,175.54 ",27/09/2017
Delivery Units,Adults and Communities,Other Agencies - Third Party P,0090021658,JEWISH CARE,"6,887.62",27/09/2017
Delivery Units,Adults and Communities,Other Agencies - Third Party P,0090021659,JEWISH CARE," 4,754.26 ",27/09/2017
Delivery Units,Adults and Communities,Other Agencies - Third Party P,0090021660,JEWISH CARE," 5,175.54 ",27/09/2017
Delivery Units,Adults and Communities,Other Agencies - Third Party P,0090021661,JEWISH CARE,"5,175.54",27/09/2017
Delivery Units,Adults and Communities,Other Agencies - Third Party P,0090021662,JEWISH CARE,"4,754.26",27/09/2017
Delivery Units,Adults and Communities,Other Agencies - Third Party P,0090021663,JEWISH CARE, 344.98 ,27/09/2017
Delivery Units,Adults and Communities,Other Agencies - Third Party P,0090018693,KARUNA MANOR,"3,985.71",19/09/2017
Delivery Units,Adults and Communities,Other Agencies - Third Party P,0090021834,KARUNA MANOR," 3,857.14 ",29/09/2017
Delivery Units,Adults and Communities,Other Agencies - Third Party P,0090016865,LEEMING BAR CARE HOME," 2,213.09 ",12/09/2017
Delivery Units,Adults and Communities,Other Agencies - Third Party P,0090021692,LEO BAECK HOUSING ASSOC. LTD," 2,361.93 ",28/09/2017
Delivery Units,Adults and Communities,Other Agencies - Third Party P,0090021693,LEO BAECK HOUSING ASSOC. LTD,"2,249.45",28/09/2017
Delivery Units,Adults and Communities,Other Agencies - Third Party P,0090021694,LEO BAECK HOUSING ASSOC. LTD,"2,327.21",28/09/2017
Delivery Units,Adults and Communities,Other Agencies - Third Party P,0090021695,LEO BAECK HOUSING ASSOC. LTD," 2,249.45 ",28/09/2017
Delivery Units,Adults and Communities,Other Agencies - Third Party P,0090021696,LEO BAECK HOUSING ASSOC. LTD," 2,361.93 ",28/09/2017
Delivery Units,Adults and Communities,Other Agencies - Third Party P,0090021698,LEO BAECK HOUSING ASSOC. LTD," 2,448.78 ",28/09/2017
Delivery Units,Adults and Communities,Other Agencies - Third Party P,0090016279,LEWIS.W.HAMMERSON MEMORIAL HOME,136.81,06/09/2017
Delivery Units,Adults and Communities,Other Agencies - Third Party P,0090016280,LEWIS.W.HAMMERSON MEMORIAL HOME, 136.81 ,06/09/2017
Delivery Units,Adults and Communities,Other Agencies - Third Party P,0090016962,LEWIS.W.HAMMERSON MEMORIAL HOME," 2,387.35 ",12/09/2017
Delivery Units,Adults and Communities,Other Agencies - Third Party P,0090016964,LEWIS.W.HAMMERSON MEMORIAL HOME,"2,387.35",12/09/2017
Delivery Units,Adults and Communities,Other Agencies - Third Party P,0090016969,LEWIS.W.HAMMERSON MEMORIAL HOME," 2,387.35 ",12/09/2017
Delivery Units,Adults and Communities,Other Agencies - Third Party P,0090015953,LIVABILITY," 2,400.00 ",05/09/2017
Delivery Units,Adults and Communities,Other Agencies - Third Party P,0090020940,LIVABILITY," 2,400.00 ",25/09/2017
Delivery Units,Adults and Communities,Other Agencies - Third Party P,0090016966,METHODIST HOMES FOR THE AGED," 2,001.92 ",14/09/2017
Delivery Units,Adults and Communities,Other Agencies - Third Party P,0090016967,METHODIST HOMES FOR THE AGED," 2,631.76 ",14/09/2017
Delivery Units,Adults and Communities,Other Agencies - Third Party P,0030169422,NAZARETH HOUSE," 2,322.01 ",11/09/2017
Delivery Units,Adults and Communities,Other Agencies - Third Party P,0030169423,NAZARETH HOUSE," 2,031.76 ",11/09/2017
Delivery Units,Adults and Communities,Other Agencies - Third Party P,0030169424,NAZARETH HOUSE,"2,031.76",11/09/2017
Delivery Units,Adults and Communities,Other Agencies - Third Party P,0030169425,NAZARETH HOUSE," 2,031.76 ",11/09/2017
Delivery Units,Adults and Communities,Other Agencies - Third Party P,0030169426,NAZARETH HOUSE," 2,031.76 ",11/09/2017
Delivery Units,Adults and Communities,Other Agencies - Third Party P,0030169427,NAZARETH HOUSE,"2,031.76",11/09/2017
Delivery Units,Adults and Communities,Other Agencies - Third Party P,0090016790,NAZARETH HOUSE," 2,031.76 ",11/09/2017
Delivery Units,Adults and Communities,Other Agencies - Third Party P,0090016791,NAZARETH HOUSE," 3,036.00 ",11/09/2017
Delivery Units,Adults and Communities,Other Agencies - Third Party P,0090016792,NAZARETH HOUSE,"2,031.76",11/09/2017
Delivery Units,Adults and Communities,Other Agencies - Third Party P,0090016793,NAZARETH HOUSE," 2,031.76 ",11/09/2017
Delivery Units,Adults and Communities,Other Agencies - Third Party P,0090016794,NAZARETH HOUSE," 2,031.76 ",11/09/2017
Delivery Units,Adults and Communities,Other Agencies - Third Party P,0090016795,NAZARETH HOUSE,"2,211.80",11/09/2017
Delivery Units,Adults and Communities,Other Agencies - Third Party P,0090016796,NAZARETH HOUSE,"2,031.76",11/09/2017
Delivery Units,Adults and Communities,Other Agencies - Third Party P,0090016798,NAZARETH HOUSE," 2,650.40 ",11/09/2017
Delivery Units,Adults and Communities,Other Agencies - Third Party P,0090016799,NAZARETH HOUSE,"2,211.80",11/09/2017
Delivery Units,Adults and Communities,Other Agencies - Third Party P,0090016800,NAZARETH HOUSE," 2,031.76 ",11/09/2017
Delivery Units,Adults and Communities,Other Agencies - Third Party P,0090016801,NAZARETH HOUSE," 2,031.76 ",11/09/2017
Delivery Units,Adults and Communities,Other Agencies - Third Party P,0090016802,NAZARETH HOUSE," 2,031.76 ",11/09/2017
Delivery Units,Adults and Communities,Other Agencies - Third Party P,0090016803,NAZARETH HOUSE," 2,211.80 ",11/09/2017
Delivery Units,Adults and Communities,Other Agencies - Third Party P,0090016804,NAZARETH HOUSE," 2,031.76 ",11/09/2017
Delivery Units,Adults and Communities,Other Agencies - Third Party P,0090016805,NAZARETH HOUSE," 2,031.76 ",11/09/2017
Delivery Units,Adults and Communities,Other Agencies - Third Party P,0090016806,NAZARETH HOUSE," 2,031.76 ",11/09/2017
Delivery Units,Adults and Communities,Other Agencies - Third Party P,0090016807,NAZARETH HOUSE," 2,031.76 ",11/09/2017
Delivery Units,Adults and Communities,Other Agencies - Third Party P,0030170453,PARCS HEALTHCARE LTD - VRANDAN CARE HOME," 1,114.29 ",22/09/2017
Delivery Units,Adults and Communities,Other Agencies - Third Party P,0090017491,PARCS HEALTHCARE LTD - VRANDAN CARE HOME,"2,080.00",13/09/2017
Delivery Units,Adults and Communities,Other Agencies - Third Party P,0090018126,R.M.B.I," 2,249.45 ",15/09/2017
Delivery Units,Adults and Communities,Other Agencies - Third Party P,0090020880,R.M.B.I," 2,176.89 ",22/09/2017
Delivery Units,Adults and Communities,Other Agencies - Third Party P,0090019850,ROSEACRES CARE HOME LIMITED," 3,321.43 ",20/09/2017
Delivery Units,Adults and Communities,Other Agencies - Third Party P,0090019851,ROSEACRES CARE HOME LIMITED,"2,448.78",20/09/2017
Delivery Units,Adults and Communities,Other Agencies - Third Party P,0090019853,ROSEACRES CARE HOME LIMITED,"2,542.31",20/09/2017
Delivery Units,Adults and Communities,Other Agencies - Third Party P,0090019856,ROSEACRES CARE HOME LIMITED,"2,335.36",20/09/2017
Delivery Units,Adults and Communities,Other Agencies - Third Party P,0090019857,ROSEACRES CARE HOME LIMITED,"2,542.31",20/09/2017
Delivery Units,Adults and Communities,Other Agencies - Third Party P,0090019858,ROSEACRES CARE HOME LIMITED," 2,542.31 ",20/09/2017
Delivery Units,Adults and Communities,Other Agencies - Third Party P,0090019859,ROSEACRES CARE HOME LIMITED," 2,542.31 ",20/09/2017
Delivery Units,Adults and Communities,Other Agencies - Third Party P,0090019861,ROSEACRES CARE HOME LIMITED," 2,988.53 ",20/09/2017
Delivery Units,Adults and Communities,Other Agencies - Third Party P,0090019863,ROSEACRES CARE HOME LIMITED,"2,542.31",20/09/2017
Delivery Units,Adults and Communities,Other Agencies - Third Party P,0090020007,ROSEACRES CARE HOME LIMITED,"2,542.18",20/09/2017
Delivery Units,Adults and Communities,Other Agencies - Third Party P,0090020008,ROSEACRES CARE HOME LIMITED,"2,460.17",20/09/2017
Delivery Units,Adults and Communities,Other Agencies - Third Party P,0090020009,ROSEACRES CARE HOME LIMITED," 2,542.18 ",20/09/2017
Delivery Units,Adults and Communities,Other Agencies - Third Party P,0090020011,ROSEACRES CARE HOME LIMITED," 3,077.86 ",20/09/2017
Delivery Units,Adults and Communities,Other Agencies - Third Party P,0090020012,ROSEACRES CARE HOME LIMITED," 2,978.57 ",20/09/2017
Delivery Units,Adults and Communities,Other Agencies - Third Party P,0090021595,SAGE NURSING HOME," 3,085.68 ",27/09/2017
Delivery Units,Adults and Communities,Other Agencies - Third Party P,0090013906,SCIMITAR CARE HOTELS PLC,"3,976.86",05/09/2017
Delivery Units,Adults and Communities,Other Agencies - Third Party P,0090013907,SCIMITAR CARE HOTELS PLC," 3,321.43 ",05/09/2017
Delivery Units,Adults and Communities,Other Agencies - Third Party P,0090020833,SCIMITAR CARE HOTELS PLC,"3,848.57",28/09/2017
Delivery Units,Adults and Communities,Other Agencies - Third Party P,0090020834,SCIMITAR CARE HOTELS PLC,"3,310.71",28/09/2017
Delivery Units,Adults and Communities,Other Agencies - Third Party P,0090016751,SEAFORTH LODGE," 2,400.00 ",08/09/2017
Delivery Units,Adults and Communities,Other Agencies - Third Party P,0090016759,SEAFORTH LODGE," 2,657.14 ",11/09/2017
Delivery Units,Adults and Communities,Other Agencies - Third Party P,0090021361,SEAFORTH LODGE,"2,369.79",26/09/2017
Delivery Units,Adults and Communities,Other Agencies - Third Party P,0090021362,SEAFORTH LODGE," 2,369.79 ",26/09/2017
Delivery Units,Adults and Communities,Other Agencies - Third Party P,0090021363,SEAFORTH LODGE,"2,369.79",26/09/2017
Delivery Units,Adults and Communities,Other Agencies - Third Party P,0090021364,SEAFORTH LODGE," 2,369.79 ",26/09/2017
Delivery Units,Adults and Communities,Other Agencies - Third Party P,0090021366,SEAFORTH LODGE,"2,369.79",26/09/2017
Delivery Units,Adults and Communities,Other Agencies - Third Party P,0090021379,SEAFORTH LODGE," 2,571.43 ",26/09/2017
Delivery Units,Adults and Communities,Other Agencies - Third Party P,0090021983,SEAFORTH LODGE,"2,369.79",29/09/2017
Delivery Units,Adults and Communities,Other Agencies - Third Party P,0090021984,SEAFORTH LODGE," 2,369.79 ",29/09/2017
Delivery Units,Adults and Communities,Other Agencies - Third Party P,0090018151,SEVA CARE HOME," 2,216.41 ",14/09/2017
Delivery Units,Adults and Communities,Other Agencies - Third Party P,0090018152,SEVA CARE HOME," 2,216.41 ",14/09/2017
Delivery Units,Adults and Communities,Other Agencies - Third Party P,0090020870,SEVA CARE HOME," 2,144.91 ",25/09/2017
Delivery Units,Adults and Communities,Other Agencies - Third Party P,0090020871,SEVA CARE HOME," 2,144.91 ",25/09/2017
Delivery Units,Adults and Communities,Other Agencies - Third Party P,0090019018,SONNET CARE HOMES (ESSEX) LTD," 4,871.43 ",19/09/2017
Delivery Units,Adults and Communities,Other Agencies - Third Party P,0090021341,SONNET CARE HOMES (ESSEX) LTD," 4,714.29 ",28/09/2017
Delivery Units,Adults and Communities,Other Agencies - Third Party P,0090021972,SPRINGDENE," 3,321.43 ",29/09/2017
Delivery Units,Adults and Communities,Other Agencies - Third Party P,0090021973,SPRINGVIEW,"3,100.00",29/09/2017
Delivery Units,Adults and Communities,Other Agencies - Third Party P,0090020842,SUNRIDGE HOUSING ASSOCIATION LTD,"2,808.77",25/09/2017
Delivery Units,Adults and Communities,Other Agencies - Third Party P,0090020844,SUNRIDGE HOUSING ASSOCIATION LTD,"2,893.14",25/09/2017
Delivery Units,Adults and Communities,Other Agencies - Third Party P,0090016758,SWANBOROUGH HOUSE,"3,722.44",08/09/2017
Delivery Units,Adults and Communities,Other Agencies - Third Party P,0090020855,SYDMAR LODGE," 2,285.74 ",25/09/2017
Delivery Units,Adults and Communities,Other Agencies - Third Party P,0090020942,SYDMAR LODGE,"2,252.14",25/09/2017
Delivery Units,Adults and Communities,Other Agencies - Third Party P,0090020943,SYDMAR LODGE,"2,700.00",25/09/2017
Delivery Units,Adults and Communities,Other Agencies - Third Party P,0090020944,SYDMAR LODGE,"2,285.74",25/09/2017
Delivery Units,Adults and Communities,Other Agencies - Third Party P,0090020945,SYDMAR LODGE,"2,488.29",25/09/2017
Delivery Units,Adults and Communities,Other Agencies - Third Party P,0090020946,SYDMAR LODGE,"2,285.74",25/09/2017
Delivery Units,Adults and Communities,Other Agencies - Third Party P,0090020947,SYDMAR LODGE,"2,285.74",25/09/2017
Delivery Units,Adults and Communities,Other Agencies - Third Party P,0090020948,SYDMAR LODGE,"2,925.00",25/09/2017
Delivery Units,Adults and Communities,Other Agencies - Third Party P,0090021582,SYDMAR LODGE,"2,361.93",27/09/2017
Delivery Units,Adults and Communities,Other Agencies - Third Party P,0090018158,TENTERDEN HOUSE,"3,957.50",14/09/2017
Delivery Units,Adults and Communities,Other Agencies - Third Party P,0090018674,TENTERDEN HOUSE," 3,829.84 ",19/09/2017
Delivery Units,Adults and Communities,Other Agencies - Third Party P,0090017476,THE CHRISTIAN CARE TRUST,"2,211.80",13/09/2017
Delivery Units,Adults and Communities,Other Agencies - Third Party P,0090017499,THE CHRISTIAN CARE TRUST,"2,031.76",13/09/2017
Delivery Units,Adults and Communities,Other Agencies - Third Party P,0090016244,THE GRANGE, 360.24 ,06/09/2017
Delivery Units,Adults and Communities,Other Agencies - Third Party P,0090016248,THE GRANGE,390.85,06/09/2017
Delivery Units,Adults and Communities,Other Agencies - Third Party P,0090018664,THE GRANGE," 2,300.28 ",19/09/2017
Delivery Units,Adults and Communities,Other Agencies - Third Party P,0090018668,THE GRANGE," 2,496.00 ",19/09/2017
Delivery Units,Adults and Communities,Other Agencies - Third Party P,0090019006,THE KINGSDOWNE SOCIETY,"4,236.00",19/09/2017
Delivery Units,Adults and Communities,Other Agencies - Third Party P,0090019007,THE KINGSDOWNE SOCIETY," 2,829.95 ",19/09/2017
Delivery Units,Adults and Communities,Other Agencies - Third Party P,0090019897,THE LIMES RESIDENTIAL HOME," 2,211.80 ",20/09/2017
Delivery Units,Adults and Communities,Other Agencies - Third Party P,0090019898,THE LIMES RESIDENTIAL HOME,"2,369.79",20/09/2017
Delivery Units,Adults and Communities,Other Agencies - Third Party P,0090019899,THE LIMES RESIDENTIAL HOME," 2,448.78 ",20/09/2017
Delivery Units,Adults and Communities,Other Agencies - Third Party P,0090021367,THE LIMES RESIDENTIAL HOME," 2,176.89 ",26/09/2017
Delivery Units,Adults and Communities,Other Agencies - Third Party P,0090021368,THE LIMES RESIDENTIAL HOME," 2,369.79 ",26/09/2017
Delivery Units,Adults and Communities,Other Agencies - Third Party P,0090021369,THE LIMES RESIDENTIAL HOME," 2,785.71 ",26/09/2017
Delivery Units,Adults and Communities,Other Agencies - Third Party P,0090021370,THE LIMES RESIDENTIAL HOME," 2,176.89 ",26/09/2017
Delivery Units,Adults and Communities,Other Agencies - Third Party P,0090021371,THE LIMES RESIDENTIAL HOME," 2,369.79 ",26/09/2017
Delivery Units,Adults and Communities,Other Agencies - Third Party P,0090021372,THE LIMES RESIDENTIAL HOME,"2,369.79",26/09/2017
Delivery Units,Adults and Communities,Other Agencies - Third Party P,0090021374,THE LIMES RESIDENTIAL HOME,"2,369.79",26/09/2017
Delivery Units,Adults and Communities,Other Agencies - Third Party P,0090021375,THE LIMES RESIDENTIAL HOME," 2,369.79 ",26/09/2017
Delivery Units,Adults and Communities,Other Agencies - Third Party P,0090021377,THE LIMES RESIDENTIAL HOME," 2,176.89 ",26/09/2017
Delivery Units,Adults and Communities,Other Agencies - Third Party P,0090021378,THE LIMES RESIDENTIAL HOME,"2,176.89",26/09/2017
Delivery Units,Adults and Communities,Other Agencies - Third Party P,0090019977,THE RED HOUSE," 2,094.52 ",20/09/2017
Delivery Units,Adults and Communities,Other Agencies - Third Party P,0080012615,THE WINDMILL CARE HOME," 17,830.38 ",21/09/2017
Delivery Units,Adults and Communities,Other Agencies - Third Party P,0030169428,THE WOODSIDE HOME,145.12,11/09/2017
Delivery Units,Adults and Communities,Other Agencies - Third Party P,0080012097,THE WOODSIDE HOME," 19,293.98 ",26/09/2017
Delivery Units,Adults and Communities,Other Agencies - Third Party P,0090017477,THE WOODSIDE HOME," 2,092.72 ",13/09/2017
Delivery Units,Adults and Communities,Other Agencies - Third Party P,0090017478,THE WOODSIDE HOME," 2,092.72 ",13/09/2017
Delivery Units,Adults and Communities,Other Agencies - Third Party P,0090017479,THE WOODSIDE HOME," 2,092.72 ",13/09/2017
Delivery Units,Adults and Communities,Other Agencies - Third Party P,0090017480,THE WOODSIDE HOME," 2,092.72 ",13/09/2017
Delivery Units,Adults and Communities,Other Agencies - Third Party P,0090017482,THE WOODSIDE HOME," 2,092.72 ",13/09/2017
Delivery Units,Adults and Communities,Other Agencies - Third Party P,0090017483,THE WOODSIDE HOME," 2,092.72 ",13/09/2017
Delivery Units,Adults and Communities,Other Agencies - Third Party P,0090017484,THE WOODSIDE HOME,"2,278.16",13/09/2017
Delivery Units,Adults and Communities,Other Agencies - Third Party P,0090017485,THE WOODSIDE HOME," 2,278.16 ",13/09/2017
Delivery Units,Adults and Communities,Other Agencies - Third Party P,0090018690,THE WOODSIDE HOME," 2,211.80 ",19/09/2017
Delivery Units,Adults and Communities,Other Agencies - Third Party P,0090019824,THE WOODSIDE HOME,"3,475.69",20/09/2017
Delivery Units,Adults and Communities,Other Agencies - Third Party P,0090019826,THE WOODSIDE HOME," 2,211.80 ",20/09/2017
Delivery Units,Adults and Communities,Other Agencies - Third Party P,0090019896,THE WOODSIDE HOME," 2,278.16 ",20/09/2017
Delivery Units,Adults and Communities,Other Agencies - Third Party P,0090016274,TORRINGTON HOMES," 2,448.78 ",06/09/2017
Delivery Units,Adults and Communities,Other Agencies - Third Party P,0090018167,TORRINGTON HOMES," 2,448.78 ",14/09/2017
Delivery Units,Adults and Communities,Other Agencies - Third Party P,0090018168,TORRINGTON HOMES," 2,249.45 ",14/09/2017
Delivery Units,Adults and Communities,Other Agencies - Third Party P,0090018169,TORRINGTON HOMES," 2,448.78 ",14/09/2017
